{"text_format":"2","workbook":"xlsx","n_sheets":5,"sheets":["Có CCHN","Chưa CCHN","Không CCHN","Hợp tác","DS sổ BHXH"],"not_rendered":{"charts":0,"images":0,"macros":0,"external_links":0,"defined_names":7,"comments":1,"pivot_tables":0},"unopened":[],"bounds":{"document_bytes":16777216,"sheet_cells":100000,"run_cost":"one","rows_first":2000,"rows_last":500,"rows_between":2000,"halvings":0,"cell_chars":16384,"cell_head_chars":4096},"cells_cut":0,"cells_raw":0,"read":"whole","date_system":"1900"}

{"sheet":"Có CCHN","index":0,"n_rows":516,"n_cols":7,"rows_kept":516,"cut":false,"hidden":false,"merged":[[515,0,515,2],[0,1,0,2],[1,1,1,2],[0,4,0,5],[1,4,1,5],[2,4,2,5],[3,0,3,6],[508,0,508,2],[510,0,510,2],[508,4,508,6],[510,4,510,6]]}
[null,"SỞ Y TẾ THÀNH PHỐ CẦN THƠ",null,null,"CỘNG HÒA XÃ HỘI CHỦ NGHĨA VIỆT NAM"]
[null,"BỆNH VIỆN NHI ĐỒNG",null,null,"Độc lập - Tự do - Hạnh phúc"]
[{"$nulls":4},"Cần Thơ, ngày 22 tháng 12 năm 2022"]
["DANH SÁCH\nĐăng ký hành nghề tại cơ sở khám bệnh, chữa bệnh\n(Tháng 12/2022)"]
[null,"1. Tên cơ sở khám bệnh, chữa bệnh: Bệnh viện Nhi đồng thành phố Cần Thơ"]
[null,"2. Địa chỉ: Số 345, Nguyễn Văn Cừ, phường An Bình, quận Ninh Kiều, thành phố Cần Thơ"]
[null,"3. Số điện thoại: 02923.831837"]
[null,"4. Thời gian hoạt động của cơ sở khám bệnh, chữa bệnh: 24/24"]
[null,"5. Danh sách người được phê duyệt chính thức"]
[]
["TT","Họ tên","Số chứng chỉ hành nghề đã được cấp","Phạm vi hoạt động chuyên môn","Thời gian đăng ký hành nghề tại cơ sở khám, bệnh chữa bệnh (ghi cụ thể thời gian làm việc)","Vị trí chuyên môn","Ghi chú"]
["I","PHÒNG CHỨC NĂNG"]
[null,"PHÒNG KẾ HOẠCH TỔNG HỢP"]
[1,"Nguyễn Đức Trí","000520/CT-CCHN","Khám bệnh, chữa bệnh chuyên khoa Nhi","Toàn thời gian;\n- Sáng 7h00 – 11h00, chiều 13h00- 17h00 từ thứ 2 đến thứ 6; \n- Thứ 7: Sáng 7h00 - 11h00. ","Khám bệnh, chữa bệnh chuyên khoa Nhi"]
[2,"Nguyễn Phát Nguyên","002810/CT-CCHN","Khám bệnh, chữa bệnh chuyên khoa nhi","Toàn thời gian;\n- Sáng 7h00 – 11h00, chiều 13h00- 17h00 từ thứ 2 đến thứ 6; \n- Thứ 7: Sáng 7h00 - 11h00. ","Khám bệnh, chữa bệnh chuyên khoa nhi"]
[3,"Thạch Thị Bích Nhiên","004296/CT-CCHN","Khám bệnh, chữa bệnh Nhi khoa","Toàn thời gian;\n- Sáng 7h00 – 11h00, chiều 13h00- 17h00 từ thứ 2 đến thứ 6; \n- Thứ 7: Sáng 7h00 - 11h00. ","Khám bệnh, chữa bệnh Nhi khoa"]
[4,"Lương Thị Khánh Ly","002732/CT-CCHN","Thực hiện các kỹ thuật điều dưỡng cơ bản","Toàn thời gian;\n- Sáng 7h00 – 11h00, chiều 13h00- 17h00 từ thứ 2 đến thứ 6; \n- Thứ 7: Sáng 7h00 - 11h00. ","Thực hiện các kỹ thuật điều dưỡng cơ bản"]
[5,"Nguyễn Nhật Lan","004384/CT-CCHN","Thực hiện theo chức năng nhiệm vụ của điều dưỡng quy định theo Thông tư liên tịch số 26/2015/TTLT-BYT ngày 07/10/2015","Toàn thời gian;\n- Sáng 7h00 – 11h00, chiều 13h00- 17h00 từ thứ 2 đến thứ 6; \n- Thứ 7: Sáng 7h00 - 11h00. ","Thực hiện theo chức năng nhiệm vụ của điều dưỡng quy định theo Thông tư liên tịch số 26/2015/TTLT-BYT ngày 07/10/2015"]
[6,"Hồ Như Quỳnh Anh","005470/CT-CCHN","Thực hiện theo chức năng, nhiệm vụ của điều dưỡng theo quy định Thông tư liên tịch 26/2015/TTLT-BYT ngày 07/10/2015","Toàn thời gian;\n- Sáng 7h00 – 11h00, chiều 13h00- 17h00 từ thứ 2 đến thứ 6; \n- Thứ 7: Sáng 7h00 - 11h00. ","Thực hiện theo chức năng, nhiệm vụ của điều dưỡng theo quy định Thông tư liên tịch 26/2015/TTLT-BYT ngày 07/10/2015"]
[7,"Lê Thị Thùy Trang","002733/CT-CCHN","Thực hiện các kỹ thuật điều dưỡng cơ bản","Toàn thời gian;\n- Sáng 7h00 – 11h00, chiều 13h00- 17h00 từ thứ 2 đến thứ 6; \n- Thứ 7: Sáng 7h00 - 11h00. ","Thực hiện các kỹ thuật điều dưỡng cơ bản"]
[8,"Nguyễn Thị Nhật Linh","002796/CT-CCHN","Thực hiện các kỹ thuật điều dưỡng cơ bản","Toàn thời gian;\n- Sáng 7h00 – 11h00, chiều 13h00- 17h00 từ thứ 2 đến thứ 6; \n- Thứ 7: Sáng 7h00 - 11h00. ","Thực hiện các kỹ thuật điều dưỡng cơ bản"]
[9,"Lê Nguyễn Quế Tiên","005014/CT-CCHN","Thực hiện các kỹ thuật điều dưỡng cơ bản","Toàn thời gian;\n- Sáng 7h00 – 11h00, chiều 13h00- 17h00 từ thứ 2 đến thứ 6; \n- Thứ 7: Sáng 7h00 - 11h00. ","Thực hiện các kỹ thuật điều dưỡng cơ bản"]
[10,"Bùi Thanh Huy","291/CCHN-D-SYT-HAUG","Bán lẻ thuốc","Toàn thời gian;\n- Sáng 7h00 – 11h00, chiều 13h00- 17h00 từ thứ 2 đến thứ 6; \n- Thứ 7: Sáng 7h00 - 11h00. ","Nhân viên phòng Kế hoạch tổng hợp"]
[11,"Bành Kim Ngân","6/CCHN-D-SYT-KG","Bán lẻ thuốc","Toàn thời gian;\n- Sáng 7h00 – 11h00, chiều 13h00- 17h00 từ thứ 2 đến thứ 6; \n- Thứ 7: Sáng 7h00 - 11h00. ","Nhân viên phòng Kế hoạch tổng hợp"]
[null,"PHÒNG ĐIỀU DƯỠNG"]
[1,"Lê Ngọc Điệp","002837/CT-CCHN","Thực hiện các kỹ thuật điều dưỡng cơ bản","Toàn thời gian;\n- Sáng 7h00 – 11h00, chiều 13h00- 17h00 từ thứ 2 đến thứ 6; \n- Thứ 7: Sáng 7h00 - 11h00. ","Thực hiện các kỹ thuật điều dưỡng cơ bản"]
[2,"Trần Thị Kim Cúc","002875/CT-CCHN","Thực hiện các kỹ thuật điều dưỡng cơ bản và các kỹ thuật điều dưỡng chuyên khoa","Toàn thời gian;\n- Sáng 7h00 – 11h00, chiều 13h00- 17h00 từ thứ 2 đến thứ 6; \n- Thứ 7: Sáng 7h00 - 11h00. ","Thực hiện các kỹ thuật điều dưỡng cơ bản và các kỹ thuật điều dưỡng chuyên khoa"]
[3,"Bùi Thị Cẩm Nhung","002730/CT-CCHN","Thực hiện các kỹ thuật điều dưỡng cơ bản và các kỹ thuật điều dưỡng chuyên khoa","Toàn thời gian;\n- Sáng 7h00 – 11h00, chiều 13h00- 17h00 từ thứ 2 đến thứ 6; \n- Thứ 7: Sáng 7h00 - 11h00. ","Thực hiện các kỹ thuật điều dưỡng cơ bản và các kỹ thuật điều dưỡng chuyên khoa"]
[4,"Hồ Tấn Bảo Đông","003807/CT-CCHN","Thực hiện các kỹ thuật điều dưỡng cơ bản và các kỹ thuật điều dưỡng chuyên khoa","Toàn thời gian;\n- Sáng 7h00 – 11h00, chiều 13h00- 17h00 từ thứ 2 đến thứ 6; \n- Thứ 7: Sáng 7h00 - 11h00. ","Thực hiện các kỹ thuật điều dưỡng cơ bản và các kỹ thuật điều dưỡng chuyên khoa"]
[5,"Đoàn Thị Mau","0028388/HCM-CCHN","Thực hiện theo Quyết định số 41/2005/QĐ-BNV ngày 22/4/2005","Toàn thời gian;\n- Sáng 7h00 – 11h00, chiều 13h00- 17h00 từ thứ 2 đến thứ 6; \n- Thứ 7: Sáng 7h00 - 11h00. ","Thực hiện theo Quyết định số 41/2005/QĐ-BNV ngày 22/4/2005"]
[null,"PHÒNG CHỈ ĐẠO TUYẾN"]
[1,"Ông Huy Thanh","000173/CT-CCHN","Khám bệnh, chữa bệnh chuyên khoa Nhi","Toàn thời gian;\n- Sáng 7h00 – 11h00, chiều 13h00- 17h00 từ thứ 2 đến thứ 6; \n- Thứ 7: Sáng 7h00 - 11h00. ","Khám bệnh, chữa bệnh chuyên khoa Nhi"]
[2,"Quách Ngọc Ngân","003249/CT-CCHN","Khám bệnh, chữa bệnh chuyên khoa Nhi","Toàn thời gian;\n- Sáng 7h00 – 11h00, chiều 13h00- 17h00 từ thứ 2 đến thứ 6; \n- Thứ 7: Sáng 7h00 - 11h00. ","Khám bệnh, chữa bệnh chuyên khoa Nhi"]
[3,"Hà Thị Hồng Ân","000629/CT-CCHN","Khám chữa bệnh chuyên khoa Nội Nhi","Toàn thời gian;\n- Sáng 7h00 – 11h00, chiều 13h00- 17h00 từ thứ 2 đến thứ 6; \n- Thứ 7: Sáng 7h00 - 11h00. ","Khám chữa bệnh chuyên khoa Nội Nhi"]
[4,"Ngô Thị Cẩm Thi","005005/CT-CCHN","Thực hiện theo chức năng nhiệm vụ của điều dưỡng quy định theo Thông tư liên tịch số 26/2015/TTLT-BYT ngày 07/10/2015","Toàn thời gian;\n- Sáng 7h00 – 11h00, chiều 13h00- 17h00 từ thứ 2 đến thứ 6; \n- Thứ 7: Sáng 7h00 - 11h00. ","Thực hiện theo chức năng nhiệm vụ của điều dưỡng quy định theo Thông tư liên tịch số 26/2015/TTLT-BYT ngày 07/10/2015"]
[null,"PHÒNG QUẢN LÝ CHẤT LƯỢNG"]
[1,"Nguyễn Thị Kim Phượng","002728/CT-CCHN","Thực hiện các kỹ thuật điều dưỡng cơ bản và một số kỹ thuật điều dưỡng chuyên khoa","Toàn thời gian;\n- Sáng 7h00 – 11h00, chiều 13h00- 17h00 từ thứ 2 đến thứ 6; \n- Thứ 7: Sáng 7h00 - 11h00. ","Thực hiện các kỹ thuật điều dưỡng cơ bản và một số kỹ thuật điều dưỡng chuyên khoa"]
[2,"Nguyễn Thị Ngọc Mai","007588/CT-CCHN","Khám, phát hiện và xử trí các bệnh thông thường, xử trí ban đầu một số trường hợp cấp cứu tại cộng đồng","Toàn thời gian;\n- Sáng 7h00 – 11h00, chiều 13h00- 17h00 từ thứ 2 đến thứ 6; \n- Thứ 7: Sáng 7h00 - 11h00. ","Khám, phát hiện và xử trí các bệnh thông thường, xử trí ban đầu một số trường hợp cấp cứu tại cộng đồng"]
[3,"Trần Thị Thảo Trâm","007593/CT-CCHN","Khám, phát hiện và xử trí các bệnh thông thường, xử trí ban đầu một số trường hợp cấp cứu tại cộng đồng","Toàn thời gian;\n- Sáng 7h00 – 11h00, chiều 13h00- 17h00 từ thứ 2 đến thứ 6; \n- Thứ 7: Sáng 7h00 - 11h00. ","Khám, phát hiện và xử trí các bệnh thông thường, xử trí ban đầu một số trường hợp cấp cứu tại cộng đồng"]
[4,"Lê Cẩm Tú","002848/CT-CCHN","Thực hiện các kỹ thuật điều dưỡng cơ bản","Toàn thời gian;\n- Sáng 7h00 – 11h00, chiều 13h00- 17h00 từ thứ 2 đến thứ 6; \n- Thứ 7: Sáng 7h00 - 11h00. ","Thực hiện các kỹ thuật điều dưỡng cơ bản"]
[null,"PHÒNG VẬT TƯ THIẾT BỊ Y TẾ"]
[1,"Nguyễn Thị Ngọc Nuôi","30/CT-CCHND","Bán lẻ thuốc","Toàn thời gian;\n- Sáng 7h00 – 11h00, chiều 13h00- 17h00 từ thứ 2 đến thứ 6; \n- Thứ 7: Sáng 7h00 - 11h00. ","Bán lẻ thuốc"]
[2,"Nguyễn Thị Thu Hằng","1744/CCHN-D-SYT-CT","Bán lẻ thuốc","Toàn thời gian;\n- Sáng 7h00 – 11h00, chiều 13h00- 17h00 từ thứ 2 đến thứ 6; \n- Thứ 7: Sáng 7h00 - 11h00. ","Bán lẻ thuốc"]
[null,"PHÒNG TỔ CHỨC CÁN BỘ"]
[1,"Trần Văn Dễ","001125/CT-CCHN","Khám chữa bệnh chuyên khoa Ngoại","Toàn thời gian;\n- Sáng 7h00 – 11h00, chiều 13h00- 17h00 từ thứ 2 đến thứ 6; \n- Thứ 7: Sáng 7h00 - 11h00. ","Khám chữa bệnh chuyên khoa Ngoại"]
[2,"Huỳnh Thị Ngọc Linh","001206/CT-CCHN","Khám bệnh, chữa bệnh đa khoa - Mắt","Toàn thời gian;\n- Sáng 7h00 – 11h00, chiều 13h00- 17h00 từ thứ 2 đến thứ 6; \n- Thứ 7: Sáng 7h00 - 11h00. ","Khám bệnh, chữa bệnh đa khoa - Mắt"]
[3,"Huỳnh Xuân Kiểu","004437/CT-CCHN","Thực hiện theo chức năng nhiệm vụ của điều dưỡng quy định theo Thông tư liên tịch số 26/2015/TTLT-BYT ngày 07/10/2015","Toàn thời gian;\n- Sáng 7h00 – 11h00, chiều 13h00- 17h00 từ thứ 2 đến thứ 6; \n- Thứ 7: Sáng 7h00 - 11h00. ","Thực hiện theo chức năng nhiệm vụ của điều dưỡng quy định theo Thông tư liên tịch số 26/2015/TTLT-BYT ngày 07/10/2015"]
[4,"Lê Minh Chánh","002869/CT-CCHN","Thực hiện các kỹ thuật điều dưỡng cơ bản","Toàn thời gian;\n- Sáng 7h00 – 11h00, chiều 13h00- 17h00 từ thứ 2 đến thứ 6; \n- Thứ 7: Sáng 7h00 - 11h00. ","Thực hiện các kỹ thuật điều dưỡng cơ bản"]
[5,"Mai Thị Ngọc Hiền","2135/CCHN-D-SYT-CT","Bán lẻ thuốc","Toàn thời gian;\n- Sáng 7h00 – 11h00, chiều 13h00- 17h00 từ thứ 2 đến thứ 6; \n- Thứ 7: Sáng 7h00 - 11h00. ","Bán lẻ thuốc"]
[6,"Trương Thị Thùy Linh","3094/CCHN-D-SYT-CT","Bán lẻ thuốc","Toàn thời gian;\n- Sáng 7h00 – 11h00, chiều 13h00- 17h00 từ thứ 2 đến thứ 6; \n- Thứ 7: Sáng 7h00 - 11h00. ","Bán lẻ thuốc"]
[null,"PHÒNG CÔNG TÁC XÃ HỘI"]
[1,"Nguyễn Kim Phụng","002711/CT-CCHN ","Thực hiện các kỹ thuật điều dưỡng cơ bản","Toàn thời gian;\n- Sáng 7h00 – 11h00, chiều 13h00- 17h00 từ thứ 2 đến thứ 6; \n- Thứ 7: Sáng 7h00 - 11h00. ","Thực hiện các kỹ thuật điều dưỡng cơ bản"]
["II","LÂM SÀNG"]
[null,"KHOA NỘI TỔNG HỢP"]
[1,"Nguyễn Thanh Nam","001799/CT-CCHN","Khám bệnh, chữa bệnh chuyên khoa Nhi","Toàn thời gian;\n- Sáng 7h00 – 11h00, chiều 13h00- 17h00 từ thứ 2 đến thứ 6; \n- Thứ 7: Sáng 7h00 - 11h00. ","Khám bệnh, chữa bệnh chuyên khoa Nhi"]
[2,"Nguyễn Thị Nhân Mỹ","004683/CT-CCHN","Khám bệnh, chữa bệnh chuyên khoa Nhi","Toàn thời gian;\n- Sáng 7h00 – 11h00, chiều 13h00- 17h00 từ thứ 2 đến thứ 6; \n- Thứ 7: Sáng 7h00 - 11h00. ","Khám bệnh, chữa bệnh chuyên khoa Nhi"]
[3,"Danh Chanh Ry Gia","002867/CT-CCHN","Khám bệnh, chữa bệnh chuyên khoa Nhi","Toàn thời gian;\n- Sáng 7h00 – 11h00, chiều 13h00- 17h00 từ thứ 2 đến thứ 6; \n- Thứ 7: Sáng 7h00 - 11h00. ","Khám bệnh, chữa bệnh chuyên khoa Nhi"]
[4,"Nguyễn Lợi Toàn","004718/CT-CCHN","Khám bệnh, chữa bệnh Nhi khoa","Toàn thời gian;\n- Sáng 7h00 – 11h00, chiều 13h00- 17h00 từ thứ 2 đến thứ 6; \n- Thứ 7: Sáng 7h00 - 11h00. ","Khám bệnh, chữa bệnh Nhi khoa"]
[5,"Danh Hữu Tài","005919/CT-CCHN","Khám bệnh, chữa bệnh Nhi khoa","Toàn thời gian;\n- Sáng 7h00 – 11h00, chiều 13h00- 17h00 từ thứ 2 đến thứ 6; \n- Thứ 7: Sáng 7h00 - 11h00. ","Khám bệnh, chữa bệnh Nhi khoa"]
[6,"Hứa Thị Hồng Ngân","006553/CT-CCHN","Khám bệnh, chữa bệnh Nhi khoa","Toàn thời gian;\n- Sáng 7h00 – 11h00, chiều 13h00- 17h00 từ thứ 2 đến thứ 6; \n- Thứ 7: Sáng 7h00 - 11h00. ","Khám bệnh, chữa bệnh Nhi khoa"]
[7,"Khương Văn Thái","002883/CT-CCHN","Khám bệnh, chữa bệnh Nhi khoa","Toàn thời gian;\n- Sáng 7h00 – 11h00, chiều 13h00- 17h00 từ thứ 2 đến thứ 6; \n- Thứ 7: Sáng 7h00 - 11h00. ","Khám bệnh, chữa bệnh Nhi khoa"]
[8,"Phan Thanh Duy","007440/CT-CCHN","Khám bệnh, chữa bệnh Nhi khoa","Toàn thời gian;\n- Sáng 7h00 – 11h00, chiều 13h00- 17h00 từ thứ 2 đến thứ 6; \n- Thứ 7: Sáng 7h00 - 11h00. ","Khám bệnh, chữa bệnh Nhi khoa"]
[9,"Ngô Thị Hồng Cẩm","002859/CT-CCHN","Thực hiện các kỹ thuật điều dưỡng cơ bản","Toàn thời gian;\n- Sáng 7h00 – 11h00, chiều 13h00- 17h00 từ thứ 2 đến thứ 6; \n- Thứ 7: Sáng 7h00 - 11h00. ","Thực hiện các kỹ thuật điều dưỡng cơ bản"]
[10,"Nguyễn Thị Tuyết Nhung","003755/CT-CCHN","Thực hiện các kỹ thuật điều dưỡng cơ bản  ","Toàn thời gian;\n- Sáng 7h00 – 11h00, chiều 13h00- 17h00 từ thứ 2 đến thứ 6; \n- Thứ 7: Sáng 7h00 - 11h00. ","Thực hiện các kỹ thuật điều dưỡng cơ bản  "]
[11,"Liêu Thị Mỹ Hiền","002873/CT-CCHN","Thực hiện các kỹ thuật điều dưỡng cơ bản  ","Toàn thời gian;\n- Sáng 7h00 – 11h00, chiều 13h00- 17h00 từ thứ 2 đến thứ 6; \n- Thứ 7: Sáng 7h00 - 11h00. ","Thực hiện các kỹ thuật điều dưỡng cơ bản  "]
[12,"Trần Thị Vuông","003768/CT-CCHN","Thực hiện các kỹ thuật điều dưỡng cơ bản","Toàn thời gian;\n- Sáng 7h00 – 11h00, chiều 13h00- 17h00 từ thứ 2 đến thứ 6; \n- Thứ 7: Sáng 7h00 - 11h00. ","Thực hiện các kỹ thuật điều dưỡng cơ bản"]
[13,"Nguyễn Thị Nghi","004385/CT-CCHN","Thực hiện theo chức năng nhiệm vụ của điều dưỡng quy định theo Thông tư liên tịch số 26/2015/TTLT-BYT ngày 07/10/2015","Toàn thời gian;\n- Sáng 7h00 – 11h00, chiều 13h00- 17h00 từ thứ 2 đến thứ 6; \n- Thứ 7: Sáng 7h00 - 11h00. ","Thực hiện theo chức năng nhiệm vụ của điều dưỡng quy định theo Thông tư liên tịch số 26/2015/TTLT-BYT ngày 07/10/2015"]
[14,"Lê Thị Bé Vui","004515/CT-CCHN","Thực hiện các kỹ thuật điều dưỡng cơ bản","Toàn thời gian;\n- Sáng 7h00 – 11h00, chiều 13h00- 17h00 từ thứ 2 đến thứ 6; \n- Thứ 7: Sáng 7h00 - 11h00. ","Thực hiện các kỹ thuật điều dưỡng cơ bản"]
[15,"Trần Quỳnh Như","005542/CT-CCHN","Thực hiện theo chức năng nhiệm vụ của điều dưỡng quy định theo Thông tư liên tịch số 26/2015/TTLT-BYT ngày 07/10/2015","Toàn thời gian;\n- Sáng 7h00 – 11h00, chiều 13h00- 17h00 từ thứ 2 đến thứ 6; \n- Thứ 7: Sáng 7h00 - 11h00. ","Thực hiện theo chức năng nhiệm vụ của điều dưỡng quy định theo Thông tư liên tịch số 26/2015/TTLT-BYT ngày 07/10/2015"]
[16,"Tăng Thị Ngọc Huyền","003866/CT-CCHN","Thực hiện các kỹ thuật điều dưỡng cơ bản và một số kỹ thuật điều dưỡng chuyên khoa","Toàn thời gian;\n- Sáng 7h00 – 11h00, chiều 13h00- 17h00 từ thứ 2 đến thứ 6; \n- Thứ 7: Sáng 7h00 - 11h00. ","Thực hiện các kỹ thuật điều dưỡng cơ bản và một số kỹ thuật điều dưỡng chuyên khoa"]
[17,"Phạm Thị Đồng","002767/CT-CCHN","Thực hiện các kỹ thuật điều dưỡng cơ bản","Toàn thời gian;\n- Sáng 7h00 – 11h00, chiều 13h00- 17h00 từ thứ 2 đến thứ 6; \n- Thứ 7: Sáng 7h00 - 11h00. ","Thực hiện các kỹ thuật điều dưỡng cơ bản"]
[18,"Trần Thị Hằng","004800/CT-CCHN","Thực hiện theo chức năng, nhiệm vụ của điều dưỡng theo quy định Thông tư liên tịch 26/2015/TTLT-BYT ngày 07/10/2015","Toàn thời gian;\n- Sáng 7h00 – 11h00, chiều 13h00- 17h00 từ thứ 2 đến thứ 6; \n- Thứ 7: Sáng 7h00 - 11h00. ","Thực hiện theo chức năng, nhiệm vụ của điều dưỡng theo quy định Thông tư liên tịch 26/2015/TTLT-BYT ngày 07/10/2015"]
[19,"Sơn Thị Thanh Hòa","002774/CT-CCHN","Thực hiện các kỹ thuật điều dưỡng cơ bản  ","Toàn thời gian;\n- Sáng 7h00 – 11h00, chiều 13h00- 17h00 từ thứ 2 đến thứ 6; \n- Thứ 7: Sáng 7h00 - 11h00. ","Thực hiện các kỹ thuật điều dưỡng cơ bản  "]
[20,"Mã Huệ Thùy Trinh","003822/CT-CCHN","Thực hiện các kỹ thuật điều dưỡng cơ bản  ","Toàn thời gian;\n- Sáng 7h00 – 11h00, chiều 13h00- 17h00 từ thứ 2 đến thứ 6; \n- Thứ 7: Sáng 7h00 - 11h00. ","Thực hiện các kỹ thuật điều dưỡng cơ bản  "]
[21,"Hoàng Thị Huyền Trang","002853/CT-CCHN","Thực hiện các kỹ thuật điều dưỡng cơ bản  ","Toàn thời gian;\n- Sáng 7h00 – 11h00, chiều 13h00- 17h00 từ thứ 2 đến thứ 6; \n- Thứ 7: Sáng 7h00 - 11h00. ","Thực hiện các kỹ thuật điều dưỡng cơ bản  "]
[22,"Nguyễn Thị Thanh Trúc","004970/CT-CCHN","Thực hiện các kỹ thuật điều dưỡng cơ bản","Toàn thời gian;\n- Sáng 7h00 – 11h00, chiều 13h00- 17h00 từ thứ 2 đến thứ 6; \n- Thứ 7: Sáng 7h00 - 11h00. ","Thực hiện các kỹ thuật điều dưỡng cơ bản"]
[23,"Trương Thị Xuân Trang","005415/CT-CCHN","Thực hiện các kỹ thuật điều dưỡng cơ bản","Toàn thời gian;\n- Sáng 7h00 – 11h00, chiều 13h00- 17h00 từ thứ 2 đến thứ 6; \n- Thứ 7: Sáng 7h00 - 11h00. ","Thực hiện các kỹ thuật điều dưỡng cơ bản"]
[24,"Nguyễn Kiều Diễm","007272/CT-CCHN","Thực hiện theo chức năng nhiệm vụ của điều dưỡng quy định theo Thông tư liên tịch số 26/2015/TTLT-BYT ngày 07/10/2015","Toàn thời gian;\n- Sáng 7h00 – 11h00, chiều 13h00- 17h00 từ thứ 2 đến thứ 6; \n- Thứ 7: Sáng 7h00 - 11h00. ","Thực hiện theo chức năng nhiệm vụ của điều dưỡng quy định theo Thông tư liên tịch số 26/2015/TTLT-BYT ngày 07/10/2015"]
[25,"Nguyễn Thị Ngọc Trang","002833/CT-CCHN","Thực hiện các kỹ thuật điều dưỡng cơ bản","Toàn thời gian;\n- Sáng 7h00 – 11h00, chiều 13h00- 17h00 từ thứ 2 đến thứ 6; \n- Thứ 7: Sáng 7h00 - 11h00. ","Thực hiện các kỹ thuật điều dưỡng cơ bản"]
[null,"KHOA NỘI HÔ HẤP"]
[1,"Phạm Công Tạo","000203/CT-CCHN","Khám bệnh, chữa bệnh chuyên khoa Nhi","Toàn thời gian;\n- Sáng 7h00 – 11h00, chiều 13h00- 17h00 từ thứ 2 đến thứ 6; \n- Thứ 7: Sáng 7h00 - 11h00. ","Khám bệnh, chữa bệnh chuyên khoa Nhi"]
[2,"Võ Thị Kim Nguyên","000194/CT-CCHN","Khám bệnh, chữa bệnh chuyên khoa Nhi","Toàn thời gian;\n- Sáng 7h00 – 11h00, chiều 13h00- 17h00 từ thứ 2 đến thứ 6; \n- Thứ 7: Sáng 7h00 - 11h00. ","Khám bệnh, chữa bệnh chuyên khoa Nhi"]
[3,"Nguyễn Thị Diễm My","005311/CT-CCHN","Khám bệnh, chữa bệnh Nhi khoa","Toàn thời gian;\n- Sáng 7h00 – 11h00, chiều 13h00- 17h00 từ thứ 2 đến thứ 6; \n- Thứ 7: Sáng 7h00 - 11h00. ","Khám bệnh, chữa bệnh Nhi khoa"]
[4,"Thạch Thanh Huyền","003769/CT-CCHN","Khám bệnh, chữa bệnh Nhi khoa","Toàn thời gian;\n- Sáng 7h00 – 11h00, chiều 13h00- 17h00 từ thứ 2 đến thứ 6; \n- Thứ 7: Sáng 7h00 - 11h00. ","Khám bệnh, chữa bệnh Nhi khoa"]
[5,"Lê Trần Thiên Thư","005330/CT-CCHN","Khám bệnh, chữa bệnh Nhi khoa","Toàn thời gian;\n- Sáng 7h00 – 11h00, chiều 13h00- 17h00 từ thứ 2 đến thứ 6; \n- Thứ 7: Sáng 7h00 - 11h00. ","Khám bệnh, chữa bệnh Nhi khoa"]
[6,"Trần Tuấn Vũ","006554/CT-CCHN","Khám bệnh, chữa bệnh Nhi khoa","Toàn thời gian;\n- Sáng 7h00 – 11h00, chiều 13h00- 17h00 từ thứ 2 đến thứ 6; \n- Thứ 7: Sáng 7h00 - 11h00. ","Khám bệnh, chữa bệnh Nhi khoa"]
[7,"Nguyễn Ngọc Thảo Nhi","006554/CT-CCHN","Khám bệnh, chữa bệnh Nhi khoa","Toàn thời gian;\n- Sáng 7h00 – 11h00, chiều 13h00- 17h00 từ thứ 2 đến thứ 6; \n- Thứ 7: Sáng 7h00 - 11h00. ","Khám bệnh, chữa bệnh Nhi khoa"]
[8,"Nguyễn Thị Như Mai","002876/CT-CCHN","Thực hiện các kỹ thuật điều dưỡng cơ bản và các kỹ thuật điều dưỡng chuyên khoa","Toàn thời gian;\n- Sáng 7h00 – 11h00, chiều 13h00- 17h00 từ thứ 2 đến thứ 6; \n- Thứ 7: Sáng 7h00 - 11h00. ","Thực hiện các kỹ thuật điều dưỡng cơ bản và các kỹ thuật điều dưỡng chuyên khoa"]
[9,"Võ Thị Thùy Linh","003791/CT-CCHN","Thực hiện các kỹ thuật điều dưỡng cơ bản và một số kỹ thuật điều dưỡng chuyên khoa","Toàn thời gian;\n- Sáng 7h00 – 11h00, chiều 13h00- 17h00 từ thứ 2 đến thứ 6; \n- Thứ 7: Sáng 7h00 - 11h00. ","Thực hiện các kỹ thuật điều dưỡng cơ bản và một số kỹ thuật điều dưỡng chuyên khoa"]
[10,"Nguyễn Thị Thanh Xuyến","005029/CT-CCHN","Thực hiện các kỹ thuật điều dưỡng cơ bản","Toàn thời gian;\n- Sáng 7h00 – 11h00, chiều 13h00- 17h00 từ thứ 2 đến thứ 6; \n- Thứ 7: Sáng 7h00 - 11h00. ","Thực hiện các kỹ thuật điều dưỡng cơ bản"]
[11,"Trần Xuân Sang","002814/CT-CCHN","Thực hiện các kỹ thuật điều dưỡng cơ bản  ","Toàn thời gian;\n- Sáng 7h00 – 11h00, chiều 13h00- 17h00 từ thứ 2 đến thứ 6; \n- Thứ 7: Sáng 7h00 - 11h00. ","Thực hiện các kỹ thuật điều dưỡng cơ bản  "]
[12,"Nguyễn Thị Diễm My","006284/CT-CCHN","Thực hiện theo chức năng nhiệm vụ của điều dưỡng quy định theo Thông tư liên tịch số 26/2015/TTLT-BYT ngày 07/10/2015","Toàn thời gian;\n- Sáng 7h00 – 11h00, chiều 13h00- 17h00 từ thứ 2 đến thứ 6; \n- Thứ 7: Sáng 7h00 - 11h00. ","Thực hiện theo chức năng nhiệm vụ của điều dưỡng quy định theo Thông tư liên tịch số 26/2015/TTLT-BYT ngày 07/10/2015"]
[13,"Huỳnh Thị Thu Trang","000973/CT-CCHN","Thực hiện các kỹ thuật điều dưỡng cơ bản  ","Toàn thời gian;\n- Sáng 7h00 – 11h00, chiều 13h00- 17h00 từ thứ 2 đến thứ 6; \n- Thứ 7: Sáng 7h00 - 11h00. ","Thực hiện các kỹ thuật điều dưỡng cơ bản  "]
[14,"Nguyễn Thị Xuân Dung","002727/CT-CCHN","Thực hiện các kỹ thuật điều dưỡng cơ bản","Toàn thời gian;\n- Sáng 7h00 – 11h00, chiều 13h00- 17h00 từ thứ 2 đến thứ 6; \n- Thứ 7: Sáng 7h00 - 11h00. ","Thực hiện các kỹ thuật điều dưỡng cơ bản"]
[15,"Trần Thị Lan","005960/CT-CCHN","Thực hiện theo chức năng nhiệm vụ của điều dưỡng quy định theo Thông tư liên tịch số 26/2015/TTLT-BYT ngày 07/10/2015","Toàn thời gian;\n- Sáng 7h00 – 11h00, chiều 13h00- 17h00 từ thứ 2 đến thứ 6; \n- Thứ 7: Sáng 7h00 - 11h00. ","Thực hiện theo chức năng nhiệm vụ của điều dưỡng quy định theo Thông tư liên tịch số 26/2015/TTLT-BYT ngày 07/10/2015"]
[16,"Lê Nguyễn Phương Trúc","006464/CT-CCHN","Thực hiện theo chức năng nhiệm vụ của điều dưỡng quy định theo Thông tư liên tịch số 26/2015/TTLT-BYT ngày 07/10/2015","Toàn thời gian;\n- Sáng 7h00 – 11h00, chiều 13h00- 17h00 từ thứ 2 đến thứ 6; \n- Thứ 7: Sáng 7h00 - 11h00. ","Thực hiện theo chức năng nhiệm vụ của điều dưỡng quy định theo Thông tư liên tịch số 26/2015/TTLT-BYT ngày 07/10/2015"]
[17,"Đàm Thị Chúc Phương","002729/CT-CCHN","Thực hiện các kỹ thuật điều dưỡng cơ bản và một số kỹ thuật điều dưỡng chuyên khoa","Toàn thời gian;\n- Sáng 7h00 – 11h00, chiều 13h00- 17h00 từ thứ 2 đến thứ 6; \n- Thứ 7: Sáng 7h00 - 11h00. ","Thực hiện các kỹ thuật điều dưỡng cơ bản và một số kỹ thuật điều dưỡng chuyên khoa"]
[18,"Lê Thị Hồng Tuyến","002757/CT-CCHN","Thực hiện các kỹ thuật điều dưỡng cơ bản","Toàn thời gian;\n- Sáng 7h00 – 11h00, chiều 13h00- 17h00 từ thứ 2 đến thứ 6; \n- Thứ 7: Sáng 7h00 - 11h00. ","Thực hiện các kỹ thuật điều dưỡng cơ bản"]
[19,"Đỗ Thị Hằng","004993/CT-CCHN","Thực hiện theo chức năng, nhiệm vụ của điều dưỡng theo quy định Thông tư liên tịch 26/2015/TTLT-BYT ngày 07/10/2015","Toàn thời gian;\n- Sáng 7h00 – 11h00, chiều 13h00- 17h00 từ thứ 2 đến thứ 6; \n- Thứ 7: Sáng 7h00 - 11h00. ","Thực hiện theo chức năng, nhiệm vụ của điều dưỡng theo quy định Thông tư liên tịch 26/2015/TTLT-BYT ngày 07/10/2015"]
[20,"Phan Thị Kim Loan","004803/CT-CCHN","Thực hiện các kỹ thuật điều dưỡng cơ bản  ","Toàn thời gian;\n- Sáng 7h00 – 11h00, chiều 13h00- 17h00 từ thứ 2 đến thứ 6; \n- Thứ 7: Sáng 7h00 - 11h00. ","Thực hiện các kỹ thuật điều dưỡng cơ bản  "]
[21,"Nguyễn Thị Trà My","005018/CT-CCHN","Thực hiện theo chức năng nhiệm vụ của điều dưỡng quy định theo Thông tư liên tịch số 26/2015/TTLT-BYT ngày 07/10/2015","Toàn thời gian;\n- Sáng 7h00 – 11h00, chiều 13h00- 17h00 từ thứ 2 đến thứ 6; \n- Thứ 7: Sáng 7h00 - 11h00. ","Thực hiện theo chức năng nhiệm vụ của điều dưỡng quy định theo Thông tư liên tịch số 26/2015/TTLT-BYT ngày 07/10/2015"]
[22,"Vũ Thị Hải Hà","002845/CT-CCHN","Thực hiện các kỹ thuật điều dưỡng cơ bản  ","Toàn thời gian;\n- Sáng 7h00 – 11h00, chiều 13h00- 17h00 từ thứ 2 đến thứ 6; \n- Thứ 7: Sáng 7h00 - 11h00. ","Thực hiện các kỹ thuật điều dưỡng cơ bản  "]
[23,"Thái Thị Thu Hằng","002741/CT-CCHN","Thực hiện các kỹ thuật điều dưỡng cơ bản  ","Toàn thời gian;\n- Sáng 7h00 – 11h00, chiều 13h00- 17h00 từ thứ 2 đến thứ 6; \n- Thứ 7: Sáng 7h00 - 11h00. ","Thực hiện các kỹ thuật điều dưỡng cơ bản  "]
[24,"Trần Văn Nam","003770/CT-CCHN","Thực hiện các kỹ thuật điều dưỡng cơ bản  ","Toàn thời gian;\n- Sáng 7h00 – 11h00, chiều 13h00- 17h00 từ thứ 2 đến thứ 6; \n- Thứ 7: Sáng 7h00 - 11h00. ","Thực hiện các kỹ thuật điều dưỡng cơ bản  "]
[25,"Huỳnh Văn Đàn","002824/CT-CCHN","Thực hiện các kỹ thuật điều dưỡng cơ bản  ","Toàn thời gian;\n- Sáng 7h00 – 11h00, chiều 13h00- 17h00 từ thứ 2 đến thứ 6; \n- Thứ 7: Sáng 7h00 - 11h00. ","Thực hiện các kỹ thuật điều dưỡng cơ bản  "]
[null,"KHOA NỘI TIÊU HÓA"]
[1,"Thái Thanh Lâm","000199/CT-CCHN","Khám bệnh, chữa bệnh chuyên khoa Nhi","Toàn thời gian;\n- Sáng 7h00 – 11h00, chiều 13h00- 17h00 từ thứ 2 đến thứ 6; \n- Thứ 7: Sáng 7h00 - 11h00. ","Khám bệnh, chữa bệnh chuyên khoa Nhi"]
[2,"Lê Văn Viên","0001673/CT-CCHN","Khám bệnh, chữa bệnh nội nhi","Toàn thời gian;\n- Sáng 7h00 – 11h00, chiều 13h00- 17h00 từ thứ 2 đến thứ 6; \n- Thứ 7: Sáng 7h00 - 11h00. ","Khám bệnh, chữa bệnh nội nhi"]
[3,"Đặng Như Ý","004719/CT-CCHN","Khám bệnh, chữa bệnh Nhi khoa","Toàn thời gian;\n- Sáng 7h00 – 11h00, chiều 13h00- 17h00 từ thứ 2 đến thứ 6; \n- Thứ 7: Sáng 7h00 - 11h00. ","Khám bệnh, chữa bệnh Nhi khoa"]
[4,"Trần Lê Thảo Nguyên","004314/CT-CCHN","Khám bệnh, chữa bệnh Nhi khoa","Toàn thời gian;\n- Sáng 7h00 – 11h00, chiều 13h00- 17h00 từ thứ 2 đến thứ 6; \n- Thứ 7: Sáng 7h00 - 11h00. ","Khám bệnh, chữa bệnh Nhi khoa"]
[5,"Nguyễn Tú Giảng","005869/CT-CCHN","Khám bệnh, chữa bệnh Nhi khoa","Toàn thời gian;\n- Sáng 7h00 – 11h00, chiều 13h00- 17h00 từ thứ 2 đến thứ 6; \n- Thứ 7: Sáng 7h00 - 11h00. ","Khám bệnh, chữa bệnh Nhi khoa"]
[6,"Nguyễn Thị Như Huỳnh","005871/CT-CCHN","Khám bệnh, chữa bệnh Nhi khoa","Toàn thời gian;\n- Sáng 7h00 – 11h00, chiều 13h00- 17h00 từ thứ 2 đến thứ 6; \n- Thứ 7: Sáng 7h00 - 11h00. ","Khám bệnh, chữa bệnh Nhi khoa"]
[7,"Trần Ngọc Muội","006545/CT-CCHN","Khám bệnh, chữa bệnh Nhi khoa","Toàn thời gian;\n- Sáng 7h00 – 11h00, chiều 13h00- 17h00 từ thứ 2 đến thứ 6; \n- Thứ 7: Sáng 7h00 - 11h00. ","Khám bệnh, chữa bệnh Nhi khoa"]
[8,"Văn Thanh Cường","005931/CT-CCHN","Khám bệnh, chữa bệnh Nhi khoa","Toàn thời gian;\n- Sáng 7h00 – 11h00, chiều 13h00- 17h00 từ thứ 2 đến thứ 6; \n- Thứ 7: Sáng 7h00 - 11h00. ","Khám bệnh, chữa bệnh Nhi khoa"]
[9,"Phan Lý Hiếu Nghĩa","004731/CT-CCHN","Khám bệnh, chữa bệnh Nhi khoa","Toàn thời gian;\n- Sáng 7h00 – 11h00, chiều 13h00- 17h00 từ thứ 2 đến thứ 6; \n- Thứ 7: Sáng 7h00 - 11h00. ","Khám bệnh, chữa bệnh Nhi khoa"]
[10,"Lê Thị Thu Trang","007468/CT-CCHN","Khám bệnh, chữa bệnh Nhi khoa","Toàn thời gian;\n- Sáng 7h00 – 11h00, chiều 13h00- 17h00 từ thứ 2 đến thứ 6; \n- Thứ 7: Sáng 7h00 - 11h00. ","Khám bệnh, chữa bệnh Nhi khoa"]
[11,"Phan Thị Kiều Hạnh","002718/CT-CCHN","Thực hiện các kỹ thuật điều dưỡng cơ bản và một số kỹ thuật điều dưỡng chuyên khoa","Toàn thời gian;\n- Sáng 7h00 – 11h00, chiều 13h00- 17h00 từ thứ 2 đến thứ 6; \n- Thứ 7: Sáng 7h00 - 11h00. ","Thực hiện các kỹ thuật điều dưỡng cơ bản và một số kỹ thuật điều dưỡng chuyên khoa"]
[12,"Nguyễn Thị Phe","002797/CT-CCHN","Thực hiện các kỹ thuật điều dưỡng cơ bản; Quyết định 2733/QĐ-SYT ngày 13/11/2017 phạm vi hoạt động chuyên môn được bổ sung: thực hiện theo chức năng nhiệm vụ của điều dưỡng quy định tại Thông tư liên tịch số 26/2015/TTLT-BNV-BYT ngày 07/10/2015  ","Toàn thời gian;\n- Sáng 7h00 – 11h00, chiều 13h00- 17h00 từ thứ 2 đến thứ 6; \n- Thứ 7: Sáng 7h00 - 11h00. ","Thực hiện chức năng nhiệm vụ của điều dưỡng "]
[13,"Huỳnh Thế Bảo","006558/CT-CCHN","Thực hiện theo chức năng nhiệm vụ của điều dưỡng quy định theo Thông tư liên tịch số 26/2015/TTLT-BYT ngày 07/10/2015","Toàn thời gian;\n- Sáng 7h00 – 11h00, chiều 13h00- 17h00 từ thứ 2 đến thứ 6; \n- Thứ 7: Sáng 7h00 - 11h00. ","Thực hiện theo chức năng nhiệm vụ của điều dưỡng quy định theo Thông tư liên tịch số 26/2015/TTLT-BYT ngày 07/10/2015"]
[14,"Kim Thị Kiều","002862/CT-CCHN","Thực hiện các kỹ thuật điều dưỡng cơ bản  ","Toàn thời gian;\n- Sáng 7h00 – 11h00, chiều 13h00- 17h00 từ thứ 2 đến thứ 6; \n- Thứ 7: Sáng 7h00 - 11h00. ","Thực hiện các kỹ thuật điều dưỡng cơ bản  "]
[15,"Cao Thị Kim Nhanh","002808/CT-CCHN","Thực hiện các kỹ thuật điều dưỡng cơ bản","Toàn thời gian;\n- Sáng 7h00 – 11h00, chiều 13h00- 17h00 từ thứ 2 đến thứ 6; \n- Thứ 7: Sáng 7h00 - 11h00. ","Thực hiện các kỹ thuật điều dưỡng cơ bản"]
[16,"Nguyễn Thị Bạch Liên","002850/CT-CCHN","Thực hiện các kỹ thuật điều dưỡng cơ bản  ","Toàn thời gian;\n- Sáng 7h00 – 11h00, chiều 13h00- 17h00 từ thứ 2 đến thứ 6; \n- Thứ 7: Sáng 7h00 - 11h00. ","Thực hiện các kỹ thuật điều dưỡng cơ bản  "]
[17,"Dương Thị Thủy","005429/CT-CCHN","Thực hiện các kỹ thuật điều dưỡng cơ bản  ","Toàn thời gian;\n- Sáng 7h00 – 11h00, chiều 13h00- 17h00 từ thứ 2 đến thứ 6; \n- Thứ 7: Sáng 7h00 - 11h00. ","Thực hiện các kỹ thuật điều dưỡng cơ bản  "]
[18,"Vòong Thị Bích Tuyền","002852/CT-CCHN","Thực hiện các kỹ thuật điều dưỡng cơ bản  ","Toàn thời gian;\n- Sáng 7h00 – 11h00, chiều 13h00- 17h00 từ thứ 2 đến thứ 6; \n- Thứ 7: Sáng 7h00 - 11h00. ","Thực hiện các kỹ thuật điều dưỡng cơ bản  "]
[19,"Đinh Thị Tố Như","002879/CT-CCHN","Thực hiện các kỹ thuật điều dưỡng cơ bản  ","Toàn thời gian;\n- Sáng 7h00 – 11h00, chiều 13h00- 17h00 từ thứ 2 đến thứ 6; \n- Thứ 7: Sáng 7h00 - 11h00. ","Thực hiện các kỹ thuật điều dưỡng cơ bản  "]
[20,"Trần Văn Kha","006924/CT-CCHN","Thực hiện theo chức năng nhiệm vụ của điều dưỡng quy định theo Thông tư liên tịch số 26/2015/TTLT-BYT ngày 07/10/2015","Toàn thời gian;\n- Sáng 7h00 – 11h00, chiều 13h00- 17h00 từ thứ 2 đến thứ 6; \n- Thứ 7: Sáng 7h00 - 11h00. ","Thực hiện theo chức năng nhiệm vụ của điều dưỡng quy định theo Thông tư liên tịch số 26/2015/TTLT-BYT ngày 07/10/2015"]
[21,"Kim Thị Sa Oanh","006271/CT-CCHN","Thực hiện theo chức năng nhiệm vụ của điều dưỡng quy định theo Thông tư liên tịch số 26/TTLT-BYT ngày 07/10/2015","Toàn thời gian;\n- Sáng 7h00 – 11h00, chiều 13h00- 17h00 từ thứ 2 đến thứ 6; \n- Thứ 7: Sáng 7h00 - 11h00. ","Thực hiện theo chức năng nhiệm vụ của điều dưỡng quy định theo Thông tư liên tịch số 26/TTLT-BYT ngày 07/10/2015"]
[22,"Huỳnh Như","005949/CT-CCHN","Thực hiện theo chức năng nhiệm vụ của điều dưỡng quy định theo Thông tư liên tịch số 26/2015/TTLT-BYT ngày 07/10/2015","Toàn thời gian;\n- Sáng 7h00 – 11h00, chiều 13h00- 17h00 từ thứ 2 đến thứ 6; \n- Thứ 7: Sáng 7h00 - 11h00. ","Thực hiện theo chức năng nhiệm vụ của điều dưỡng quy định theo Thông tư liên tịch số 26/2015/TTLT-BYT ngày 07/10/2015"]
[23,"Lê Dư Ngọc","001166/HAUG-CCHN","Thực hiện theo Quyết định số 41/2005/QĐ-BNV ngày 22/4/2005 của Bộ trưởng Bộ Nội vụ về việc ban hành tiêu chuẩn nghiệp vụ các ngạch viên chức y tế điều dưỡng","Toàn thời gian;\n- Sáng 7h00 – 11h00, chiều 13h00- 17h00 từ thứ 2 đến thứ 6; \n- Thứ 7: Sáng 7h00 - 11h00. ","Thực hiện theo Quyết định số 41/2005/QĐ-BNV ngày 22/4/2005 của Bộ trưởng Bộ Nội vụ về việc ban hành tiêu chuẩn nghiệp vụ các ngạch viên chức y tế điều dưỡng"]
[24,"Nguyễn Thị Ngọc Cẩm","002799/CT-CCHN","Thực hiện các kỹ thuật điều dưỡng cơ bản  ","Toàn thời gian;\n- Sáng 7h00 – 11h00, chiều 13h00- 17h00 từ thứ 2 đến thứ 6; \n- Thứ 7: Sáng 7h00 - 11h00. ","Thực hiện các kỹ thuật điều dưỡng cơ bản  "]
[25,"Châu Diễm Tuyết","002178/CT-CCHN","Thực hiện các kỹ thuật điều dưỡng cơ bản  ","Toàn thời gian;\n- Sáng 7h00 – 11h00, chiều 13h00- 17h00 từ thứ 2 đến thứ 6; \n- Thứ 7: Sáng 7h00 - 11h00. ","Thực hiện các kỹ thuật điều dưỡng cơ bản  "]
[26,"Nguyễn Kim Ngân","006752/CT-CCHN","Thực hiện theo chức năng nhiệm vụ của điều dưỡng quy định theo Thông tư liên tịch số 26/2015/TTLT-BYT ngày 07/10/2015","Toàn thời gian;\n- Sáng 7h00 – 11h00, chiều 13h00- 17h00 từ thứ 2 đến thứ 6; \n- Thứ 7: Sáng 7h00 - 11h00. ","Thực hiện theo chức năng nhiệm vụ của điều dưỡng quy định theo Thông tư liên tịch số 26/2015/TTLT-BYT ngày 07/10/2015"]
[27,"Lê Thị Mỹ Tú","002830/CT-CCHN","Thực hiện các kỹ thuật điều dưỡng cơ bản  ","Toàn thời gian;\n- Sáng 7h00 – 11h00, chiều 13h00- 17h00 từ thứ 2 đến thứ 6; \n- Thứ 7: Sáng 7h00 - 11h00. ","Thực hiện các kỹ thuật điều dưỡng cơ bản  "]
[null,"KHOA TRUYỀN NHIỄM"]
[1,"Huỳnh Hùng Dũng","000619/CT-CCHN","Khám, chữa bệnh chuyên khoa Nội Nhiễm","Toàn thời gian;\n- Sáng 7h00 – 11h00, chiều 13h00- 17h00 từ thứ 2 đến thứ 6; \n- Thứ 7: Sáng 7h00 - 11h00. ","Khám, chữa bệnh chuyên khoa Nội Nhiễm"]
[2,"Nguyễn Phước Trung","004308/CT-CCHN","Khám bệnh, chữa bệnh Nhi khoa","Toàn thời gian;\n- Sáng 7h00 – 11h00, chiều 13h00- 17h00 từ thứ 2 đến thứ 6; \n- Thứ 7: Sáng 7h00 - 11h00. ","Khám bệnh, chữa bệnh Nhi khoa"]
[3,"Nguyễn Thanh Hoàng","005313/CT-CCHN","Khám bệnh, chữa bệnh Nhi khoa","Toàn thời gian;\n- Sáng 7h00 – 11h00, chiều 13h00- 17h00 từ thứ 2 đến thứ 6; \n- Thứ 7: Sáng 7h00 - 11h00. ","Khám bệnh, chữa bệnh Nhi khoa"]
[4,"Lê Đổ Phương Nhung","006016/CT-CCHN","Khám bệnh, chữa bệnh Nhi khoa","Toàn thời gian;\n- Sáng 7h00 – 11h00, chiều 13h00- 17h00 từ thứ 2 đến thứ 6; \n- Thứ 7: Sáng 7h00 - 11h00. ","Khám bệnh, chữa bệnh Nhi khoa"]
[5,"Phan Nhật Khương","000322/CT-CCHN","Khám bệnh, chữa bệnh Nhi khoa;  Bổ sung phạm vi hoạt động chuyên môn: siêu âm ","Toàn thời gian;\n- Sáng 7h00 – 11h00, chiều 13h00- 17h00 từ thứ 2 đến thứ 6; \n- Thứ 7: Sáng 7h00 - 11h00. ","Khám bệnh, chữa bệnh Nhi khoa;  Bổ sung phạm vi hoạt động chuyên môn: siêu âm "]
[6,"Nhan Minh Ngọc","006552/CT-CCHN","Khám bệnh, chữa bệnh Nhi khoa","Toàn thời gian;\n- Sáng 7h00 – 11h00, chiều 13h00- 17h00 từ thứ 2 đến thứ 6; \n- Thứ 7: Sáng 7h00 - 11h00. ","Khám bệnh, chữa bệnh Nhi khoa"]
[7,"Nguyễn Đoàn Phước Thịnh","006945/CT-CCHN","Khám bệnh, chữa bệnh Nhi khoa","Toàn thời gian;\n- Sáng 7h00 – 11h00, chiều 13h00- 17h00 từ thứ 2 đến thứ 6; \n- Thứ 7: Sáng 7h00 - 11h00. ","Khám bệnh, chữa bệnh Nhi khoa"]
[8,"Nguyễn Thị Hồng Ngọc","002726/CT-CCHN","Thực hiện các kỹ thuật điều dưỡng cơ bản và các kỹ thuật điều dưỡng chuyên khoa","Toàn thời gian;\n- Sáng 7h00 – 11h00, chiều 13h00- 17h00 từ thứ 2 đến thứ 6; \n- Thứ 7: Sáng 7h00 - 11h00. ","Thực hiện các kỹ thuật điều dưỡng cơ bản và các kỹ thuật điều dưỡng chuyên khoa"]
[9,"Phạm Khánh Thoa","003876/CT-CCHN","Thực hiện các kỹ thuật điều dưỡng cơ bản và một số kỹ thuật điều dưỡng chuyên khoa","Toàn thời gian;\n- Sáng 7h00 – 11h00, chiều 13h00- 17h00 từ thứ 2 đến thứ 6; \n- Thứ 7: Sáng 7h00 - 11h00. ","Thực hiện các kỹ thuật điều dưỡng cơ bản và một số kỹ thuật điều dưỡng chuyên khoa"]
[10,"Trần Thị Thu Nguyên","004881/CT-CCHN","Thực hiện theo chức năng nhiệm vụ của điều dưỡng quy định theo Thông tư liên tịch số 26/2015/TTLT-BYT ngày 07/10/2015","Toàn thời gian;\n- Sáng 7h00 – 11h00, chiều 13h00- 17h00 từ thứ 2 đến thứ 6; \n- Thứ 7: Sáng 7h00 - 11h00. ","Thực hiện theo chức năng nhiệm vụ của điều dưỡng quy định theo Thông tư liên tịch số 26/2015/TTLT-BYT ngày 07/10/2015"]
[11,"Nguyễn Ngọc Bảo Trân","002827/CT-CCHN","Thực hiện các kỹ thuật điều dưỡng cơ bản  ","Toàn thời gian;\n- Sáng 7h00 – 11h00, chiều 13h00- 17h00 từ thứ 2 đến thứ 6; \n- Thứ 7: Sáng 7h00 - 11h00. ","Thực hiện các kỹ thuật điều dưỡng cơ bản  "]
[12,"Hoàng Thị Dinh","002854/CT-CCHN","Thực hiện các kỹ thuật điều dưỡng cơ bản  ","Toàn thời gian;\n- Sáng 7h00 – 11h00, chiều 13h00- 17h00 từ thứ 2 đến thứ 6; \n- Thứ 7: Sáng 7h00 - 11h00. ","Thực hiện các kỹ thuật điều dưỡng cơ bản  "]
[13,"Phan Thị Lệ Quân","005207/CT-CCHN","Thực hiện theo chức năng nhiệm vụ của điều dưỡng quy định theo Thông tư liên tịch số 26/2015/TTLT-BYT ngày 07/10/2015","Toàn thời gian;\n- Sáng 7h00 – 11h00, chiều 13h00- 17h00 từ thứ 2 đến thứ 6; \n- Thứ 7: Sáng 7h00 - 11h00. ","Thực hiện theo chức năng nhiệm vụ của điều dưỡng quy định theo Thông tư liên tịch số 26/2015/TTLT-BYT ngày 07/10/2015"]
[14,"Lê Thị Diễm Hằng","006641/CT-CCHN","Thực hiện theo chức năng nhiệm vụ của điều dưỡng quy định theo Thông tư liên tịch số 26/2015/TTLT-BYT ngày 07/10/2015","Toàn thời gian;\n- Sáng 7h00 – 11h00, chiều 13h00- 17h00 từ thứ 2 đến thứ 6; \n- Thứ 7: Sáng 7h00 - 11h00. ","Thực hiện theo chức năng nhiệm vụ của điều dưỡng quy định theo Thông tư liên tịch số 26/2015/TTLT-BYT ngày 07/10/2015"]
[15,"Nguyễn Thị Tuyết Mai","002872/CT-CCHN","Thực hiện các kỹ thuật điều dưỡng cơ bản và các kỹ thuật điều dưỡng chuyên khoa","Toàn thời gian;\n- Sáng 7h00 – 11h00, chiều 13h00- 17h00 từ thứ 2 đến thứ 6; \n- Thứ 7: Sáng 7h00 - 11h00. ","Thực hiện các kỹ thuật điều dưỡng cơ bản và các kỹ thuật điều dưỡng chuyên khoa"]
[16,"Nguyễn Thị Cần","006070/CT-CCHN","Thực hiện theo chức năng nhiệm vụ của điều dưỡng quy định theo Thông tư liên tịch số 26/2015/TTLT-BYT ngày 07/10/2015","Toàn thời gian;\n- Sáng 7h00 – 11h00, chiều 13h00- 17h00 từ thứ 2 đến thứ 6; \n- Thứ 7: Sáng 7h00 - 11h00. ","Thực hiện theo chức năng nhiệm vụ của điều dưỡng quy định theo Thông tư liên tịch số 26/2015/TTLT-BYT ngày 07/10/2015"]
[17,"Diệp Diệu Hậu","003850/CT-CCHN","Thực hiện các kỹ thuật điều dưỡng cơ bản và một số kỹ thuật điều dưỡng chuyên khoa","Toàn thời gian;\n- Sáng 7h00 – 11h00, chiều 13h00- 17h00 từ thứ 2 đến thứ 6; \n- Thứ 7: Sáng 7h00 - 11h00. ","Thực hiện các kỹ thuật điều dưỡng cơ bản và một số kỹ thuật điều dưỡng chuyên khoa"]
[18,"Nguyễn Thị Kim Ngân","006401/CT-CCHN","Thực hiện theo chức năng nhiệm vụ của điều dưỡng quy định theo Thông tư liên tịch số 26/TTLT-BYT ngày 07/10/2015","Toàn thời gian;\n- Sáng 7h00 – 11h00, chiều 13h00- 17h00 từ thứ 2 đến thứ 6; \n- Thứ 7: Sáng 7h00 - 11h00. ","Thực hiện theo chức năng nhiệm vụ của điều dưỡng quy định theo Thông tư liên tịch số 26/TTLT-BYT ngày 07/10/2015"]
[19,"Trần Kim Anh","000418/CT-CCHN","Thực hiện các kỹ thuật điều dưỡng cơ bản ","Toàn thời gian;\n- Sáng 7h00 – 11h00, chiều 13h00- 17h00 từ thứ 2 đến thứ 6; \n- Thứ 7: Sáng 7h00 - 11h00. ","Thực hiện các kỹ thuật điều dưỡng cơ bản "]
[20,"Quan Kim Quý","002768/CT-CCHN","Thực hiện các kỹ thuật điều dưỡng cơ bản  ","Toàn thời gian;\n- Sáng 7h00 – 11h00, chiều 13h00- 17h00 từ thứ 2 đến thứ 6; \n- Thứ 7: Sáng 7h00 - 11h00. ","Thực hiện các kỹ thuật điều dưỡng cơ bản  "]
[21,"Nguyễn Thị Ngọc Thùy","002865/CT-CCHN","Thực hiện các kỹ thuật điều dưỡng cơ bản  ","Toàn thời gian;\n- Sáng 7h00 – 11h00, chiều 13h00- 17h00 từ thứ 2 đến thứ 6; \n- Thứ 7: Sáng 7h00 - 11h00. ","Thực hiện các kỹ thuật điều dưỡng cơ bản  "]
[22,"Trần Vũ Phương","002839/CT-CCHN","Thực hiện các kỹ thuật điều dưỡng cơ bản  ","Toàn thời gian;\n- Sáng 7h00 – 11h00, chiều 13h00- 17h00 từ thứ 2 đến thứ 6; \n- Thứ 7: Sáng 7h00 - 11h00. ","Thực hiện các kỹ thuật điều dưỡng cơ bản  "]
[23,"Lê Thị Huỳnh Như","006235/CT-CCHN","Thực hiện theo chức năng nhiệm vụ của điều dưỡng quy định theo Thông tư liên tịch số 26/2015/TTLT-BYT ngày 07/10/2015","Toàn thời gian;\n- Sáng 7h00 – 11h00, chiều 13h00- 17h00 từ thứ 2 đến thứ 6; \n- Thứ 7: Sáng 7h00 - 11h00. ","Thực hiện theo chức năng nhiệm vụ của điều dưỡng quy định theo Thông tư liên tịch số 26/2015/TTLT-BYT ngày 07/10/2015"]
[null,"KHOA SỐT XUẤT HUYẾT"]
[1,"Nguyễn Huỳnh Nhật Trường","000039/CT-CCHN","Khám bệnh, chữa bệnh chuyên khoa Nhi","Toàn thời gian;\n- Sáng 7h00 – 11h00, chiều 13h00- 17h00 từ thứ 2 đến thứ 6; \n- Thứ 7: Sáng 7h00 - 11h00. ","Khám bệnh, chữa bệnh chuyên khoa Nhi"]
[2,"Dương Văn Hiếu","000103/CT-CCHN","Khám bệnh, chữa bệnh chuyên khoa Nhi","Toàn thời gian;\n- Sáng 7h00 – 11h00, chiều 13h00- 17h00 từ thứ 2 đến thứ 6; \n- Thứ 7: Sáng 7h00 - 11h00. ","Khám bệnh, chữa bệnh chuyên khoa Nhi"]
[3,"Trần Thị Minh Tuyến","005903/CT-CCHN","Khám bệnh, chữa bệnh Nhi khoa","Toàn thời gian;\n- Sáng 7h00 – 11h00, chiều 13h00- 17h00 từ thứ 2 đến thứ 6; \n- Thứ 7: Sáng 7h00 - 11h00. ","Khám bệnh, chữa bệnh Nhi khoa"]
[4,"Thạch Huyền Quý","004316/CT-CCHN","Khám bệnh, chữa bệnh Nhi khoa","Toàn thời gian;\n- Sáng 7h00 – 11h00, chiều 13h00- 17h00 từ thứ 2 đến thứ 6; \n- Thứ 7: Sáng 7h00 - 11h00. ","Khám bệnh, chữa bệnh Nhi khoa"]
[5,"Võ Hồng Phượng","004674/CT-CCHN","Khám bệnh, chữa bệnh chuyên khoa Nhi ","Toàn thời gian;\n- Sáng 7h00 – 11h00, chiều 13h00- 17h00 từ thứ 2 đến thứ 6; \n- Thứ 7: Sáng 7h00 - 11h00. ","Khám bệnh, chữa bệnh chuyên khoa Nhi "]
[6,"Nguyễn Trần Thi Thơ","005319/CT-CCHN","Khám bệnh, chữa bệnh Nhi khoa","Toàn thời gian;\n- Sáng 7h00 – 11h00, chiều 13h00- 17h00 từ thứ 2 đến thứ 6; \n- Thứ 7: Sáng 7h00 - 11h00. ","Khám bệnh, chữa bệnh Nhi khoa"]
[7,"Phạm Thị Bích Thảo","002696/CT-CCHN","Thực hiện các kỹ thuật điều dưỡng cơ bản  ","Toàn thời gian;\n- Sáng 7h00 – 11h00, chiều 13h00- 17h00 từ thứ 2 đến thứ 6; \n- Thứ 7: Sáng 7h00 - 11h00. ","Thực hiện các kỹ thuật điều dưỡng cơ bản  "]
[8,"Nguyễn Ngọc Trâm","002722/CT-CCHN","Thực hiện các kỹ thuật điều dưỡng cơ bản  ","Toàn thời gian;\n- Sáng 7h00 – 11h00, chiều 13h00- 17h00 từ thứ 2 đến thứ 6; \n- Thứ 7: Sáng 7h00 - 11h00. ","Thực hiện các kỹ thuật điều dưỡng cơ bản  "]
[9,"Hoàng Thị Mỹ Hạnh","002856/CT-CCHN","Thực hiện các kỹ thuật điều dưỡng cơ bản  ","Toàn thời gian;\n- Sáng 7h00 – 11h00, chiều 13h00- 17h00 từ thứ 2 đến thứ 6; \n- Thứ 7: Sáng 7h00 - 11h00. ","Thực hiện các kỹ thuật điều dưỡng cơ bản  "]
[10,"Nguyễn Thị Anh Thư","006205/CT-CCHN","Thực hiện các chức năng nhiệm vụ của điều dưỡng quy định theo Thông tư liên tịch số 26/2015/TTLT-BYT ngày 07/10/2015","Toàn thời gian;\n- Sáng 7h00 – 11h00, chiều 13h00- 17h00 từ thứ 2 đến thứ 6; \n- Thứ 7: Sáng 7h00 - 11h00. ","Thực hiện các chức năng nhiệm vụ của điều dưỡng quy định theo Thông tư liên tịch số 26/2015/TTLT-BYT ngày 07/10/2015"]
[11,"Thạch Thị Na Ri","004055/CT-CCHN","Thực hiện các kỹ thuật điều dưỡng cơ bản và một số kỹ thuật điều dưỡng chuyên khoa","Toàn thời gian;\n- Sáng 7h00 – 11h00, chiều 13h00- 17h00 từ thứ 2 đến thứ 6; \n- Thứ 7: Sáng 7h00 - 11h00. ","Thực hiện các kỹ thuật điều dưỡng cơ bản và một số kỹ thuật điều dưỡng chuyên khoa"]
[12,"Lê Thị Y Phương","007533/CT-CCHN","Thực hiện các chức năng nhiệm vụ của điều dưỡng quy định theo Thông tư liên tịch số 26/2015/TTLT-BYT ngày 07/10/2015","Toàn thời gian;\n- Sáng 7h00 – 11h00, chiều 13h00- 17h00 từ thứ 2 đến thứ 6; \n- Thứ 7: Sáng 7h00 - 11h00. ","Thực hiện các chức năng nhiệm vụ của điều dưỡng quy định theo Thông tư liên tịch số 26/2015/TTLT-BYT ngày 07/10/2015"]
[13,"Trần Thị Ngọc Lan","007680/CT-CCHN","Thực hiện các chức năng nhiệm vụ của điều dưỡng quy định theo Thông tư liên tịch số 26/2015/TTLT-BYT ngày 07/10/2016","Toàn thời gian;\n- Sáng 7h00 – 11h00, chiều 13h00- 17h00 từ thứ 2 đến thứ 6; \n- Thứ 7: Sáng 7h00 - 11h00. ","Thực hiện các chức năng nhiệm vụ của điều dưỡng quy định theo Thông tư liên tịch số 26/2015/TTLT-BYT ngày 07/10/2016"]
[14,"Trần Thị Cẩm Tú","003880/CT-CCHN","Thực hiện các kỹ thuật điều dưỡng cơ bản  ","Toàn thời gian;\n- Sáng 7h00 – 11h00, chiều 13h00- 17h00 từ thứ 2 đến thứ 6; \n- Thứ 7: Sáng 7h00 - 11h00. ","Thực hiện các kỹ thuật điều dưỡng cơ bản  "]
[15,"Vũ Thị Manh","002881/CT-CCHN","Thực hiện các kỹ thuật điều dưỡng cơ bản  ","Toàn thời gian;\n- Sáng 7h00 – 11h00, chiều 13h00- 17h00 từ thứ 2 đến thứ 6; \n- Thứ 7: Sáng 7h00 - 11h00. ","Thực hiện các kỹ thuật điều dưỡng cơ bản  "]
[16,"Hoàng Thị Hằng","005203/CT-CCHN","Thực hiện theo chức năng, nhiệm vụ của điều dưỡng theo quy định Thông tư liên tịch 26/2015/TTLT-BYT ngày 07/10/2015","Toàn thời gian;\n- Sáng 7h00 – 11h00, chiều 13h00- 17h00 từ thứ 2 đến thứ 6; \n- Thứ 7: Sáng 7h00 - 11h00. ","Thực hiện theo chức năng, nhiệm vụ của điều dưỡng theo quy định Thông tư liên tịch 26/2015/TTLT-BYT ngày 07/10/2015"]
[17,"Huỳnh Thị Bích Trâm","002304/CT-CCHN","Thực hiện các kỹ thuật điều dưỡng cơ bản  ","Toàn thời gian;\n- Sáng 7h00 – 11h00, chiều 13h00- 17h00 từ thứ 2 đến thứ 6; \n- Thứ 7: Sáng 7h00 - 11h00. ","Thực hiện các kỹ thuật điều dưỡng cơ bản  "]
[null,"KHOA NỘI TIM MẠCH"]
[1,"Nguyễn Thị Bảo Ngọc","000168/CT-CCHN","Khám bệnh, chữa bệnh chuyên khoa Nhi","Toàn thời gian;\n- Sáng 7h00 – 11h00, chiều 13h00- 17h00 từ thứ 2 đến thứ 6; \n- Thứ 7: Sáng 7h00 - 11h00. ","Khám bệnh, chữa bệnh chuyên khoa Nhi"]
[2,"Thạch Minh Đức","000179/CT-CCHN","Khám bệnh, chữa bệnh chuyên khoa Nhi","Toàn thời gian;\n- Sáng 7h00 – 11h00, chiều 13h00- 17h00 từ thứ 2 đến thứ 6; \n- Thứ 7: Sáng 7h00 - 11h00. ","Khám bệnh, chữa bệnh chuyên khoa Nhi"]
[3,"Nguyễn Phương Trang","003674/CT-CCHN","Khám bệnh, chữa bệnh Nhi khoa; Bổ sung siêu âm tim theo Quyết định số 1715/QĐ-SYT ngày 13/7/2017","Toàn thời gian;\n- Sáng 7h00 – 11h00, chiều 13h00- 17h00 từ thứ 2 đến thứ 6; \n- Thứ 7: Sáng 7h00 - 11h00. ","Khám bệnh, chữa bệnh Nhi khoa; siêu âm tim"]
[4,"Lê Hoàng Khoa","002458/CT-CCHN","Khám bệnh, chữa bệnh Nhi khoa","Toàn thời gian;\n- Sáng 7h00 – 11h00, chiều 13h00- 17h00 từ thứ 2 đến thứ 6; \n- Thứ 7: Sáng 7h00 - 11h00. ","Khám bệnh, chữa bệnh Nhi khoa"]
[5,"Nguyễn Anh Tuấn","003715/CT-CCHN","Khám bệnh, chữa bệnh Nhi khoa","Toàn thời gian;\n- Sáng 7h00 – 11h00, chiều 13h00- 17h00 từ thứ 2 đến thứ 6; \n- Thứ 7: Sáng 7h00 - 11h00. ","Khám bệnh, chữa bệnh Nhi khoa"]
[6,"Chanh Rết Cha Na","005323/CT-CCHN","Khám bệnh, chữa bệnh Nhi khoa","Toàn thời gian;\n- Sáng 7h00 – 11h00, chiều 13h00- 17h00 từ thứ 2 đến thứ 6; \n- Thứ 7: Sáng 7h00 - 11h00. ","Khám bệnh, chữa bệnh Nhi khoa"]
[7,"Huỳnh Đức Thành","007158/CT-CCHN","Khám bệnh, chữa bệnh chuyên khoa Nhi","Toàn thời gian;\n- Sáng 7h00 – 11h00, chiều 13h00- 17h00 từ thứ 2 đến thứ 6; \n- Thứ 7: Sáng 7h00 - 11h00. ","Khám bệnh, chữa bệnh chuyên khoa Nhi"]
[8,"Nguyễn Thị Kim Thơi","002851/CT-CCHN","Thực hiện các kỹ thuật điều dưỡng cơ bản  ","Toàn thời gian;\n- Sáng 7h00 – 11h00, chiều 13h00- 17h00 từ thứ 2 đến thứ 6; \n- Thứ 7: Sáng 7h00 - 11h00. ","Thực hiện các kỹ thuật điều dưỡng cơ bản  "]
[9,"Võ Thị Dương","002770/CT-CCHN","Thực hiện các kỹ thuật điều dưỡng cơ bản  ","Toàn thời gian;\n- Sáng 7h00 – 11h00, chiều 13h00- 17h00 từ thứ 2 đến thứ 6; \n- Thứ 7: Sáng 7h00 - 11h00. ","Thực hiện các kỹ thuật điều dưỡng cơ bản  "]
[10,"Tô Thị Mỹ An","006017/CT-CCHN","Thực hiện theo chức năng nhiệm vụ của điều dưỡng quy định theo Thông tư liên tịch số 26/2015/TTLT-BYT ngày 07/10/2015","Toàn thời gian;\n- Sáng 7h00 – 11h00, chiều 13h00- 17h00 từ thứ 2 đến thứ 6; \n- Thứ 7: Sáng 7h00 - 11h00. ","Thực hiện theo chức năng nhiệm vụ của điều dưỡng quy định theo Thông tư liên tịch số 26/2015/TTLT-BYT ngày 07/10/2015"]
[11,"Trương Xuân Nhung","002793/CT-CCHN","Thực hiện các kỹ thuật điều dưỡng cơ bản  ","Toàn thời gian;\n- Sáng 7h00 – 11h00, chiều 13h00- 17h00 từ thứ 2 đến thứ 6; \n- Thứ 7: Sáng 7h00 - 11h00. ","Thực hiện các kỹ thuật điều dưỡng cơ bản  "]
[12,"Thạch Quốc Khánh","005587/CT-CCHN","Thực hiện theo chức năng nhiệm vụ của điều dưỡng quy định theo Thông tư liên tịch số 26/TTLT-BYT ngày 07/10/2015","Toàn thời gian;\n- Sáng 7h00 – 11h00, chiều 13h00- 17h00 từ thứ 2 đến thứ 6; \n- Thứ 7: Sáng 7h00 - 11h00. ","Thực hiện theo chức năng nhiệm vụ của điều dưỡng quy định theo Thông tư liên tịch số 26/TTLT-BYT ngày 07/10/2015"]
[13,"Phan Trung Hiếu","007172/CT-CCHN","Thực hiện theo chức năng nhiệm vụ của điều dưỡng quy định theo Thông tư liên tịch số 26/2015/TTLT-BYT ngày 07/10/2015","Toàn thời gian;\n- Sáng 7h00 – 11h00, chiều 13h00- 17h00 từ thứ 2 đến thứ 6; \n- Thứ 7: Sáng 7h00 - 11h00. ","Thực hiện theo chức năng nhiệm vụ của điều dưỡng quy định theo Thông tư liên tịch số 26/2015/TTLT-BYT ngày 07/10/2015"]
[14,"Nguyễn Thị Mai","004760/CT-CCHN","Thực hiện theo chức năng nhiệm vụ của điều dưỡng quy định theo Thông tư liên tịch số 26/2015/TTLT-BYT ngày 07/10/2015","Toàn thời gian;\n- Sáng 7h00 – 11h00, chiều 13h00- 17h00 từ thứ 2 đến thứ 6; \n- Thứ 7: Sáng 7h00 - 11h00. ","Thực hiện theo chức năng nhiệm vụ của điều dưỡng quy định theo Thông tư liên tịch số 26/2015/TTLT-BYT ngày 07/10/2015"]
[15,"Lưu Thị Bích Nhung","000003/CT-CCHN","Thực hiện việc tiêm (chích), thay băng theo đơn của bác sỹ, đếm mạch, đo nhiệt độ, đo huyết áp","Toàn thời gian;\n- Sáng 7h00 – 11h00, chiều 13h00- 17h00 từ thứ 2 đến thứ 6; \n- Thứ 7: Sáng 7h00 - 11h00. ","Thực hiện việc tiêm (chích), thay băng theo đơn của bác sỹ, đếm mạch, đo nhiệt độ, đo huyết áp"]
[16,"Trần Thị Thúy Thanh","005300/CT-CCHN","Thực hiện theo chức năng nhiệm vụ của điều dưỡng quy định theo Thông tư liên tịch số 26/2015/TTLT-BYT ngày 07/10/2015","Toàn thời gian;\n- Sáng 7h00 – 11h00, chiều 13h00- 17h00 từ thứ 2 đến thứ 6; \n- Thứ 7: Sáng 7h00 - 11h00. ","Thực hiện theo chức năng nhiệm vụ của điều dưỡng quy định theo Thông tư liên tịch số 26/2015/TTLT-BYT ngày 07/10/2015"]
[null,"KHOA CẤP CỨU"]
[1,"Trần Cao Thái","002800/CT-CCHN","Khám bệnh, chữa bệnh chuyên khoa Nhi","Toàn thời gian;\n- Sáng 7h00 – 11h00, chiều 13h00- 17h00 từ thứ 2 đến thứ 6; \n- Thứ 7: Sáng 7h00 - 11h00. ","Khám bệnh, chữa bệnh chuyên khoa Nhi"]
[2,"Nguyễn Trọng Nghĩa","002831/CT-CCHN","Khám bệnh, chữa bệnh Nhi khoa","Toàn thời gian;\n- Sáng 7h00 – 11h00, chiều 13h00- 17h00 từ thứ 2 đến thứ 6; \n- Thứ 7: Sáng 7h00 - 11h00. ","Khám bệnh, chữa bệnh Nhi khoa"]
[3,"Hoàng Ngọc Sương","004291/CT-CCHN","Khám bệnh, chữa bệnh Nhi khoa","Toàn thời gian;\n- Sáng 7h00 – 11h00, chiều 13h00- 17h00 từ thứ 2 đến thứ 6; \n- Thứ 7: Sáng 7h00 - 11h00. ","Khám bệnh, chữa bệnh Nhi khoa"]
[4,"Liêu Thiên Nghệ","005916/CT-CCHN","Khám bệnh, chữa bệnh Nhi khoa","Toàn thời gian;\n- Sáng 7h00 – 11h00, chiều 13h00- 17h00 từ thứ 2 đến thứ 6; \n- Thứ 7: Sáng 7h00 - 11h00. ","Khám bệnh, chữa bệnh Nhi khoa"]
[5,"Dương Thị Huyền Trang","006083/CT-CCHN","Khám bệnh, chữa bệnh Nhi khoa","Toàn thời gian;\n- Sáng 7h00 – 11h00, chiều 13h00- 17h00 từ thứ 2 đến thứ 6; \n- Thứ 7: Sáng 7h00 - 11h00. ","Khám bệnh, chữa bệnh Nhi khoa"]
[6,"Dương Thị Trúc","005316/CT-CCHN","Khám bệnh, chữa bệnh Nhi khoa","Toàn thời gian;\n- Sáng 7h00 – 11h00, chiều 13h00- 17h00 từ thứ 2 đến thứ 6; \n- Thứ 7: Sáng 7h00 - 11h00. ","Khám bệnh, chữa bệnh Nhi khoa"]
[7,"Lê Minh Hải","006948/CT-CCHN","Khám bệnh, chữa bệnh Nhi khoa","Toàn thời gian;\n- Sáng 7h00 – 11h00, chiều 13h00- 17h00 từ thứ 2 đến thứ 6; \n- Thứ 7: Sáng 7h00 - 11h00. ","Khám bệnh, chữa bệnh Nhi khoa"]
[8,"Nguyễn Văn Do","002725/CT-CCHN","Thực hiện các kỹ thuật điều dưỡng cơ bản  ","Toàn thời gian;\n- Sáng 7h00 – 11h00, chiều 13h00- 17h00 từ thứ 2 đến thứ 6; \n- Thứ 7: Sáng 7h00 - 11h00. ","Thực hiện các kỹ thuật điều dưỡng cơ bản  "]
[9,"Nguyễn Thị Bích Thùy","002739/CT-CCHN","Thực hiện các kỹ thuật điều dưỡng cơ bản  ","Toàn thời gian;\n- Sáng 7h00 – 11h00, chiều 13h00- 17h00 từ thứ 2 đến thứ 6; \n- Thứ 7: Sáng 7h00 - 11h00. ","Thực hiện các kỹ thuật điều dưỡng cơ bản  "]
[10,"Phan Thị Thảo Phương","006582/ĐL-CCHN","Thực hiện theo chức năng nhiệm vụ của điều dưỡng quy định theo Thông tư liên tịch số 26/2015/TTLT-BYT ngày 07/10/2015","Toàn thời gian;\n- Sáng 7h00 – 11h00, chiều 13h00- 17h00 từ thứ 2 đến thứ 6; \n- Thứ 7: Sáng 7h00 - 11h00. ","Thực hiện theo chức năng nhiệm vụ của điều dưỡng quy định theo Thông tư liên tịch số 26/2015/TTLT-BYT ngày 07/10/2015"]
[11,"Nguyễn Thị Thương","002709/CT-CCHN","Thực hiện các kỹ thuật điều dưỡng cơ bản","Toàn thời gian;\n- Sáng 7h00 – 11h00, chiều 13h00- 17h00 từ thứ 2 đến thứ 6; \n- Thứ 7: Sáng 7h00 - 11h00. ","Thực hiện các kỹ thuật điều dưỡng cơ bản"]
[12,"Phạm Thị Kiều Oanh","001760/ST-CCHN","Theo quy định tại Quyết định số 41/2005/QĐ-BNV ngày 22/4/2005 của Bộ trưởng Bộ Nội vụ về việc ban hành tiêu chuẩn nghiệp vụ các ngạch viên chức y tế điều dưỡng","Toàn thời gian;\n- Sáng 7h00 – 11h00, chiều 13h00- 17h00 từ thứ 2 đến thứ 6; \n- Thứ 7: Sáng 7h00 - 11h00. ","Theo quy định tại Quyết định số 41/2005/QĐ-BNV ngày 22/4/2005 của Bộ trưởng Bộ Nội vụ về việc ban hành tiêu chuẩn nghiệp vụ các ngạch viên chức y tế điều dưỡng"]
[13,"Nguyễn Thị Hồng Vân","002834/CT-CCHN","Thực hiện các kỹ thuật điều dưỡng cơ bản  ","Toàn thời gian;\n- Sáng 7h00 – 11h00, chiều 13h00- 17h00 từ thứ 2 đến thứ 6; \n- Thứ 7: Sáng 7h00 - 11h00. ","Thực hiện các kỹ thuật điều dưỡng cơ bản  "]
[14,"Phan Thị Mỹ Ngân","006069/CT-CCHN","Thực hiện theo chức năng nhiệm vụ của điều dưỡng quy định theo Thông tư liên tịch số 26/2015/TTLT-BYT ngày 07/10/2015","Toàn thời gian;\n- Sáng 7h00 – 11h00, chiều 13h00- 17h00 từ thứ 2 đến thứ 6; \n- Thứ 7: Sáng 7h00 - 11h00. ","Thực hiện theo chức năng nhiệm vụ của điều dưỡng quy định theo Thông tư liên tịch số 26/2015/TTLT-BYT ngày 07/10/2015"]
[15,"Phan Thị Hợi","006350/CT-CCHN","Thực hiện theo chức năng nhiệm vụ của điều dưỡng quy định theo Thông tư liên tịch số 26/2015/TTLT-BYT ngày 07/10/2015","Toàn thời gian;\n- Sáng 7h00 – 11h00, chiều 13h00- 17h00 từ thứ 2 đến thứ 6; \n- Thứ 7: Sáng 7h00 - 11h00. ","Thực hiện theo chức năng nhiệm vụ của điều dưỡng quy định theo Thông tư liên tịch số 26/2015/TTLT-BYT ngày 07/10/2015"]
[16,"Huỳnh Thị Thu Cúc","006627/CT-CCHN","Thực hiện theo chức năng nhiệm vụ của điều dưỡng quy định theo Thông tư liên tịch số 26/2015/TTLT-BYT ngày 07/10/2015","Toàn thời gian;\n- Sáng 7h00 – 11h00, chiều 13h00- 17h00 từ thứ 2 đến thứ 6; \n- Thứ 7: Sáng 7h00 - 11h00. ","Thực hiện theo chức năng nhiệm vụ của điều dưỡng quy định theo Thông tư liên tịch số 26/2015/TTLT-BYT ngày 07/10/2015"]
[17,"Phạm Kim Ngọc","006085/CT-CCHN","Thực hiện theo chức năng, nhiệm vụ của điều dưỡng theo quy định Thông tư liên tịch 26/2015/TTLT-BYT ngày 07/10/2015","Toàn thời gian;\n- Sáng 7h00 – 11h00, chiều 13h00- 17h00 từ thứ 2 đến thứ 6; \n- Thứ 7: Sáng 7h00 - 11h00. ","Thực hiện theo chức năng, nhiệm vụ của điều dưỡng theo quy định Thông tư liên tịch 26/2015/TTLT-BYT ngày 07/10/2015"]
[18,"Ngô Thị Diễm Kiều","007348/CT-CCHN","Thực hiện theo chức năng, nhiệm vụ của điều dưỡng theo quy định Thông tư liên tịch 26/2015/TTLT-BYT ngày 07/10/2015","Toàn thời gian;\n- Sáng 7h00 – 11h00, chiều 13h00- 17h00 từ thứ 2 đến thứ 6; \n- Thứ 7: Sáng 7h00 - 11h00. ","Thực hiện theo chức năng, nhiệm vụ của điều dưỡng theo quy định Thông tư liên tịch 26/2015/TTLT-BYT ngày 07/10/2015"]
[19,"Nguyễn Dương Hồng Như","007109/CT-CCHN","Thực hiện theo chức năng, nhiệm vụ của điều dưỡng theo quy định Thông tư liên tịch 26/2015/TTLT-BYT ngày 07/10/2015","Toàn thời gian;\n- Sáng 7h00 – 11h00, chiều 13h00- 17h00 từ thứ 2 đến thứ 6; \n- Thứ 7: Sáng 7h00 - 11h00. ","Thực hiện theo chức năng, nhiệm vụ của điều dưỡng theo quy định Thông tư liên tịch 26/2015/TTLT-BYT ngày 07/10/2015"]
[20,"Nguyễn Thị Yến Quyên","005519/CT-CCHN","Thực hiện theo chức năng, nhiệm vụ của điều dưỡng theo quy định Thông tư liên tịch 26/2015/TTLT-BYT ngày 07/10/2015","Toàn thời gian;\n- Sáng 7h00 – 11h00, chiều 13h00- 17h00 từ thứ 2 đến thứ 6; \n- Thứ 7: Sáng 7h00 - 11h00. ","Thực hiện theo chức năng, nhiệm vụ của điều dưỡng theo quy định Thông tư liên tịch 26/2015/TTLT-BYT ngày 07/10/2015"]
[21,"Nguyễn Thị Diễm My","007580/CT-CCHN","Thực hiện theo chức năng, nhiệm vụ của điều dưỡng theo quy định Thông tư liên tịch 26/2015/TTLT-BYT ngày 07/10/2015","Toàn thời gian;\n- Sáng 7h00 – 11h00, chiều 13h00- 17h00 từ thứ 2 đến thứ 6; \n- Thứ 7: Sáng 7h00 - 11h00. ","Thực hiện theo chức năng, nhiệm vụ của điều dưỡng theo quy định Thông tư liên tịch 26/2015/TTLT-BYT ngày 07/10/2015"]
[22,"Nguyễn Bích Ngọc","002828/CT-CCHN","Thực hiện các kỹ thuật điều dưỡng cơ bản  ","Toàn thời gian;\n- Sáng 7h00 – 11h00, chiều 13h00- 17h00 từ thứ 2 đến thứ 6; \n- Thứ 7: Sáng 7h00 - 11h00. ","Thực hiện các kỹ thuật điều dưỡng cơ bản  "]
[23,"Tống Văn Khá Em","002866/CT-CCHN","Thực hiện các kỹ thuật điều dưỡng cơ bản  ","Toàn thời gian;\n- Sáng 7h00 – 11h00, chiều 13h00- 17h00 từ thứ 2 đến thứ 6; \n- Thứ 7: Sáng 7h00 - 11h00. ","Thực hiện các kỹ thuật điều dưỡng cơ bản  "]
[24,"Hà Trúc Ly","003863/CT-CCHN","Thực hiện các kỹ thuật điều dưỡng cơ bản  ","Toàn thời gian;\n- Sáng 7h00 – 11h00, chiều 13h00- 17h00 từ thứ 2 đến thứ 6; \n- Thứ 7: Sáng 7h00 - 11h00. ","Thực hiện các kỹ thuật điều dưỡng cơ bản  "]
[25,"Hồ Thị Thu Hồng","002868/CT-CCHN","Thực hiện các kỹ thuật điều dưỡng cơ bản","Toàn thời gian;\n- Sáng 7h00 – 11h00, chiều 13h00- 17h00 từ thứ 2 đến thứ 6; \n- Thứ 7: Sáng 7h00 - 11h00. ","Thực hiện các kỹ thuật điều dưỡng cơ bản"]
[null,"KHOA HỒI SỨC TÍCH CỰC - CHỐNG ĐỘC"]
[1,"Trần Huỳnh Việt Trang","002771/CT-CCHN","Khám bệnh, chữa bệnh đa khoa - Nhi","Toàn thời gian;\n- Sáng 7h00 – 11h00, chiều 13h00- 17h00 từ thứ 2 đến thứ 6; \n- Thứ 7: Sáng 7h00 - 11h00. ","Khám bệnh, chữa bệnh đa khoa - Nhi"]
[2,"Trần Minh Thành","002882/CT-CCHN","Khám bệnh, chữa bệnh chuyên khoa Nhi","Toàn thời gian;\n- Sáng 7h00 – 11h00, chiều 13h00- 17h00 từ thứ 2 đến thứ 6; \n- Thứ 7: Sáng 7h00 - 11h00. ","Khám bệnh, chữa bệnh chuyên khoa Nhi"]
[3,"Trần Hương Giang","003855/CT-CCHN","Khám bệnh, chữa bệnh Nhi khoa","Toàn thời gian;\n- Sáng 7h00 – 11h00, chiều 13h00- 17h00 từ thứ 2 đến thứ 6; \n- Thứ 7: Sáng 7h00 - 11h00. ","Khám bệnh, chữa bệnh Nhi khoa"]
[4,"Đỗ Huy Thanh","004712/CT-CCHN","Khám bệnh, chữa bệnh Nhi khoa","Toàn thời gian;\n- Sáng 7h00 – 11h00, chiều 13h00- 17h00 từ thứ 2 đến thứ 6; \n- Thứ 7: Sáng 7h00 - 11h00. ","Khám bệnh, chữa bệnh Nhi khoa"]
[5,"Nguyễn Hoàng Sơn","005306/CT-CCHN","Khám bệnh, chữa bệnh Nhi Khoa","Toàn thời gian;\n- Sáng 7h00 – 11h00, chiều 13h00- 17h00 từ thứ 2 đến thứ 6; \n- Thứ 7: Sáng 7h00 - 11h00. ","Khám bệnh, chữa bệnh Nhi Khoa"]
[6,"Bùi Duy Anh","004728/CT-CCHN","Khám bệnh chữa bệnh Nhi khoa","Toàn thời gian;\n- Sáng 7h00 – 11h00, chiều 13h00- 17h00 từ thứ 2 đến thứ 6; \n- Thứ 7: Sáng 7h00 - 11h00. ","Khám bệnh chữa bệnh Nhi khoa"]
[7,"Lê Đệ","005317/CT-CCHN","Khám bệnh, chữa bệnh Nhi khoa","Toàn thời gian;\n- Sáng 7h00 – 11h00, chiều 13h00- 17h00 từ thứ 2 đến thứ 6; \n- Thứ 7: Sáng 7h00 - 11h00. ","Khám bệnh, chữa bệnh Nhi khoa"]
[8,"Trần Thị Thiên Trang","006946/CT-CCHN","Khám bệnh, chữa bệnh Nhi khoa","Toàn thời gian;\n- Sáng 7h00 – 11h00, chiều 13h00- 17h00 từ thứ 2 đến thứ 6; \n- Thứ 7: Sáng 7h00 - 11h00. ","Khám bệnh, chữa bệnh Nhi khoa"]
[9,"Ngô Công Toại","006544/CT-CCHN","Khám bệnh, chữa bệnh Nhi Khoa","Toàn thời gian;\n- Sáng 7h00 – 11h00, chiều 13h00- 17h00 từ thứ 2 đến thứ 6; \n- Thứ 7: Sáng 7h00 - 11h00. ","Khám bệnh, chữa bệnh Nhi Khoa"]
[10,"Nguyễn Trung Kiên","006947/CT-CCHN","Khám bệnh, chữa bệnh Nhi khoa","Toàn thời gian;\n- Sáng 7h00 – 11h00, chiều 13h00- 17h00 từ thứ 2 đến thứ 6; \n- Thứ 7: Sáng 7h00 - 11h00. ","Khám bệnh, chữa bệnh Nhi khoa"]
[11,"Nguyễn Thái Phương Anh","002710/CT-CCHN","Thực hiện các kỹ thuật điều dưỡng cơ bản và các kỹ thuật điều dưỡng chuyên khoa","Toàn thời gian;\n- Sáng 7h00 – 11h00, chiều 13h00- 17h00 từ thứ 2 đến thứ 6; \n- Thứ 7: Sáng 7h00 - 11h00. ","Thực hiện các kỹ thuật điều dưỡng cơ bản và các kỹ thuật điều dưỡng chuyên khoa"]
[12,"Mai Thanh Giang","002742/CT-CCHN","Thực hiện các kỹ thuật điều dưỡng cơ bản  ","Toàn thời gian;\n- Sáng 7h00 – 11h00, chiều 13h00- 17h00 từ thứ 2 đến thứ 6; \n- Thứ 7: Sáng 7h00 - 11h00. ","Thực hiện các kỹ thuật điều dưỡng cơ bản  "]
[13,"Nguyễn Thị Lụa","002746/CT-CCHN","Thực hiện các kỹ thuật điều dưỡng cơ bản  ","Toàn thời gian;\n- Sáng 7h00 – 11h00, chiều 13h00- 17h00 từ thứ 2 đến thứ 6; \n- Thứ 7: Sáng 7h00 - 11h00. ","Thực hiện các kỹ thuật điều dưỡng cơ bản  "]
[14,"Hồ Cẩm Quyền","004780/CT-CCHN","Thực hiện theo chức năng nhiệm vụ của điều dưỡng quy định theo Thông tư liên tịch số 26/2015/TTLT-BYT ngày 07/10/2015","Toàn thời gian;\n- Sáng 7h00 – 11h00, chiều 13h00- 17h00 từ thứ 2 đến thứ 6; \n- Thứ 7: Sáng 7h00 - 11h00. ","Thực hiện theo chức năng nhiệm vụ của điều dưỡng quy định theo Thông tư liên tịch số 26/2015/TTLT-BYT ngày 07/10/2015"]
[15,"Huỳnh Thị Mười Ba","002790/CT-CCHN","Thực hiện các kỹ thuật điều dưỡng cơ bản  ","Toàn thời gian;\n- Sáng 7h00 – 11h00, chiều 13h00- 17h00 từ thứ 2 đến thứ 6; \n- Thứ 7: Sáng 7h00 - 11h00. ","Thực hiện các kỹ thuật điều dưỡng cơ bản  "]
[16,"Trương Thị Kim Lan","005597/CT-CCHN","Thực hiện theo chức năng nhiệm vụ của điều dưỡng quy định theo Thông tư liên tịch số 26/2015/TTLT-BYT ngày 07/10/2015","Toàn thời gian;\n- Sáng 7h00 – 11h00, chiều 13h00- 17h00 từ thứ 2 đến thứ 6; \n- Thứ 7: Sáng 7h00 - 11h00. ","Thực hiện theo chức năng nhiệm vụ của điều dưỡng quy định theo Thông tư liên tịch số 26/2015/TTLT-BYT ngày 07/10/2015"]
[17,"Tạ Văn Thum","002759/CT-CCHN","Thực hiện các kỹ thuật điều dưỡng cơ bản  ","Toàn thời gian;\n- Sáng 7h00 – 11h00, chiều 13h00- 17h00 từ thứ 2 đến thứ 6; \n- Thứ 7: Sáng 7h00 - 11h00. ","Thực hiện các kỹ thuật điều dưỡng cơ bản  "]
[18,"Tăng Thị Yến Trinh","004962/CT-CCHN","Thực hiện các kỹ thuật điều dưỡng cơ bản  ","Toàn thời gian;\n- Sáng 7h00 – 11h00, chiều 13h00- 17h00 từ thứ 2 đến thứ 6; \n- Thứ 7: Sáng 7h00 - 11h00. ","Thực hiện các kỹ thuật điều dưỡng cơ bản  "]
[19,"Nguyễn Thị Kim Oanh","004855/CT-CCHN","Thực hiện theo chức năng nhiệm vụ của điều dưỡng quy định theo Thông tư liên tịch số 26/2015/TTLT-BYT ngày 07/10/2015","Toàn thời gian;\n- Sáng 7h00 – 11h00, chiều 13h00- 17h00 từ thứ 2 đến thứ 6; \n- Thứ 7: Sáng 7h00 - 11h00. ","Thực hiện theo chức năng nhiệm vụ của điều dưỡng quy định theo Thông tư liên tịch số 26/2015/TTLT-BYT ngày 07/10/2015"]
[20,"Trần Thị Thảo Nguyên","004961/CT-CCHN","Thực hiện theo chức năng nhiệm vụ của điều dưỡng quy định theo Thông tư liên tịch số 26/2015/TTLT-BYT ngày 07/10/2015","Toàn thời gian;\n- Sáng 7h00 – 11h00, chiều 13h00- 17h00 từ thứ 2 đến thứ 6; \n- Thứ 7: Sáng 7h00 - 11h00. ","Thực hiện theo chức năng nhiệm vụ của điều dưỡng quy định theo Thông tư liên tịch số 26/2015/TTLT-BYT ngày 07/10/2015"]
[21,"Đào Thị Mai","005923/CT-CCHN","Thực hiện theo chức năng nhiệm vụ của điều dưỡng quy định theo Thông tư liên tịch số 26/2015/TTLT-BYT ngày 07/10/2015","Toàn thời gian;\n- Sáng 7h00 – 11h00, chiều 13h00- 17h00 từ thứ 2 đến thứ 6; \n- Thứ 7: Sáng 7h00 - 11h00. ","Thực hiện theo chức năng nhiệm vụ của điều dưỡng quy định theo Thông tư liên tịch số 26/2015/TTLT-BYT ngày 07/10/2015"]
[22,"Huỳnh Thị Băng Tâm","006918/CT-CCHN","Thực hiện theo chức năng nhiệm vụ của điều dưỡng quy định theo Thông tư liên tịch số 26/2015/TTLT-BYT ngày 07/10/2015","Toàn thời gian;\n- Sáng 7h00 – 11h00, chiều 13h00- 17h00 từ thứ 2 đến thứ 6; \n- Thứ 7: Sáng 7h00 - 11h00. ","Thực hiện theo chức năng nhiệm vụ của điều dưỡng quy định theo Thông tư liên tịch số 26/2015/TTLT-BYT ngày 07/10/2015"]
[23,"Lý Ngọc Thạnh","003723/CT-CCHN","Thực hiện các kỹ thuật điều dưỡng cơ bản  ","Toàn thời gian;\n- Sáng 7h00 – 11h00, chiều 13h00- 17h00 từ thứ 2 đến thứ 6; \n- Thứ 7: Sáng 7h00 - 11h00. ","Thực hiện các kỹ thuật điều dưỡng cơ bản  "]
[24,"Thạch Thị Loan","002861/CT-CCHN","Thực hiện các kỹ thuật điều dưỡng cơ bản  ","Toàn thời gian;\n- Sáng 7h00 – 11h00, chiều 13h00- 17h00 từ thứ 2 đến thứ 6; \n- Thứ 7: Sáng 7h00 - 11h00. ","Thực hiện các kỹ thuật điều dưỡng cơ bản  "]
[25,"Nguyễn Thị Hồng Đào","002886/CT-CCHN","Thực hiện các kỹ thuật điều dưỡng cơ bản  ","Toàn thời gian;\n- Sáng 7h00 – 11h00, chiều 13h00- 17h00 từ thứ 2 đến thứ 6; \n- Thứ 7: Sáng 7h00 - 11h00. ","Thực hiện các kỹ thuật điều dưỡng cơ bản  "]
[26,"Phạm Thị Nhàn","002822/CT-CCHN","Thực hiện các kỹ thuật điều dưỡng cơ bản  ","Toàn thời gian;\n- Sáng 7h00 – 11h00, chiều 13h00- 17h00 từ thứ 2 đến thứ 6; \n- Thứ 7: Sáng 7h00 - 11h00. ","Thực hiện các kỹ thuật điều dưỡng cơ bản  "]
[27,"Cao Thị Hương Huệ","002806/CT-CCHN","Thực hiện các kỹ thuật điều dưỡng cơ bản  ","Toàn thời gian;\n- Sáng 7h00 – 11h00, chiều 13h00- 17h00 từ thứ 2 đến thứ 6; \n- Thứ 7: Sáng 7h00 - 11h00. ","Thực hiện các kỹ thuật điều dưỡng cơ bản  "]
[28,"Đào Yến Vi","002801/CT-CCHN","Thực hiện các kỹ thuật điều dưỡng cơ bản  ","Toàn thời gian;\n- Sáng 7h00 – 11h00, chiều 13h00- 17h00 từ thứ 2 đến thứ 6; \n- Thứ 7: Sáng 7h00 - 11h00. ","Thực hiện các kỹ thuật điều dưỡng cơ bản  "]
[29,"Nguyễn Hoàng Minh","003825/CT-CCHN","Thực hiện các kỹ thuật điều dưỡng cơ bản  ","Toàn thời gian;\n- Sáng 7h00 – 11h00, chiều 13h00- 17h00 từ thứ 2 đến thứ 6; \n- Thứ 7: Sáng 7h00 - 11h00. ","Thực hiện các kỹ thuật điều dưỡng cơ bản  "]
[30,"Nguyễn Văn Tình","004693/CT-CCHN","Thực hiện các kỹ thuật điều dưỡng cơ bản  ","Toàn thời gian;\n- Sáng 7h00 – 11h00, chiều 13h00- 17h00 từ thứ 2 đến thứ 6; \n- Thứ 7: Sáng 7h00 - 11h00. ","Thực hiện các kỹ thuật điều dưỡng cơ bản  "]
[31,"Dương Minh Huy","007099/CT-CCHN","Khám bệnh, chữa bệnh Nhi Khoa","Toàn thời gian;\n- Sáng 7h00 – 11h00, chiều 13h00- 17h00 từ thứ 2 đến thứ 6; \n- Thứ 7: Sáng 7h00 - 11h00. ","Khám bệnh, chữa bệnh Nhi Khoa"]
[null,"KHOA SƠ SINH"]
[1,"Diệp Loan","000743/CT-CCHN","Khám bệnh, chữa bệnh chuyên khoa Nội Nhi","Toàn thời gian;\n- Sáng 7h00 – 11h00, chiều 13h00- 17h00 từ thứ 2 đến thứ 6; \n- Thứ 7: Sáng 7h00 - 11h00. ","Khám bệnh, chữa bệnh chuyên khoa Nội Nhi"]
[2,"Bùi Thị Phương Anh","002832/CT-CCHN","Khám chữa bệnh chuyên khoa Nhi","Toàn thời gian;\n- Sáng 7h00 – 11h00, chiều 13h00- 17h00 từ thứ 2 đến thứ 6; \n- Thứ 7: Sáng 7h00 - 11h00. ","Khám chữa bệnh chuyên khoa Nhi"]
[3,"Huỳnh Thị Loan Anh","003746/CT-CCHN","Khám chữa bệnh Nhi khoa","Toàn thời gian;\n- Sáng 7h00 – 11h00, chiều 13h00- 17h00 từ thứ 2 đến thứ 6; \n- Thứ 7: Sáng 7h00 - 11h00. ","Khám chữa bệnh Nhi khoa"]
[4,"Võ Thị Việt Anh","004420/CT-CCHN","Khám chữa bệnh Nhi khoa","Toàn thời gian;\n- Sáng 7h00 – 11h00, chiều 13h00- 17h00 từ thứ 2 đến thứ 6; \n- Thứ 7: Sáng 7h00 - 11h00. ","Khám chữa bệnh Nhi khoa"]
[5,"Lâm Ngọc Nữ","004398/CT-CCHN","Khám bệnh, chữa bệnh Nhi khoa","Toàn thời gian;\n- Sáng 7h00 – 11h00, chiều 13h00- 17h00 từ thứ 2 đến thứ 6; \n- Thứ 7: Sáng 7h00 - 11h00. ","Khám bệnh, chữa bệnh Nhi khoa"]
[6,"Lê Hoàng Thiện","005322/CT-CCHN","Khám bệnh, chữa bệnh Nhi khoa","Toàn thời gian;\n- Sáng 7h00 – 11h00, chiều 13h00- 17h00 từ thứ 2 đến thứ 6; \n- Thứ 7: Sáng 7h00 - 11h00. ","Khám bệnh, chữa bệnh Nhi khoa"]
[7,"Dương Thị Bảo Trân","005921/CT-CCHN","Khám bệnh, chữa bệnh Nhi khoa","Toàn thời gian;\n- Sáng 7h00 – 11h00, chiều 13h00- 17h00 từ thứ 2 đến thứ 6; \n- Thứ 7: Sáng 7h00 - 11h00. ","Khám bệnh, chữa bệnh Nhi khoa"]
[8,"Kiều Minh Quân","007077/CT-CCHN","Khám bệnh, chữa bệnh Nhi khoa","Toàn thời gian;\n- Sáng 7h00 – 11h00, chiều 13h00- 17h00 từ thứ 2 đến thứ 6; \n- Thứ 7: Sáng 7h00 - 11h00. ","Khám bệnh, chữa bệnh Nhi khoa"]
[9,"Trần Thị Kim Tuyến","002721/CT-CCHN","Thực hiện các kỹ thuật điều dưỡng cơ bản  ","Toàn thời gian;\n- Sáng 7h00 – 11h00, chiều 13h00- 17h00 từ thứ 2 đến thứ 6; \n- Thứ 7: Sáng 7h00 - 11h00. ","Thực hiện các kỹ thuật điều dưỡng cơ bản  "]
[10,"Huỳnh Thị Huyền Trang","003813/CT-CCHN","Thực hiện các kỹ thuật điều dưỡng cơ bản  ","Toàn thời gian;\n- Sáng 7h00 – 11h00, chiều 13h00- 17h00 từ thứ 2 đến thứ 6; \n- Thứ 7: Sáng 7h00 - 11h00. ","Thực hiện các kỹ thuật điều dưỡng cơ bản  "]
[11,"Nguyễn Thị Ngọc Thy","004783/CT-CCHN","Thực hiện các kỹ thuật điều dưỡng cơ bản  ","Toàn thời gian;\n- Sáng 7h00 – 11h00, chiều 13h00- 17h00 từ thứ 2 đến thứ 6; \n- Thứ 7: Sáng 7h00 - 11h00. ","Thực hiện các kỹ thuật điều dưỡng cơ bản  "]
[12,"Trần Thị Thiên Hương","004789/CT-CCHN","Thực hiện theo chức năng, nhiệm vụ của điều dưỡng theo quy định Thông tư liên tịch 26/2015/TTLT-BYT ngày 07/10/2015","Toàn thời gian;\n- Sáng 7h00 – 11h00, chiều 13h00- 17h00 từ thứ 2 đến thứ 6; \n- Thứ 7: Sáng 7h00 - 11h00. ","Thực hiện theo chức năng, nhiệm vụ của điều dưỡng theo quy định Thông tư liên tịch 26/2015/TTLT-BYT ngày 07/10/2015"]
[13,"Nguyễn Thị Dũ","002702/CT-CCHN","Thực hiện các kỹ thuật điều dưỡng cơ bản  ","Toàn thời gian;\n- Sáng 7h00 – 11h00, chiều 13h00- 17h00 từ thứ 2 đến thứ 6; \n- Thứ 7: Sáng 7h00 - 11h00. ","Thực hiện các kỹ thuật điều dưỡng cơ bản  "]
[14,"Nguyễn Thị Sen Em","002816/CT-CCHN","Thực hiện các kỹ thuật điều dưỡng cơ bản  ","Toàn thời gian;\n- Sáng 7h00 – 11h00, chiều 13h00- 17h00 từ thứ 2 đến thứ 6; \n- Thứ 7: Sáng 7h00 - 11h00. ","Thực hiện các kỹ thuật điều dưỡng cơ bản  "]
[15,"Phạm Thị Thúy Kiều","004811/CT-CCHN","Thực hiện theo chức năng nhiệm vụ của điều dưỡng quy định theo Thông tư liên tịch số 26/2015/TTLT-BYT ngày 07/10/2015","Toàn thời gian;\n- Sáng 7h00 – 11h00, chiều 13h00- 17h00 từ thứ 2 đến thứ 6; \n- Thứ 7: Sáng 7h00 - 11h00. ","Thực hiện theo chức năng nhiệm vụ của điều dưỡng quy định theo Thông tư liên tịch số 26/2015/TTLT-BYT ngày 07/10/2015"]
[16,"Trần Thị Huyền","004756/CT-CCHN","Thực hiện theo chức năng, nhiệm vụ của điều dưỡng theo quy định Thông tư liên tịch 26/2015/TTLT-BYT ngày 07/10/2015","Toàn thời gian;\n- Sáng 7h00 – 11h00, chiều 13h00- 17h00 từ thứ 2 đến thứ 6; \n- Thứ 7: Sáng 7h00 - 11h00. ","Thực hiện theo chức năng, nhiệm vụ của điều dưỡng theo quy định Thông tư liên tịch 26/2015/TTLT-BYT ngày 07/10/2015"]
[17,"Nguyễn Thị Xuân Thu","005087/CT-CCHN","Thực hiện theo chức năng, nhiệm vụ của điều dưỡng theo quy định Thông tư liên tịch 26/2015/TTLT-BYT ngày 07/10/2015","Toàn thời gian;\n- Sáng 7h00 – 11h00, chiều 13h00- 17h00 từ thứ 2 đến thứ 6; \n- Thứ 7: Sáng 7h00 - 11h00. ","Thực hiện theo chức năng, nhiệm vụ của điều dưỡng theo quy định Thông tư liên tịch 26/2015/TTLT-BYT ngày 07/10/2015"]
[18,"Lê Kiều Diễm","002783/CT-CCHN","Thực hiện các kỹ thuật điều dưỡng cơ bản  ","Toàn thời gian;\n- Sáng 7h00 – 11h00, chiều 13h00- 17h00 từ thứ 2 đến thứ 6; \n- Thứ 7: Sáng 7h00 - 11h00. ","Thực hiện các kỹ thuật điều dưỡng cơ bản  "]
[19,"Bùi Nhựt Kim Anh","002704/CT-CCHN","Thực hiện các kỹ thuật điều dưỡng cơ bản  ","Toàn thời gian;\n- Sáng 7h00 – 11h00, chiều 13h00- 17h00 từ thứ 2 đến thứ 6; \n- Thứ 7: Sáng 7h00 - 11h00. ","Thực hiện các kỹ thuật điều dưỡng cơ bản  "]
[20,"Nguyễn Văn Lành","003728/CT-CCHN","Thực hiện các kỹ thuật điều dưỡng cơ bản  ","Toàn thời gian;\n- Sáng 7h00 – 11h00, chiều 13h00- 17h00 từ thứ 2 đến thứ 6; \n- Thứ 7: Sáng 7h00 - 11h00. ","Thực hiện các kỹ thuật điều dưỡng cơ bản  "]
[21,"Nguyễn Thị Thảo","002745/CT-CCHN","Thực hiện các kỹ thuật điều dưỡng cơ bản  ","Toàn thời gian;\n- Sáng 7h00 – 11h00, chiều 13h00- 17h00 từ thứ 2 đến thứ 6; \n- Thứ 7: Sáng 7h00 - 11h00. ","Thực hiện các kỹ thuật điều dưỡng cơ bản  "]
[22,"Nguyễn Thị Ngọc Yến","004781/CT-CCHN","Thực hiện các kỹ thuật điều dưỡng cơ bản  ","Toàn thời gian;\n- Sáng 7h00 – 11h00, chiều 13h00- 17h00 từ thứ 2 đến thứ 6; \n- Thứ 7: Sáng 7h00 - 11h00. ","Thực hiện các kỹ thuật điều dưỡng cơ bản  "]
[23,"Nguyễn Thị Huyền Trang","0004778/CT-CCHN","Thực hiện các kỹ thuật điều dưỡng cơ bản  ","Toàn thời gian;\n- Sáng 7h00 – 11h00, chiều 13h00- 17h00 từ thứ 2 đến thứ 6; \n- Thứ 7: Sáng 7h00 - 11h00. ","Thực hiện các kỹ thuật điều dưỡng cơ bản  "]
[24,"Nguyễn Văn Thừa","002874/CT-CCHN","Thực hiện các kỹ thuật điều dưỡng cơ bản  ","Toàn thời gian;\n- Sáng 7h00 – 11h00, chiều 13h00- 17h00 từ thứ 2 đến thứ 6; \n- Thứ 7: Sáng 7h00 - 11h00. ","Thực hiện các kỹ thuật điều dưỡng cơ bản  "]
[25,"Lê Thị Thúy Hằng","002787/CT-CCHN","Thực hiện các kỹ thuật điều dưỡng cơ bản  ","Toàn thời gian;\n- Sáng 7h00 – 11h00, chiều 13h00- 17h00 từ thứ 2 đến thứ 6; \n- Thứ 7: Sáng 7h00 - 11h00. ","Thực hiện các kỹ thuật điều dưỡng cơ bản  "]
[26,"Lâm Mỹ Linh","002871/CT-CCHN","Thực hiện các kỹ thuật điều dưỡng cơ bản  ","Toàn thời gian;\n- Sáng 7h00 – 11h00, chiều 13h00- 17h00 từ thứ 2 đến thứ 6; \n- Thứ 7: Sáng 7h00 - 11h00. ","Thực hiện các kỹ thuật điều dưỡng cơ bản  "]
[27,"Lê Hạng Em","007589/CT-CCHN","Thực hiện theo chức năng, nhiệm vụ của điều dưỡng theo quy định Thông tư liên tịch 26/2015/TTLT-BYT ngày 07/10/2015","Toàn thời gian;\n- Sáng 7h00 – 11h00, chiều 13h00- 17h00 từ thứ 2 đến thứ 6; \n- Thứ 7: Sáng 7h00 - 11h00. ","Thực hiện theo chức năng, nhiệm vụ của điều dưỡng theo quy định Thông tư liên tịch 26/2015/TTLT-BYT ngày 07/10/2015"]
[28,"Lê Thị Sang","002750/CT-CCHN","Thực hiện các kỹ thuật điều dưỡng cơ bản  ","Toàn thời gian;\n- Sáng 7h00 – 11h00, chiều 13h00- 17h00 từ thứ 2 đến thứ 6; \n- Thứ 7: Sáng 7h00 - 11h00. ","Thực hiện các kỹ thuật điều dưỡng cơ bản  "]
[29,"Lê Thị Hoàng Dung","002805/CT-CCHN","Thực hiện các kỹ thuật điều dưỡng cơ bản  ","Toàn thời gian;\n- Sáng 7h00 – 11h00, chiều 13h00- 17h00 từ thứ 2 đến thứ 6; \n- Thứ 7: Sáng 7h00 - 11h00. ","Thực hiện các kỹ thuật điều dưỡng cơ bản  "]
[null,"KHOA KHÁM BỆNH"]
[1,"Trương Cẩm Trinh","000525/CT-CCHN","Khám bệnh, chữa bệnh chuyên khoa Nhi","Toàn thời gian;\n- Sáng 7h00 – 11h00, chiều 13h00- 17h00 từ thứ 2 đến thứ 6; \n- Thứ 7: Sáng 7h00 - 11h00. ","Khám bệnh, chữa bệnh chuyên khoa Nhi"]
[2,"Kiều Việt Tiến Hưng","004073/CT-CCHN","Khám bệnh, chữa bệnh Nhi khoa","Toàn thời gian;\n- Sáng 7h00 – 11h00, chiều 13h00- 17h00 từ thứ 2 đến thứ 6; \n- Thứ 7: Sáng 7h00 - 11h00. ","Khám bệnh, chữa bệnh Nhi khoa"]
[3,"Nguyễn Đăng Khoa","004244/CT-CCHN","Khám bệnh, chữa bệnh Nhi khoa","Toàn thời gian;\n- Sáng 7h00 – 11h00, chiều 13h00- 17h00 từ thứ 2 đến thứ 6; \n- Thứ 7: Sáng 7h00 - 11h00. ","Khám bệnh, chữa bệnh Nhi khoa"]
[4,"Ngô Quý Phong","003848/CT-CCHN","Khám bệnh, chữa bệnh Nhi khoa","Toàn thời gian;\n- Sáng 7h00 – 11h00, chiều 13h00- 17h00 từ thứ 2 đến thứ 6; \n- Thứ 7: Sáng 7h00 - 11h00. ","Khám bệnh, chữa bệnh Nhi khoa"]
[5,"Nguyễn Bá Đạt","004710/CT-CCHN","Khám bệnh, chữa bệnh Nhi khoa","Toàn thời gian;\n- Sáng 7h00 – 11h00, chiều 13h00- 17h00 từ thứ 2 đến thứ 6; \n- Thứ 7: Sáng 7h00 - 11h00. ","Khám bệnh, chữa bệnh Nhi khoa"]
[6,"Nguyễn Thị Thanh Kiều","005333/CT-CCHN","Khám bệnh, chữa bệnh Nhi khoa","Toàn thời gian;\n- Sáng 7h00 – 11h00, chiều 13h00- 17h00 từ thứ 2 đến thứ 6; \n- Thứ 7: Sáng 7h00 - 11h00. ","Khám bệnh, chữa bệnh Nhi khoa"]
[7,"Nguyễn Thị Thu Tâm","002712/CT-CCHN","Thực hiện các kỹ thuật điều dưỡng cơ bản  ","Toàn thời gian;\n- Sáng 7h00 – 11h00, chiều 13h00- 17h00 từ thứ 2 đến thứ 6; \n- Thứ 7: Sáng 7h00 - 11h00. ","Thực hiện các kỹ thuật điều dưỡng cơ bản  "]
[8,"Neáng Chanh Pô Pha","002864/CT-CCHN","Thực hiện các kỹ thuật điều dưỡng cơ bản  ","Toàn thời gian;\n- Sáng 7h00 – 11h00, chiều 13h00- 17h00 từ thứ 2 đến thứ 6; \n- Thứ 7: Sáng 7h00 - 11h00. ","Thực hiện các kỹ thuật điều dưỡng cơ bản  "]
[9,"Nguyễn Thị Kim Phụng","002860/CT-CCHN","Thực hiện các kỹ thuật điều dưỡng cơ bản  ","Toàn thời gian;\n- Sáng 7h00 – 11h00, chiều 13h00- 17h00 từ thứ 2 đến thứ 6; \n- Thứ 7: Sáng 7h00 - 11h00. ","Thực hiện các kỹ thuật điều dưỡng cơ bản  "]
[10,"Huỳnh Thị Ngọc Liễu","002736/CT-CCHN","Thực hiện các kỹ thuật điều dưỡng cơ bản  ","Toàn thời gian;\n- Sáng 7h00 – 11h00, chiều 13h00- 17h00 từ thứ 2 đến thứ 6; \n- Thứ 7: Sáng 7h00 - 11h00. ","Thực hiện các kỹ thuật điều dưỡng cơ bản  "]
[11,"Đỗ Thùy Linh","002844/CT-CCHN","Thực hiện các kỹ thuật điều dưỡng cơ bản  ","Toàn thời gian;\n- Sáng 7h00 – 11h00, chiều 13h00- 17h00 từ thứ 2 đến thứ 6; \n- Thứ 7: Sáng 7h00 - 11h00. ","Thực hiện các kỹ thuật điều dưỡng cơ bản  "]
[12,"Hà Thị Hồng Liệt","005920/CT-CCHN","Thực hiện theo chức năng nhiệm vụ của điều dưỡng quy định theo Thông tư liên tịch số 26/2015/TTLT-BYT ngày 07/10/2015","Toàn thời gian;\n- Sáng 7h00 – 11h00, chiều 13h00- 17h00 từ thứ 2 đến thứ 6; \n- Thứ 7: Sáng 7h00 - 11h00. ","Thực hiện theo chức năng nhiệm vụ của điều dưỡng quy định theo Thông tư liên tịch số 26/2015/TTLT-BYT ngày 07/10/2015"]
[13,"Nguyễn Thị Thanh Hải","002847/CT-CCHN","Thực hiện các kỹ thuật điều dưỡng cơ bản  ","Toàn thời gian;\n- Sáng 7h00 – 11h00, chiều 13h00- 17h00 từ thứ 2 đến thứ 6; \n- Thứ 7: Sáng 7h00 - 11h00. ","Thực hiện các kỹ thuật điều dưỡng cơ bản  "]
[null,"KHOA KHÁM CHỮA BỆNH THEO YÊU CẦU"]
[1,"Nguyễn Thị Bích Anh","000379/CT-CCHN","Khám chữa bệnh chuyên khoa Nhi","Toàn thời gian;\n- Sáng 7h00 – 11h00, chiều 13h00- 17h00 từ thứ 2 đến thứ 6; \n- Thứ 7: Sáng 7h00 - 11h00. ","Khám chữa bệnh chuyên khoa Nhi"]
[2,"Tăng Quốc Đạt","001747/CT-CCHN","Khám bệnh, chữa bệnh Nhi khoa","Toàn thời gian;\n- Sáng 7h00 – 11h00, chiều 13h00- 17h00 từ thứ 2 đến thứ 6; \n- Thứ 7: Sáng 7h00 - 11h00. ","Khám bệnh, chữa bệnh Nhi khoa"]
[3,"Nguyễn Văn Tuân","004716/CT-CCHN","Khám bệnh, chữa bệnh Nhi khoa","Toàn thời gian;\n- Sáng 7h00 – 11h00, chiều 13h00- 17h00 từ thứ 2 đến thứ 6; \n- Thứ 7: Sáng 7h00 - 11h00. ","Khám bệnh, chữa bệnh Nhi khoa"]
[4,"Huỳnh Lê Trúc Mai","007528/CT-CCHN","Khám, phát hiện và xử trí các bệnh thông thường, xử trí ban đầu một số trường hợp cấp cứu tại cộng đồng","Toàn thời gian;\n- Sáng 7h00 – 11h00, chiều 13h00- 17h00 từ thứ 2 đến thứ 6; \n- Thứ 7: Sáng 7h00 - 11h00. ","Khám, phát hiện và xử trí các bệnh thông thường, xử trí ban đầu một số trường hợp cấp cứu tại cộng đồng"]
[5,"Phan Trang Nhã","002807/CT-CCHN","Thực hiện các kỹ thuật điều dưỡng cơ bản và các kỹ thuật điều dưỡng chuyên khoa","Toàn thời gian;\n- Sáng 7h00 – 11h00, chiều 13h00- 17h00 từ thứ 2 đến thứ 6; \n- Thứ 7: Sáng 7h00 - 11h00. ","Thực hiện các kỹ thuật điều dưỡng cơ bản và các kỹ thuật điều dưỡng chuyên khoa"]
[6,"Phạm Thị Mừng","002756/CT-CCHN","Thực hiện các kỹ thuật điều dưỡng cơ bản  ","Toàn thời gian;\n- Sáng 7h00 – 11h00, chiều 13h00- 17h00 từ thứ 2 đến thứ 6; \n- Thứ 7: Sáng 7h00 - 11h00. ","Thực hiện các kỹ thuật điều dưỡng cơ bản  "]
[7,"Trần Thị Dung","005178/CT-CCHN","Thực hiện theo chức năng, nhiệm vụ của điều dưỡng theo quy định Thông tư liên tịch 26/2015/TTLT-BYT ngày 07/10/2015","Toàn thời gian;\n- Sáng 7h00 – 11h00, chiều 13h00- 17h00 từ thứ 2 đến thứ 6; \n- Thứ 7: Sáng 7h00 - 11h00. ","Thực hiện theo chức năng, nhiệm vụ của điều dưỡng theo quy định Thông tư liên tịch 26/2015/TTLT-BYT ngày 07/10/2015"]
[8,"Lê Ngọc Hằng","002887/CT-CCHN","Thực hiện các kỹ thuật điều dưỡng cơ bản  ","Toàn thời gian;\n- Sáng 7h00 – 11h00, chiều 13h00- 17h00 từ thứ 2 đến thứ 6; \n- Thứ 7: Sáng 7h00 - 11h00. ","Thực hiện các kỹ thuật điều dưỡng cơ bản  "]
[9,"Huỳnh Thị Liễu","006557/CT-CCHN","Thực hiện theo chức năng, nhiệm vụ của điều dưỡng theo quy định Thông tư liên tịch 26/2015/TTLT-BYT ngày 07/10/2015","Toàn thời gian;\n- Sáng 7h00 – 11h00, chiều 13h00- 17h00 từ thứ 2 đến thứ 6; \n- Thứ 7: Sáng 7h00 - 11h00. ","Thực hiện theo chức năng, nhiệm vụ của điều dưỡng theo quy định Thông tư liên tịch 26/2015/TTLT-BYT ngày 07/10/2015"]
[10,"Nguyễn Thị Ngọc Đẹp","002744/CT-CCHN","Thực hiện các kỹ thuật điều dưỡng cơ bản  ","Toàn thời gian;\n- Sáng 7h00 – 11h00, chiều 13h00- 17h00 từ thứ 2 đến thứ 6; \n- Thứ 7: Sáng 7h00 - 11h00. ","Thực hiện các kỹ thuật điều dưỡng cơ bản  "]
[11,"Nguyễn Thị Hồng Trang","002791/CT-CCHN","Thực hiện các kỹ thuật điều dưỡng cơ bản  ","Toàn thời gian;\n- Sáng 7h00 – 11h00, chiều 13h00- 17h00 từ thứ 2 đến thứ 6; \n- Thứ 7: Sáng 7h00 - 11h00. ","Thực hiện các kỹ thuật điều dưỡng cơ bản  "]
[12,"Nguyễn Thị Nguyệt","004418/CT-CCHN","Thực hiện theo chức năng nhiệm vụ của điều dưỡng quy định theo Thông tư liên tịch số 26/2015/TTLT-BYT ngày 07/10/2015","Toàn thời gian;\n- Sáng 7h00 – 11h00, chiều 13h00- 17h00 từ thứ 2 đến thứ 6; \n- Thứ 7: Sáng 7h00 - 11h00. ","Thực hiện theo chức năng nhiệm vụ của điều dưỡng quy định theo Thông tư liên tịch số 26/2015/TTLT-BYT ngày 07/10/2015"]
[13,"Nguyễn Thị Duyên","003820/CT-CCHN","Thực hiện các kỹ thuật điều dưỡng cơ bản và kỹ thuật điều dưỡng chuyên khoa","Toàn thời gian;\n- Sáng 7h00 – 11h00, chiều 13h00- 17h00 từ thứ 2 đến thứ 6; \n- Thứ 7: Sáng 7h00 - 11h00. ","Thực hiện các kỹ thuật điều dưỡng cơ bản và kỹ thuật điều dưỡng chuyên khoa"]
[14,"Nguyễn Thị Thanh Nhàn","004986/CT-CCHN","Thực hiện các kỹ thuật điều dưỡng cơ bản  ","Toàn thời gian;\n- Sáng 7h00 – 11h00, chiều 13h00- 17h00 từ thứ 2 đến thứ 6; \n- Thứ 7: Sáng 7h00 - 11h00. ","Thực hiện các kỹ thuật điều dưỡng cơ bản  "]
[15,"Lê Văn Nam","005939/CT-CCHN","Thực hiện theo các chức năng nhiệm vụ của điều dưỡng gây mê hồi sức quy định theo Thông tư liên tịch số 26/TTLT-BYT ngày 07/10/2015","Toàn thời gian;\n- Sáng 7h00 – 11h00, chiều 13h00- 17h00 từ thứ 2 đến thứ 6; \n- Thứ 7: Sáng 7h00 - 11h00. ","Thực hiện theo các chức năng nhiệm vụ của điều dưỡng gây mê hồi sức quy định theo Thông tư liên tịch số 26/TTLT-BYT ngày 07/10/2015"]
[16,"Nguyễn Thị Kim Gọn","006750/CT-CCHN","Thực hiện theo chức năng nhiệm vụ của điều dưỡng quy định theo Thông tư liên tịch số 26/2015/TTLT-BYT ngày 07/10/2015","Toàn thời gian;\n- Sáng 7h00 – 11h00, chiều 13h00- 17h00 từ thứ 2 đến thứ 6; \n- Thứ 7: Sáng 7h00 - 11h00. ","Thực hiện theo chức năng nhiệm vụ của điều dưỡng quy định theo Thông tư liên tịch số 26/2015/TTLT-BYT ngày 07/10/2015"]
[17,"Phạm Thị Hoàng Yến","005544/CT-CCHN","Thực hiện các kỹ thuật điều dưỡng cơ bản  ","Toàn thời gian;\n- Sáng 7h00 – 11h00, chiều 13h00- 17h00 từ thứ 2 đến thứ 6; \n- Thứ 7: Sáng 7h00 - 11h00. ","Thực hiện các kỹ thuật điều dưỡng cơ bản  "]
[18,"Huỳnh Thị Ngọc Hân","004782/CT-CCHN","Thực hiện theo chức năng, nhiệm vụ của điều dưỡng theo quy định Thông tư liên tịch 26/2015/TTLT-BYT ngày 07/10/2015","Toàn thời gian;\n- Sáng 7h00 – 11h00, chiều 13h00- 17h00 từ thứ 2 đến thứ 6; \n- Thứ 7: Sáng 7h00 - 11h00. ","Thực hiện theo chức năng, nhiệm vụ của điều dưỡng theo quy định Thông tư liên tịch 26/2015/TTLT-BYT ngày 07/10/2015"]
[19,"Lê Nguyễn Ngọc Mỹ","002751/CT-CCHN","Thực hiện các kỹ thuật điều dưỡng cơ bản  ","Toàn thời gian;\n- Sáng 7h00 – 11h00, chiều 13h00- 17h00 từ thứ 2 đến thứ 6; \n- Thứ 7: Sáng 7h00 - 11h00. ","Thực hiện các kỹ thuật điều dưỡng cơ bản  "]
[20,"Nguyễn Thúy Trang","004128/CT-CCHN","Thực hiện các kỹ thuật điều dưỡng cơ bản  ","Toàn thời gian;\n- Sáng 7h00 – 11h00, chiều 13h00- 17h00 từ thứ 2 đến thứ 6; \n- Thứ 7: Sáng 7h00 - 11h00. ","Thực hiện các kỹ thuật điều dưỡng cơ bản  "]
[null,"KHOA NGOẠI TỔNG HỢP"]
[1,"Tạ Vũ Quỳnh","000362/CT-CCHN","Khám bệnh, chữa bệnh chuyên khoa Ngoại nhi","Toàn thời gian;\n- Sáng 7h00 – 11h00, chiều 13h00- 17h00 từ thứ 2 đến thứ 6; \n- Thứ 7: Sáng 7h00 - 11h00. ","Khám bệnh, chữa bệnh chuyên khoa Ngoại nhi"]
[2,"Võ Ngọc Lân","004546/CT-CCHN","Khám bệnh, chữa bệnh chuyên khoa Ngoại nhi","Toàn thời gian;\n- Sáng 7h00 – 11h00, chiều 13h00- 17h00 từ thứ 2 đến thứ 6; \n- Thứ 7: Sáng 7h00 - 11h00. ","Khám bệnh, chữa bệnh chuyên khoa Ngoại nhi"]
[3,"Dương Thị Mỹ Châu","004306/CT-CCHN","Khám bệnh, chữa bệnh Ngoại nhi","Toàn thời gian;\n- Sáng 7h00 – 11h00, chiều 13h00- 17h00 từ thứ 2 đến thứ 6; \n- Thứ 7: Sáng 7h00 - 11h00. ","Khám bệnh, chữa bệnh Ngoại nhi"]
[4,"Nguyễn Phước Tài","005304/CT-CCHN","Khám bệnh, chữa bệnh Ngoại nhi","Toàn thời gian;\n- Sáng 7h00 – 11h00, chiều 13h00- 17h00 từ thứ 2 đến thứ 6; \n- Thứ 7: Sáng 7h00 - 11h00. ","Khám bệnh, chữa bệnh Ngoại nhi"]
[5,"Đoàn Hoài Sang","007476/CT-CCHN","Khám bệnh, chữa bệnh Ngoại nhi","Toàn thời gian;\n- Sáng 7h00 – 11h00, chiều 13h00- 17h00 từ thứ 2 đến thứ 6; \n- Thứ 7: Sáng 7h00 - 11h00. ","Khám bệnh, chữa bệnh Ngoại nhi"]
[6,"Kiêm Thị Trúc Linh","007490/CT-CCHN","Khám bệnh, chữa bệnh Ngoại nhi","Toàn thời gian;\n- Sáng 7h00 – 11h00, chiều 13h00- 17h00 từ thứ 2 đến thứ 6; \n- Thứ 7: Sáng 7h00 - 11h00. ","Khám bệnh, chữa bệnh Ngoại nhi"]
[7,"Phạm Tấn Đạt","004383/CT-CCHN","Thực hiện theo chức năng, nhiệm vụ của điều dưỡng theo quy định Thông tư liên tịch 26/2015/TTLT-BYT ngày 07/10/2015","Toàn thời gian;\n- Sáng 7h00 – 11h00, chiều 13h00- 17h00 từ thứ 2 đến thứ 6; \n- Thứ 7: Sáng 7h00 - 11h00. ","Thực hiện theo chức năng, nhiệm vụ của điều dưỡng theo quy định Thông tư liên tịch 26/2015/TTLT-BYT ngày 07/10/2015"]
[8,"Phan Thị Hải Nghi","006647/CT-CCHN","Thực hiện theo chức năng nhiệm vụ của điều dưỡng bó bột quy định theo Thông tư liên tịch số 26/2015/TTLT-BYT-BNV ngày 07/10/2015","Toàn thời gian;\n- Sáng 7h00 – 11h00, chiều 13h00- 17h00 từ thứ 2 đến thứ 6; \n- Thứ 7: Sáng 7h00 - 11h00. ","Thực hiện theo chức năng nhiệm vụ của điều dưỡng bó bột quy định theo Thông tư liên tịch số 26/2015/TTLT-BYT-BNV ngày 07/10/2015"]
[9,"Nguyễn Thị Huyền Trang","005274/CT-CCHN","Thực hiện các kỹ thuật điều dưỡng cơ bản  ","Toàn thời gian;\n- Sáng 7h00 – 11h00, chiều 13h00- 17h00 từ thứ 2 đến thứ 6; \n- Thứ 7: Sáng 7h00 - 11h00. ","Thực hiện các kỹ thuật điều dưỡng cơ bản  "]
[10,"Phạm Thị Mỹ Linh","002763/CT-CCHN","Thực hiện các kỹ thuật điều dưỡng cơ bản  ","Toàn thời gian;\n- Sáng 7h00 – 11h00, chiều 13h00- 17h00 từ thứ 2 đến thứ 6; \n- Thứ 7: Sáng 7h00 - 11h00. ","Thực hiện các kỹ thuật điều dưỡng cơ bản  "]
[11,"Trần Tuấn Lợi","004251/CT-CCHN","Thực hiện theo chức năng nhiệm vụ của điều dưỡng bó bột quy định theo Thông tư liên tịch số 26/2015/TTLT-BYT-BNV ngày 07/10/2015","Toàn thời gian;\n- Sáng 7h00 – 11h00, chiều 13h00- 17h00 từ thứ 2 đến thứ 6; \n- Thứ 7: Sáng 7h00 - 11h00. ","Thực hiện theo chức năng nhiệm vụ của điều dưỡng bó bột quy định theo Thông tư liên tịch số 26/2015/TTLT-BYT-BNV ngày 07/10/2015"]
[12,"Ngô Thị Ngọc Huệ","002826/CT-CCHN","Thực hiện các kỹ thuật điều dưỡng cơ bản  ","Toàn thời gian;\n- Sáng 7h00 – 11h00, chiều 13h00- 17h00 từ thứ 2 đến thứ 6; \n- Thứ 7: Sáng 7h00 - 11h00. ","Thực hiện các kỹ thuật điều dưỡng cơ bản  "]
[13,"Đỗ Thị Tuyết Mai","002818/CT-CCHN","Thực hiện các kỹ thuật điều dưỡng cơ bản  ","Toàn thời gian;\n- Sáng 7h00 – 11h00, chiều 13h00- 17h00 từ thứ 2 đến thứ 6; \n- Thứ 7: Sáng 7h00 - 11h00. ","Thực hiện các kỹ thuật điều dưỡng cơ bản  "]
[14,"Trần Thị Hai","002798/CT-CCHN","Thực hiện các kỹ thuật điều dưỡng cơ bản  ","Toàn thời gian;\n- Sáng 7h00 – 11h00, chiều 13h00- 17h00 từ thứ 2 đến thứ 6; \n- Thứ 7: Sáng 7h00 - 11h00. ","Thực hiện các kỹ thuật điều dưỡng cơ bản  "]
[15,"Phan Thị Gấm","002884/CT-CCHN","Thực hiện các kỹ thuật điều dưỡng cơ bản  ","Toàn thời gian;\n- Sáng 7h00 – 11h00, chiều 13h00- 17h00 từ thứ 2 đến thứ 6; \n- Thứ 7: Sáng 7h00 - 11h00. ","Thực hiện các kỹ thuật điều dưỡng cơ bản  "]
[null,"KHOA GÂY MÊ HỒI SỨC"]
[1,"Trần Văn Tuấn","000241/CT-CCHN","Khám bệnh, chữa bệnh chuyên khoa Ngoại.","Toàn thời gian;\n- Sáng 7h00 – 11h00, chiều 13h00- 17h00 từ thứ 2 đến thứ 6; \n- Thứ 7: Sáng 7h00 - 11h00. ","Khám bệnh, chữa bệnh chuyên khoa Ngoại."]
[2,"Nguyễn Kim Loan","004250/CT-CCHN","Chuyên khoa Gây mê hồi sức","Toàn thời gian;\n- Sáng 7h00 – 11h00, chiều 13h00- 17h00 từ thứ 2 đến thứ 6; \n- Thứ 7: Sáng 7h00 - 11h00. ","Chuyên khoa Gây mê hồi sức"]
[3,"Đặng Thị Ngọc Mai","005165/CT-CCHN","Khám bệnh, chữa bệnh gây mê hồi sức","Toàn thời gian;\n- Sáng 7h00 – 11h00, chiều 13h00- 17h00 từ thứ 2 đến thứ 6; \n- Thứ 7: Sáng 7h00 - 11h00. ","Khám bệnh, chữa bệnh gây mê hồi sức"]
[4,"Trang Mỹ Dung","0005770/CT-CCHN","Khám bệnh, chữa bệnh gây mê hồi sức","Toàn thời gian;\n- Sáng 7h00 – 11h00, chiều 13h00- 17h00 từ thứ 2 đến thứ 6; \n- Thứ 7: Sáng 7h00 - 11h00. ","Khám bệnh, chữa bệnh gây mê hồi sức"]
[5,"Huỳnh Minh Uyên","007629/CT-CCHN","Khám bệnh, chữa bệnh Nhi khoa","Toàn thời gian;\n- Sáng 7h00 – 11h00, chiều 13h00- 17h00 từ thứ 2 đến thứ 6; \n- Thứ 7: Sáng 7h00 - 11h00. ","Khám bệnh, chữa bệnh Nhi khoa"]
[6,"Nguyễn Hương Thủy","007628/CT-CCHN","Khám bệnh, chữa bệnh Nhi khoa","Toàn thời gian;\n- Sáng 7h00 – 11h00, chiều 13h00- 17h00 từ thứ 2 đến thứ 6; \n- Thứ 7: Sáng 7h00 - 11h00. ","Khám bệnh, chữa bệnh Nhi khoa"]
[7,"Nguyễn Thị Thu Năm","002761/CT-CCHN","Thực hiện các kỹ thuật điều dưỡng cơ bản; Quyết định số 1713/QĐ-SYT ngày 13/7/2017 phạm vi hoạt động chuyên môn được bổ sung: Thực hiện theo chức năng nhiệm vụ của điều dưỡng gây mê hồi sức quy định theo thông tư liên tịch số 26/2015/TTLT-BYT ngày 07/10/2015","Toàn thời gian;\n- Sáng 7h00 – 11h00, chiều 13h00- 17h00 từ thứ 2 đến thứ 6; \n- Thứ 7: Sáng 7h00 - 11h00. ","Thực hiện chức năng nhiệm vụ của điều dưỡng gây mê hồi sức"]
[8,"Nguyễn Thanh Nhã","002760/CT-CCHN","Thực hiện các kỹ thuật điều dưỡng cơ bản và các kỹ thuật thông thường về gây mê hồi sức; Quyết định số 1714/QĐ-SYT ngày 13/7/2017 phạm vi hoạt động chuyên môn được bổ sung: Thực hiện theo chức năng nhiệm vụ của điều dưỡng gây mê hồi sức quy định theo Thông tư liên tịch số 26/2015/TTLT-BYT ngày 07/10/2015","Toàn thời gian;\n- Sáng 7h00 – 11h00, chiều 13h00- 17h00 từ thứ 2 đến thứ 6; \n- Thứ 7: Sáng 7h00 - 11h00. ","Thực hiện chức năng nhiệm vụ của điều dưỡng gây mê hồi sức"]
[9,"Trà Mỹ Tú","002813/CT-CCHN","Thực hiện các kỹ thuật điều dưỡng cơ bản  ","Toàn thời gian;\n- Sáng 7h00 – 11h00, chiều 13h00- 17h00 từ thứ 2 đến thứ 6; \n- Thứ 7: Sáng 7h00 - 11h00. ","Thực hiện các kỹ thuật điều dưỡng cơ bản  "]
[10,"Trần Thị Bích Loan","005611/CT-CCHN","Thực hiện theo chức năng nhiệm vụ của điều dưỡng quy định theo Thông tư liên tịch số 26/2015/TTLT-BYT ngày 07/10/2015","Toàn thời gian;\n- Sáng 7h00 – 11h00, chiều 13h00- 17h00 từ thứ 2 đến thứ 6; \n- Thứ 7: Sáng 7h00 - 11h00. ","Thực hiện theo chức năng nhiệm vụ của điều dưỡng quy định theo Thông tư liên tịch số 26/2015/TTLT-BYT ngày 07/10/2015"]
[11,"Võ Trang Kim Yến","003862/CT-CCHN","Thực hiện các kỹ thuật điều dưỡng cơ bản  ","Toàn thời gian;\n- Sáng 7h00 – 11h00, chiều 13h00- 17h00 từ thứ 2 đến thứ 6; \n- Thứ 7: Sáng 7h00 - 11h00. ","Thực hiện các kỹ thuật điều dưỡng cơ bản  "]
[12,"Nguyễn Hải Đăng","003779/CT-CCHN","Thực hiện các kỹ thuật điều dưỡng cơ bản  ","Toàn thời gian;\n- Sáng 7h00 – 11h00, chiều 13h00- 17h00 từ thứ 2 đến thứ 6; \n- Thứ 7: Sáng 7h00 - 11h00. ","Thực hiện các kỹ thuật điều dưỡng cơ bản  "]
[13,"Nguyễn Văn Quỳ","002769/CT-CCHN","Thực hiện các kỹ thuật điều dưỡng cơ bản  ","Toàn thời gian;\n- Sáng 7h00 – 11h00, chiều 13h00- 17h00 từ thứ 2 đến thứ 6; \n- Thứ 7: Sáng 7h00 - 11h00. ","Thực hiện các kỹ thuật điều dưỡng cơ bản  "]
[14,"Lâm Thị Thu Thủy","002715/CT-CCHN","Thực hiện các kỹ thuật điều dưỡng cơ bản  ","Toàn thời gian;\n- Sáng 7h00 – 11h00, chiều 13h00- 17h00 từ thứ 2 đến thứ 6; \n- Thứ 7: Sáng 7h00 - 11h00. ","Thực hiện các kỹ thuật điều dưỡng cơ bản  "]
[15,"Phạm Cẩm Như","005610/CT-CCHN","Thực hiện theo chức năng nhiệm vụ của điều dưỡng quy định theo Thông tư liên tịch số 26/2015/TTLT-BYT ngày 07/10/2015","Toàn thời gian;\n- Sáng 7h00 – 11h00, chiều 13h00- 17h00 từ thứ 2 đến thứ 6; \n- Thứ 7: Sáng 7h00 - 11h00. ","Thực hiện theo chức năng nhiệm vụ của điều dưỡng quy định theo Thông tư liên tịch số 26/2015/TTLT-BYT ngày 07/10/2015"]
[16,"Phạm Thành Tuấn","002855/CT-CCHN","Thực hiện các kỹ thuật điều dưỡng cơ bản  ","Toàn thời gian;\n- Sáng 7h00 – 11h00, chiều 13h00- 17h00 từ thứ 2 đến thứ 6; \n- Thứ 7: Sáng 7h00 - 11h00. ","Thực hiện các kỹ thuật điều dưỡng cơ bản  "]
[17,"Nguyễn Kim Yến","007540/CT-CCHN","Thực hiện theo chức năng nhiệm vụ của điều dưỡng quy định theo Thông tư liên tịch số 26/2015/TTLT-BYT ngày 07/10/2015","Toàn thời gian;\n- Sáng 7h00 – 11h00, chiều 13h00- 17h00 từ thứ 2 đến thứ 6; \n- Thứ 7: Sáng 7h00 - 11h00. ","Thực hiện theo chức năng nhiệm vụ của điều dưỡng quy định theo Thông tư liên tịch số 26/2015/TTLT-BYT ngày 07/10/2015"]
[18,"Hồ Thanh Thuận","000866/CT-CCHN","Thực hiện các kỹ thuật điều dưỡng cơ bản  ","Toàn thời gian;\n- Sáng 7h00 – 11h00, chiều 13h00- 17h00 từ thứ 2 đến thứ 6; \n- Thứ 7: Sáng 7h00 - 11h00. ","Thực hiện các kỹ thuật điều dưỡng cơ bản  "]
[19,"Nguyễn Thanh Thư","000988/CT-CCHN","Thực hiện các kỹ thuật điều dưỡng cơ bản  ","Toàn thời gian;\n- Sáng 7h00 – 11h00, chiều 13h00- 17h00 từ thứ 2 đến thứ 6; \n- Thứ 7: Sáng 7h00 - 11h00. ","Thực hiện các kỹ thuật điều dưỡng cơ bản  "]
[20,"Nguyễn Thanh Hùng","002804/CT-CCHN","Thực hiện các kỹ thuật điều dưỡng cơ bản  ","Toàn thời gian;\n- Sáng 7h00 – 11h00, chiều 13h00- 17h00 từ thứ 2 đến thứ 6; \n- Thứ 7: Sáng 7h00 - 11h00. ","Thực hiện các kỹ thuật điều dưỡng cơ bản  "]
[21,"Vũ Kiều Diễm","000946/CT-CCHN","Thực hiện các kỹ thuật điều dưỡng cơ bản; QĐ 605/QĐ-SYT ngày 28/01/2016 bổ sung phạm vi điều dưỡng chuyên ngành gây mê hồi sức   ","Toàn thời gian;\n- Sáng 7h00 – 11h00, chiều 13h00- 17h00 từ thứ 2 đến thứ 6; \n- Thứ 7: Sáng 7h00 - 11h00. ","Thực hiện các kỹ thuật điều dưỡng chuyên ngành gây mê hồi sức  "]
[22,"Trần Thái Thiện Thanh","002740/CT-CCHN","Thực hiện các kỹ thuật điều dưỡng cơ bản  ","Toàn thời gian;\n- Sáng 7h00 – 11h00, chiều 13h00- 17h00 từ thứ 2 đến thứ 6; \n- Thứ 7: Sáng 7h00 - 11h00. ","Thực hiện các kỹ thuật điều dưỡng cơ bản  "]
[23,"Đặng Hoàng Em","002764/CT-CCHN","Thực hiện các kỹ thuật điều dưỡng cơ bản và các kỹ thuật thông thường về gây mê hồi sức","Toàn thời gian;\n- Sáng 7h00 – 11h00, chiều 13h00- 17h00 từ thứ 2 đến thứ 6; \n- Thứ 7: Sáng 7h00 - 11h00. ","Thực hiện các kỹ thuật điều dưỡng cơ bản và các kỹ thuật thông thường về gây mê hồi sức"]
[24,"Nguyễn Tấn Toàn","003879/CT-CCHN","Thực hiện kỹ thuật thông thường về gây mê hồi sức","Toàn thời gian;\n- Sáng 7h00 – 11h00, chiều 13h00- 17h00 từ thứ 2 đến thứ 6; \n- Thứ 7: Sáng 7h00 - 11h00. ","Thực hiện kỹ thuật thông thường về gây mê hồi sức"]
[25,"Hồ Văn Thới","002792/CT-CCHN","Thực hiện các kỹ thuật điều dưỡng cơ bản  ","Toàn thời gian;\n- Sáng 7h00 – 11h00, chiều 13h00- 17h00 từ thứ 2 đến thứ 6; \n- Thứ 7: Sáng 7h00 - 11h00. ","Thực hiện các kỹ thuật điều dưỡng cơ bản  "]
[null,"KHOA CHẤN THƯƠNG CHỈNH HÌNH"]
[1,"Nguyễn Quang Tiến","000053/CT-CCHN","Khám bệnh, chữa bệnh đa khoa - chấn thương chỉnh hình","Toàn thời gian;\n- Sáng 7h00 – 11h00, chiều 13h00- 17h00 từ thứ 2 đến thứ 6; \n- Thứ 7: Sáng 7h00 - 11h00. ","Khám bệnh, chữa bệnh đa khoa - chấn thương chỉnh hình"]
[2,"Nguyễn Võ Thành Luân","004311/CT-CCHN","Khám bệnh, chữa bệnh Ngoại nhi; Bổ sung Khám bệnh, chữa bệnh chuyên khoa chấn thương chỉnh hình theo Quyết định số 1300/QĐ-SYT","Toàn thời gian;\n- Sáng 7h00 – 11h00, chiều 13h00- 17h00 từ thứ 2 đến thứ 6; \n- Thứ 7: Sáng 7h00 - 11h00. ","Khám bệnh, chữa bệnh Ngoại nhi; Chấn thương chỉnh hình"]
[3,"Huỳnh Thủy Tiên","005437/CT-CCHN","Khám bệnh, chữa bệnh ngoại nhi","Toàn thời gian;\n- Sáng 7h00 – 11h00, chiều 13h00- 17h00 từ thứ 2 đến thứ 6; \n- Thứ 7: Sáng 7h00 - 11h00. ","Khám bệnh, chữa bệnh ngoại nhi"]
[4,"Bùi Minh Đức","005238/CT-CCHN","Khám bệnh, chữa bệnh Ngoại nhi","Toàn thời gian;\n- Sáng 7h00 – 11h00, chiều 13h00- 17h00 từ thứ 2 đến thứ 6; \n- Thứ 7: Sáng 7h00 - 11h00. ","Khám bệnh, chữa bệnh Ngoại nhi"]
[5,"Trần Đăng Tùng","005271/CT-CCHN","Khám bệnh, chữa bệnh Ngoại nhi","Toàn thời gian;\n- Sáng 7h00 – 11h00, chiều 13h00- 17h00 từ thứ 2 đến thứ 6; \n- Thứ 7: Sáng 7h00 - 11h00. ","Khám bệnh, chữa bệnh Ngoại nhi"]
[6,"Tăng Phú Tỷ","005357/CT-CCHN","Khám bệnh, chữa bệnh ngoại nhi","Toàn thời gian;\n- Sáng 7h00 – 11h00, chiều 13h00- 17h00 từ thứ 2 đến thứ 6; \n- Thứ 7: Sáng 7h00 - 11h00. ","Khám bệnh, chữa bệnh ngoại nhi"]
[7,"Lương Gia Giác","002748/CT-CCHN","Thực hiện các kỹ thuật điều dưỡng cơ bản và các kỹ thuật điều dưỡng chuyên khoa","Toàn thời gian;\n- Sáng 7h00 – 11h00, chiều 13h00- 17h00 từ thứ 2 đến thứ 6; \n- Thứ 7: Sáng 7h00 - 11h00. ","Thực hiện các kỹ thuật điều dưỡng cơ bản và các kỹ thuật điều dưỡng chuyên khoa"]
[8,"Nguyễn Thị Lệ Thủy","003884/CT-CCHN","Thực hiện các kỹ thuật điều dưỡng cơ bản  ","Toàn thời gian;\n- Sáng 7h00 – 11h00, chiều 13h00- 17h00 từ thứ 2 đến thứ 6; \n- Thứ 7: Sáng 7h00 - 11h00. ","Thực hiện các kỹ thuật điều dưỡng cơ bản  "]
[9,"Nguyễn Thị Hòa","003783/CT-CCHN","Thực hiện các kỹ thuật điều dưỡng cơ bản và một số kỹ thuật điều dưỡng chuyên khoa","Toàn thời gian;\n- Sáng 7h00 – 11h00, chiều 13h00- 17h00 từ thứ 2 đến thứ 6; \n- Thứ 7: Sáng 7h00 - 11h00. ","Thực hiện các kỹ thuật điều dưỡng cơ bản và một số kỹ thuật điều dưỡng chuyên khoa"]
[10,"Nguyễn Toàn Thiện","002708/CT-CCHN","Thực hiện các kỹ thuật điều dưỡng cơ bản  ","Toàn thời gian;\n- Sáng 7h00 – 11h00, chiều 13h00- 17h00 từ thứ 2 đến thứ 6; \n- Thứ 7: Sáng 7h00 - 11h00. ","Thực hiện các kỹ thuật điều dưỡng cơ bản  "]
[11,"Phạm Thị Ngọc","006751/CT-CCHN","Thực hiện theo chức năng, nhiệm vụ của điều dưỡng theo quy định Thông tư liên tịch 26/2015/TTLT-BYT ngày 07/10/2015","Toàn thời gian;\n- Sáng 7h00 – 11h00, chiều 13h00- 17h00 từ thứ 2 đến thứ 6; \n- Thứ 7: Sáng 7h00 - 11h00. ","Thực hiện theo chức năng, nhiệm vụ của điều dưỡng theo quy định Thông tư liên tịch 26/2015/TTLT-BYT ngày 07/10/2016"]
[12,"Trần Ngọc Diệp","005275/CT-CCHN","Thực hiện theo chức năng, nhiệm vụ của điều dưỡng theo quy định Thông tư liên tịch 26/2015/TTLT-BYT ngày 07/10/2015","Toàn thời gian;\n- Sáng 7h00 – 11h00, chiều 13h00- 17h00 từ thứ 2 đến thứ 6; \n- Thứ 7: Sáng 7h00 - 11h00. ","Thực hiện theo chức năng, nhiệm vụ của điều dưỡng theo quy định Thông tư liên tịch 26/2015/TTLT-BYT ngày 07/10/2015"]
[13,"Phạm Minh Công","002762/CT-CCHN","Thực hiện các kỹ thuật điều dưỡng cơ bản  ","Toàn thời gian;\n- Sáng 7h00 – 11h00, chiều 13h00- 17h00 từ thứ 2 đến thứ 6; \n- Thứ 7: Sáng 7h00 - 11h00. ","Thực hiện các kỹ thuật điều dưỡng cơ bản  "]
[14,"Trương Hoàng Dũ","007587/CT-CCHN","Thực hiện theo chức năng, nhiệm vụ của điều dưỡng theo quy định Thông tư liên tịch 26/2015/TTLT-BYT ngày 07/10/2015","Toàn thời gian;\n- Sáng 7h00 – 11h00, chiều 13h00- 17h00 từ thứ 2 đến thứ 6; \n- Thứ 7: Sáng 7h00 - 11h00. ","Thực hiện theo chức năng, nhiệm vụ của điều dưỡng theo quy định Thông tư liên tịch 26/2015/TTLT-BYT ngày 07/10/2015"]
[null,"KHOA BA CHUYÊN KHOA"]
[1,"Võ Thị Thùy Linh","000080/CT-CCHN","Khám bệnh, chữa bệnh đa khoa; Bổ sung khám chữa bệnh chuyên khoa Mắt theo Quyết định số 1710/QĐ-SYT ngày 13/7/2017","Toàn thời gian;\n- Sáng 7h00 – 11h00, chiều 13h00- 17h00 từ thứ 2 đến thứ 6; \n- Thứ 7: Sáng 7h00 - 11h00. ","Khám bệnh, chữa bệnh chuyên khoa Mắt"]
[2,"Nguyễn Kỳ Duy Tâm","002878/CT-CCHN","Khám bệnh, chữa bệnh đa khoa - Tai mũi họng","Toàn thời gian;\n- Sáng 7h00 – 11h00, chiều 13h00- 17h00 từ thứ 2 đến thứ 6; \n- Thứ 7: Sáng 7h00 - 11h00. ","Khám bệnh, chữa bệnh đa khoa - Tai mũi họng"]
[3,"Lê Minh Huy","004393/CT-CCHN","Khám bệnh, chữa bệnh răng hàm mặt","Toàn thời gian;\n- Sáng 7h00 – 11h00, chiều 13h00- 17h00 từ thứ 2 đến thứ 6; \n- Thứ 7: Sáng 7h00 - 11h00. ","Khám bệnh, chữa bệnh răng hàm mặt"]
[4,"Quách Nguyễn Ái Phương","0001587/CT-CCHN","Khám bệnh, chữa bệnh chuyên khoa răng hàm mặt","Toàn thời gian;\n- Sáng 7h00 – 11h00, chiều 13h00- 17h00 từ thứ 2 đến thứ 6; \n- Thứ 7: Sáng 7h00 - 11h00. ","Khám bệnh, chữa bệnh chuyên khoa răng hàm mặt"]
[5,"Phùng Bé Bi","004567/CT-CCHN","Khám chữa bệnh Tai Mũi Họng","Toàn thời gian;\n- Sáng 7h00 – 11h00, chiều 13h00- 17h00 từ thứ 2 đến thứ 6; \n- Thứ 7: Sáng 7h00 - 11h00. ","Khám chữa bệnh Tai Mũi Họng"]
[6,"Phạm Thành Công","005646/CT-CCHN","Khám chữa bệnh chuyên khoa Tai Mũi Họng","Toàn thời gian;\n- Sáng 7h00 – 11h00, chiều 13h00- 17h00 từ thứ 2 đến thứ 6; \n- Thứ 7: Sáng 7h00 - 11h00. ","Khám chữa bệnh chuyên khoa Tai Mũi Họng"]
[7,"Huỳnh Diễm Hài","003912/CT-CCHN","Khám bệnh, chữa bệnh răng hàm mặt","Toàn thời gian;\n- Sáng 7h00 – 11h00, chiều 13h00- 17h00 từ thứ 2 đến thứ 6; \n- Thứ 7: Sáng 7h00 - 11h00. ","Khám bệnh, chữa bệnh răng hàm mặt"]
[8,"Lê Thị Mộng Kiều","005431/CT-CCHN","Khám bệnh, chữa bệnh chuyên khoa Mắt","Toàn thời gian;\n- Sáng 7h00 – 11h00, chiều 13h00- 17h00 từ thứ 2 đến thứ 6; \n- Thứ 7: Sáng 7h00 - 11h00. ","Khám bệnh, chữa bệnh chuyên khoa Mắt"]
[9,"Trần Thiên Trí","006405/CT-CCHN","Khám bệnh, chữa bệnh Mắt","Toàn thời gian;\n- Sáng 7h00 – 11h00, chiều 13h00- 17h00 từ thứ 2 đến thứ 6; \n- Thứ 7: Sáng 7h00 - 11h00. ","Khám bệnh, chữa bệnh Mắt"]
[10,"Danh Thành Thắng","006549/CT-CCHN","Khám bệnh, chữa bệnh Tai mũi họng","Toàn thời gian;\n- Sáng 7h00 – 11h00, chiều 13h00- 17h00 từ thứ 2 đến thứ 6; \n- Thứ 7: Sáng 7h00 - 11h00. ","Khám bệnh, chữa bệnh Tai mũi họng"]
[11,"Trần Thị Trúc Linh","006572/CT-CCHN","Khám bệnh, chữa bệnh Tai mũi họng","Toàn thời gian;\n- Sáng 7h00 – 11h00, chiều 13h00- 17h00 từ thứ 2 đến thứ 6; \n- Thứ 7: Sáng 7h00 - 11h00. ","Khám bệnh, chữa bệnh Tai mũi họng"]
[12,"Phạm Kế Kiên","007349/CT-CCHN","Khám bệnh, chữa bệnh Tai mũi họng","Toàn thời gian;\n- Sáng 7h00 – 11h00, chiều 13h00- 17h00 từ thứ 2 đến thứ 6; \n- Thứ 7: Sáng 7h00 - 11h00. ","Khám bệnh, chữa bệnh Tai mũi họng"]
[13,"Nguyễn Ngọc Thúy","002747/CT-CCHN","Thực hiện các kỹ thuật điều dưỡng cơ bản  ","Toàn thời gian;\n- Sáng 7h00 – 11h00, chiều 13h00- 17h00 từ thứ 2 đến thứ 6; \n- Thứ 7: Sáng 7h00 - 11h00. ","Thực hiện các kỹ thuật điều dưỡng cơ bản  "]
[14,"Thạch Chan Thi Vong","005614/CT-CCHN","Thực hiện các kỹ thuật điều dưỡng cơ bản  ","Toàn thời gian;\n- Sáng 7h00 – 11h00, chiều 13h00- 17h00 từ thứ 2 đến thứ 6; \n- Thứ 7: Sáng 7h00 - 11h00. ","Thực hiện các kỹ thuật điều dưỡng cơ bản  "]
[15,"Nguyễn Chí Hiển","002849/CT-CCHN","Thực hiện các kỹ thuật điều dưỡng cơ bản  ","Toàn thời gian;\n- Sáng 7h00 – 11h00, chiều 13h00- 17h00 từ thứ 2 đến thứ 6; \n- Thứ 7: Sáng 7h00 - 11h00. ","Thực hiện các kỹ thuật điều dưỡng cơ bản  "]
[16,"Ngũ Thị Hồng Nhung","004614/CT-CCHN","Thực hiện theo chức năng nhiệm vụ của điều dưỡng quy định theo Thông tư liên tịch số 26/2015/TTLT-BYT ngày 07/10/2015","Toàn thời gian;\n- Sáng 7h00 – 11h00, chiều 13h00- 17h00 từ thứ 2 đến thứ 6; \n- Thứ 7: Sáng 7h00 - 11h00. ","Thực hiện theo chức năng nhiệm vụ của điều dưỡng quy định theo Thông tư liên tịch số 26/2015/TTLT-BYT ngày 07/10/2015"]
[17,"Nguyễn Thị Kiều Lan","005061/CT-CCHN","Thực hiện theo chức năng nhiệm vụ của điều dưỡng quy định theo Thông tư liên tịch số 26/2015/TTLT-BYT ngày 07/10/2015","Toàn thời gian;\n- Sáng 7h00 – 11h00, chiều 13h00- 17h00 từ thứ 2 đến thứ 6; \n- Thứ 7: Sáng 7h00 - 11h00. ","Thực hiện theo chức năng nhiệm vụ của điều dưỡng quy định theo Thông tư liên tịch số 26/2015/TTLT-BYT ngày 07/10/2015"]
[18,"Trần Bình Nguyên","002863/CT-CCHN","Thực hiện các kỹ thuật điều dưỡng nha khoa thông thường","Toàn thời gian;\n- Sáng 7h00 – 11h00, chiều 13h00- 17h00 từ thứ 2 đến thứ 6; \n- Thứ 7: Sáng 7h00 - 11h00. ","Thực hiện các kỹ thuật điều dưỡng nha khoa thông thường"]
[19,"Trần Thị Yến Thanh","005087/KG-CCHN","Thực hiện theo chức năng nhiệm vụ của điều dưỡng quy định theo Thông tư liên tịch số 26/2015/TTLT-BYT ngày 07/10/2015 của Bộ Y tế, Bộ Nội vụ Quy định mã số, tiêu chuẩn chức danh nghề nghiệp điều dưỡng","Toàn thời gian;\n- Sáng 7h00 – 11h00, chiều 13h00- 17h00 từ thứ 2 đến thứ 6; \n- Thứ 7: Sáng 7h00 - 11h00. ","Thực hiện theo chức năng nhiệm vụ của điều dưỡng quy định theo Thông tư liên tịch số 26/2015/TTLT-BYT ngày 07/10/2015 của Bộ Y tế, Bộ Nội vụ Quy định mã số, tiêu chuẩn chức danh nghề nghiệp điều dưỡng"]
[20,"Đào Thái Quỳnh Hương","005926/CT-CCHN","Thực hiện theo chức năng nhiệm vụ của điều dưỡng quy định theo Thông tư liên tịch số 26/2015/TTLT-BYT ngày 07/10/2015","Toàn thời gian;\n- Sáng 7h00 – 11h00, chiều 13h00- 17h00 từ thứ 2 đến thứ 6; \n- Thứ 7: Sáng 7h00 - 11h00. ","Thực hiện theo chức năng nhiệm vụ của điều dưỡng quy định theo Thông tư liên tịch số 26/2015/TTLT-BYT ngày 07/10/2015"]
[21,"Trần Diệu Nam","000413/CT-CCHN","Thực hiện các kỹ thuật thông thường về Răng trẻ em","Toàn thời gian;\n- Sáng 7h00 – 11h00, chiều 13h00- 17h00 từ thứ 2 đến thứ 6; \n- Thứ 7: Sáng 7h00 - 11h00. ","Thực hiện các kỹ thuật thông thường về Răng trẻ em"]
[22,"Bùi Thị Thanh Thảo","005560/CT-CCHN","Thực hiện theo chức năng nhiệm vụ của điều dưỡng quy định theo Thông tư liên tịch số 26/2015/TTLT-BYT ngày 07/10/2015","Toàn thời gian;\n- Sáng 7h00 – 11h00, chiều 13h00- 17h00 từ thứ 2 đến thứ 6; \n- Thứ 7: Sáng 7h00 - 11h00. ","Thực hiện theo chức năng nhiệm vụ của điều dưỡng quy định theo Thông tư liên tịch số 26/2015/TTLT-BYT ngày 07/10/2015"]
[23,"Nguyễn Thế Minh Luân","007062/CT-CCHN","Thực hiện theo chức năng nhiệm vụ của điều dưỡng quy định theo Thông tư liên tịch số 26/2015/TTLT-BYT ngày 07/10/2016","Toàn thời gian;\n- Sáng 7h00 – 11h00, chiều 13h00- 17h00 từ thứ 2 đến thứ 6; \n- Thứ 7: Sáng 7h00 - 11h00. ","Thực hiện theo chức năng nhiệm vụ của điều dưỡng quy định theo Thông tư liên tịch số 26/2015/TTLT-BYT ngày 07/10/2016"]
[24,"Trần Đình Văn","007548/CT-CCHN","Thực hiện theo chức năng nhiệm vụ của điều dưỡng quy định theo Thông tư liên tịch số 26/2015/TTLT-BYT ngày 07/10/2017","Toàn thời gian;\n- Sáng 7h00 – 11h00, chiều 13h00- 17h00 từ thứ 2 đến thứ 6; \n- Thứ 7: Sáng 7h00 - 11h00. ","Thực hiện theo chức năng nhiệm vụ của điều dưỡng quy định theo Thông tư liên tịch số 26/2015/TTLT-BYT ngày 07/10/2017"]
[25,"Huỳnh Thị Phượng","007569/CT-CCHN","Thực hiện theo chức năng nhiệm vụ của điều dưỡng quy định theo Thông tư liên tịch số 26/2015/TTLT-BYT ngày 07/10/2018","Toàn thời gian;\n- Sáng 7h00 – 11h00, chiều 13h00- 17h00 từ thứ 2 đến thứ 6; \n- Thứ 7: Sáng 7h00 - 11h00. ","Thực hiện theo chức năng nhiệm vụ của điều dưỡng quy định theo Thông tư liên tịch số 26/2015/TTLT-BYT ngày 07/10/2018"]
[26,"Phan Thanh Phong","002794/CT-CCHN","Thực hiện các kỹ thuật điều dưỡng cơ bản về tai mũi họng ","Toàn thời gian;\n- Sáng 7h00 – 11h00, chiều 13h00- 17h00 từ thứ 2 đến thứ 6; \n- Thứ 7: Sáng 7h00 - 11h00. ","Thực hiện các kỹ thuật điều dưỡng cơ bản về tai mũi họng "]
[null,"KHOA VẬT LÝ TRỊ LIỆU"]
[1,"Phạm Văn Đông","004475/CT-CCHN","Khám bệnh, chữa bệnh Nhi khoa","Toàn thời gian;\n- Sáng 7h00 – 11h00, chiều 13h00- 17h00 từ thứ 2 đến thứ 6; \n- Thứ 7: Sáng 7h00 - 11h00. ","Khám bệnh, chữa bệnh Nhi khoa"]
[2,"Bùi Tú Thành","006950/CT-CCHN","Khám bệnh, chữa bệnh Vật lý trị liệu - Phục hồi chức năng","Toàn thời gian;\n- Sáng 7h00 – 11h00, chiều 13h00- 17h00 từ thứ 2 đến thứ 6; \n- Thứ 7: Sáng 7h00 - 11h00. ","Khám bệnh, chữa bệnh Vật lý trị liệu - Phục hồi chức năng"]
[3,"Huỳnh Nguyễn Minh Ngọc","007076/CT-CCHN","Khám bệnh, chữa bệnh Vật lý trị liệu - Phục hồi chức năng","Toàn thời gian;\n- Sáng 7h00 – 11h00, chiều 13h00- 17h00 từ thứ 2 đến thứ 6; \n- Thứ 7: Sáng 7h00 - 11h00. ","Khám bệnh, chữa bệnh Vật lý trị liệu - Phục hồi chức năng"]
[4,"Trần Anh Đào","002758/CT-CCHN","Thực hiện các kỹ thuật thông thường về vật lý trị liệu, phục hồi chức năng; Bổ sung phạm vi hoạt động: Kỹ thuật viên vật lý trị liệu - phục hồi chức năng theo Quyết định số 1711/QĐ-SYT ngày 13/7/2017","Toàn thời gian;\n- Sáng 7h00 – 11h00, chiều 13h00- 17h00 từ thứ 2 đến thứ 6; \n- Thứ 7: Sáng 7h00 - 11h00. ","Kỹ thuật viên vật lý trị liệu - phục hồi chức năng"]
[5,"Lê Thành Phương","002737/CT-CCHN","Thực hiện các kỹ thuật thông thường về vật lý trị liệu, phục hồi chức năng","Toàn thời gian;\n- Sáng 7h00 – 11h00, chiều 13h00- 17h00 từ thứ 2 đến thứ 6; \n- Thứ 7: Sáng 7h00 - 11h00. ","Thực hiện các kỹ thuật thông thường về vật lý trị liệu, phục hồi chức năng"]
[6,"Lê Thị Kim Yến","002777/CT-CCHN","Thực hiện các kỹ thuật thông thường về vật lý trị liệu, phục hồi chức năng","Toàn thời gian;\n- Sáng 7h00 – 11h00, chiều 13h00- 17h00 từ thứ 2 đến thứ 6; \n- Thứ 7: Sáng 7h00 - 11h00. ","Thực hiện các kỹ thuật thông thường về vật lý trị liệu, phục hồi chức năng"]
[7,"Huỳnh Mạnh Cường","004850/CT-CCHN","Kỹ thuật viên vật lý trị liệu - phục hồi chức năng","Toàn thời gian;\n- Sáng 7h00 – 11h00, chiều 13h00- 17h00 từ thứ 2 đến thứ 6; \n- Thứ 7: Sáng 7h00 - 11h00. ","Kỹ thuật viên vật lý trị liệu - phục hồi chức năng"]
[8,"Trần Kim Yến","005424/CT-CCHN","Kỹ thuật viên vật lý trị liệu - phục hồi chức năng","Toàn thời gian;\n- Sáng 7h00 – 11h00, chiều 13h00- 17h00 từ thứ 2 đến thứ 6; \n- Thứ 7: Sáng 7h00 - 11h00. ","Kỹ thuật viên vật lý trị liệu - phục hồi chức năng"]
[null,"KHOA DINH DƯỠNG"]
[1,"Võ Minh Tân","000351/CT-CCHN","Khám bệnh, chữa bệnh chuyên khoa Nhi khoa","Toàn thời gian;\n- Sáng 7h00 – 11h00, chiều 13h00- 17h00 từ thứ 2 đến thứ 6; \n- Thứ 7: Sáng 7h00 - 11h00. ","Khám bệnh, chữa bệnh chuyên khoa Nhi khoa"]
[2,"Danh Thị Mỹ Phương","004272/CT-CCHN","Khám bệnh, chữa bệnh Nhi khoa; Bổ sung khám bệnh, chữa bệnh chuyên khoa Dinh dưỡng theo Quyết định số 987/QĐ-SYT ngày 23/3/2018","Toàn thời gian;\n- Sáng 7h00 – 11h00, chiều 13h00- 17h00 từ thứ 2 đến thứ 6; \n- Thứ 7: Sáng 7h00 - 11h00. ","Khám bệnh, chữa bệnh Nhi khoa"]
[3,"Từ Lệ Minh Phượng","007527/CT-CCHN","Khám bệnh, chữa bệnh Nhi khoa","Toàn thời gian;\n- Sáng 7h00 – 11h00, chiều 13h00- 17h00 từ thứ 2 đến thứ 6; \n- Thứ 7: Sáng 7h00 - 11h00. ","Khám bệnh, chữa bệnh Nhi khoa"]
[4,"Trần Kim Ngộ","002776/CT-CCHN","Thực hiện các kỹ thuật điều dưỡng cơ bản  ","Toàn thời gian;\n- Sáng 7h00 – 11h00, chiều 13h00- 17h00 từ thứ 2 đến thứ 6; \n- Thứ 7: Sáng 7h00 - 11h00. ","Thực hiện các kỹ thuật điều dưỡng cơ bản  "]
[5,"Trần Ngọc Diễm Trang","000574/CT-CCHN","Thực hiện các kỹ thuật điều dưỡng cơ bản  ","Toàn thời gian;\n- Sáng 7h00 – 11h00, chiều 13h00- 17h00 từ thứ 2 đến thứ 6; \n- Thứ 7: Sáng 7h00 - 11h00. ","Thực hiện các kỹ thuật điều dưỡng cơ bản  "]
[6,"Lê Thị Mỹ Thuộc","002713/CT-CCHN","Thực hiện các kỹ thuật điều dưỡng cơ bản  ","Toàn thời gian;\n- Sáng 7h00 – 11h00, chiều 13h00- 17h00 từ thứ 2 đến thứ 6; \n- Thứ 7: Sáng 7h00 - 11h00. ","Thực hiện các kỹ thuật điều dưỡng cơ bản  "]
[7,"Phạm Thùy Dung","002782/CT-CCHN","Thực hiện các kỹ thuật điều dưỡng cơ bản  ","Toàn thời gian;\n- Sáng 7h00 – 11h00, chiều 13h00- 17h00 từ thứ 2 đến thứ 6; \n- Thứ 7: Sáng 7h00 - 11h00. ","Thực hiện các kỹ thuật điều dưỡng cơ bản  "]
[8,"CẬN LÂM SÀNG"]
[null,"KHOA XÉT NGHIỆM"]
[1,"Đặng Thụy Thúy Hồng","004595/CT-CCHN","Thực hiện các kỹ thuật chuyên khoa xét nghiệm","Toàn thời gian;\n- Sáng 7h00 – 11h00, chiều 13h00- 17h00 từ thứ 2 đến thứ 6; \n- Thứ 7: Sáng 7h00 - 11h00. ","Thực hiện các kỹ thuật chuyên khoa xét nghiệm"]
[2,"La Thu Nga","001088/CT-CCHN","Thực hiện các kỹ thuật thông thường về xét nghiệm","Toàn thời gian;\n- Sáng 7h00 – 11h00, chiều 13h00- 17h00 từ thứ 2 đến thứ 6; \n- Thứ 7: Sáng 7h00 - 11h00. ","Thực hiện các kỹ thuật thông thường về xét nghiệm"]
[3,"Nguyễn Thị Thu Sương","002755/CT-CCHN","Thực hiện các kỹ thuật thông thường về xét nghiệm; Bổ sung phạm vi hoạt động: chuyên khoa xét nghiệm số 2178/QĐ-SYT ngày 07/9/2017","Toàn thời gian;\n- Sáng 7h00 – 11h00, chiều 13h00- 17h00 từ thứ 2 đến thứ 6; \n- Thứ 7: Sáng 7h00 - 11h00. ","Thực hiện các kỹ thuật chuyên khoa xét nghiệm"]
[4,"Đặng Thị Bé Hiền","002780/CT-CCHN","Thực hiện các kỹ thuật thông thường về xét nghiệm","Toàn thời gian;\n- Sáng 7h00 – 11h00, chiều 13h00- 17h00 từ thứ 2 đến thứ 6; \n- Thứ 7: Sáng 7h00 - 11h00. ","Thực hiện các kỹ thuật thông thường về xét nghiệm"]
[5,"Hà Phi Loan","000987/HAUG-CCHN","Kỹ thuật viên xét nghiệm","Toàn thời gian;\n- Sáng 7h00 – 11h00, chiều 13h00- 17h00 từ thứ 2 đến thứ 6; \n- Thứ 7: Sáng 7h00 - 11h00. ","Kỹ thuật viên xét nghiệm"]
[6,"Tạ Thành Lợi","004973/CT-CCHN","Chuyên khoa xét nghiệm","Toàn thời gian;\n- Sáng 7h00 – 11h00, chiều 13h00- 17h00 từ thứ 2 đến thứ 6; \n- Thứ 7: Sáng 7h00 - 11h00. ","Chuyên khoa xét nghiệm"]
[7,"Hồ Thị Cẩm Thiệt","006105/CT-CCHN","Chuyên khoa xét nghiệm","Toàn thời gian;\n- Sáng 7h00 – 11h00, chiều 13h00- 17h00 từ thứ 2 đến thứ 6; \n- Thứ 7: Sáng 7h00 - 11h00. ","Chuyên khoa xét nghiệm"]
[8,"Tiêu Hồng Thủy","002754/CT-CCHN","Chuyên khoa xét nghiệm","Toàn thời gian;\n- Sáng 7h00 – 11h00, chiều 13h00- 17h00 từ thứ 2 đến thứ 6; \n- Thứ 7: Sáng 7h00 - 11h00. ","Chuyên khoa xét nghiệm"]
[9,"Nguyễn Thị Ngọc Chàng","002785/CT-CCHN","Chuyên khoa xét nghiệm","Toàn thời gian;\n- Sáng 7h00 – 11h00, chiều 13h00- 17h00 từ thứ 2 đến thứ 6; \n- Thứ 7: Sáng 7h00 - 11h00. ","Chuyên khoa xét nghiệm"]
[10,"Trần Ngọc Đông Anh","004603/CT-CCHN","Chuyên khoa xét nghiệm","Toàn thời gian;\n- Sáng 7h00 – 11h00, chiều 13h00- 17h00 từ thứ 2 đến thứ 6; \n- Thứ 7: Sáng 7h00 - 11h00. ","Chuyên khoa xét nghiệm"]
[11,"Kiên Thị Thu Vân","004616/CT-CCHN","Chuyên khoa xét nghiệm","Toàn thời gian;\n- Sáng 7h00 – 11h00, chiều 13h00- 17h00 từ thứ 2 đến thứ 6; \n- Thứ 7: Sáng 7h00 - 11h00. ","Chuyên khoa xét nghiệm"]
[12,"Phạm Thị Thanh Loan","002706/CT-CCHN","Chuyên khoa xét nghiệm","Toàn thời gian;\n- Sáng 7h00 – 11h00, chiều 13h00- 17h00 từ thứ 2 đến thứ 6; \n- Thứ 7: Sáng 7h00 - 11h00. ","Chuyên khoa xét nghiệm"]
[13,"Nguyễn Thị Liễu","002716/CT-CCHN","Thực hiện các kỹ thuật thông thường về xét nghiệm","Toàn thời gian;\n- Sáng 7h00 – 11h00, chiều 13h00- 17h00 từ thứ 2 đến thứ 6; \n- Thứ 7: Sáng 7h00 - 11h00. ","Thực hiện các kỹ thuật thông thường về xét nghiệm"]
[14,"Hồ Thu Oanh","002775/CT-CCHN","Thực hiện các kỹ thuật thông thường về xét nghiệm","Toàn thời gian;\n- Sáng 7h00 – 11h00, chiều 13h00- 17h00 từ thứ 2 đến thứ 6; \n- Thứ 7: Sáng 7h00 - 11h00. ","Thực hiện các kỹ thuật thông thường về xét nghiệm"]
[15,"Nguyễn Thị Trúc Đào","004640/CT-CCHN","Kỹ thuật viên xét nghiệm","Toàn thời gian;\n- Sáng 7h00 – 11h00, chiều 13h00- 17h00 từ thứ 2 đến thứ 6; \n- Thứ 7: Sáng 7h00 - 11h00. ","Kỹ thuật viên xét nghiệm"]
[16,"Nguyễn Thị Cẩm Giang","004666/CT-CCHN","Kỹ thuật viên xét nghiệm","Toàn thời gian;\n- Sáng 7h00 – 11h00, chiều 13h00- 17h00 từ thứ 2 đến thứ 6; \n- Thứ 7: Sáng 7h00 - 11h00. ","Kỹ thuật viên xét nghiệm"]
[17,"Giang Mộng Kha","004621/CT-CCHN","Kỹ thuật viên xét nghiệm","Toàn thời gian;\n- Sáng 7h00 – 11h00, chiều 13h00- 17h00 từ thứ 2 đến thứ 6; \n- Thứ 7: Sáng 7h00 - 11h00. ","Kỹ thuật viên xét nghiệm"]
[18,"Trịnh Hoài Minh","002621/CT-CCHN","Thực hiện các kỹ thuật thông thường về xét nghiệm","Toàn thời gian;\n- Sáng 7h00 – 11h00, chiều 13h00- 17h00 từ thứ 2 đến thứ 6; \n- Thứ 7: Sáng 7h00 - 11h00. ","Thực hiện các kỹ thuật thông thường về xét nghiệm"]
[19,"Nguyễn Hoàng Thái","006406/CT-CCHN","Kỹ thuật viên xét nghiệm","Toàn thời gian;\n- Sáng 7h00 – 11h00, chiều 13h00- 17h00 từ thứ 2 đến thứ 6; \n- Thứ 7: Sáng 7h00 - 11h00. ","Kỹ thuật viên xét nghiệm"]
[20,"Trần Thị Như","004571/CT-CCHN","Kỹ thuật viên xét nghiệm","Toàn thời gian;\n- Sáng 7h00 – 11h00, chiều 13h00- 17h00 từ thứ 2 đến thứ 6; \n- Thứ 7: Sáng 7h00 - 11h00. ","Kỹ thuật viên xét nghiệm"]
[21,"Nguyễn Thị Cẩm Giang","004737/CT-CCHN","Kỹ thuật viên xét nghiệm","Toàn thời gian;\n- Sáng 7h00 – 11h00, chiều 13h00- 17h00 từ thứ 2 đến thứ 6; \n- Thứ 7: Sáng 7h00 - 11h00. ","Kỹ thuật viên xét nghiệm"]
[22,"Nguyễn Yến Ngọc","007318/CT-CCHN","Chuyên khoa xét nghiệm","Toàn thời gian;\n- Sáng 7h00 – 11h00, chiều 13h00- 17h00 từ thứ 2 đến thứ 6; \n- Thứ 7: Sáng 7h00 - 11h00. ","Chuyên khoa xét nghiệm"]
[null,"KHOA CHẨN ĐOÁN HÌNH ẢNH"]
[1,"Huỳnh Vũ Hải","000002/CT-CCHN","Khám bệnh, chữa bệnh chuyên khoa Nhi; Bổ sung Chuyên khoa Chẩn đoán hình ảnh theo Quyết định số 50/QĐ-SYT ngày 15/01/2015","Toàn thời gian;\n- Sáng 7h00 – 11h00, chiều 13h00- 17h00 từ thứ 2 đến thứ 6; \n- Thứ 7: Sáng 7h00 - 11h00. ","Khám bệnh, chữa bệnh chuyên khoa Nhi; Bổ sung Chuyên khoa Chẩn đoán hình ảnh theo Quyết định số 50/QĐ-SYT ngày 15/01/2015"]
[2,"Võ Minh Vũ","006991/CT-CCHN","Chuyên khoa Siêu âm","Toàn thời gian;\n- Sáng 7h00 – 11h00, chiều 13h00- 17h00 từ thứ 2 đến thứ 6; \n- Thứ 7: Sáng 7h00 - 11h00. ","Chuyên khoa Siêu âm"]
[3,"Nguyễn Thành Tài","007050/CT-CCHN","Chuyên khoa Siêu âm","Toàn thời gian;\n- Sáng 7h00 – 11h00, chiều 13h00- 17h00 từ thứ 2 đến thứ 6; \n- Thứ 7: Sáng 7h00 - 11h00. ","Chuyên khoa Siêu âm"]
[4,"Trần Lê Phương Anh","006482/CT-CCHN","Khám bệnh, chữa bệnh đa khoa","Toàn thời gian;\n- Sáng 7h00 – 11h00, chiều 13h00- 17h00 từ thứ 2 đến thứ 6; \n- Thứ 7: Sáng 7h00 - 11h00. ","Khám bệnh, chữa bệnh đa khoa"]
[5,"Lương Văn Xinh","002724/CT-CCHN","Thực hiện các kỹ thuật chuyên khoa về hình ảnh y học","Toàn thời gian;\n- Sáng 7h00 – 11h00, chiều 13h00- 17h00 từ thứ 2 đến thứ 6; \n- Thứ 7: Sáng 7h00 - 11h00. ","Thực hiện các kỹ thuật chuyên khoa về hình ảnh y học"]
[6,"Hồ Văn Giàu","002697/CT-CCHN","Thực hiện các kỹ thuật thông thường về hình ảnh y học; Bổ sung phạm vi hoạt động: Kỹ thuật viên hình ảnh y học theo Quyết định số 1712/QĐ-SYT ngày 13/7/2017","Toàn thời gian;\n- Sáng 7h00 – 11h00, chiều 13h00- 17h00 từ thứ 2 đến thứ 6; \n- Thứ 7: Sáng 7h00 - 11h00. ","Thực hiện các kỹ thuật thông thường về hình ảnh y học; Bổ sung phạm vi hoạt động: Kỹ thuật viên hình ảnh y học theo Quyết định số 1712/QĐ-SYT ngày 13/7/2017"]
[7,"Huỳnh Trần Tiến","002698/CT-CCHN","Thực hiện các kỹ thuật thông thường về hình ảnh y học","Toàn thời gian;\n- Sáng 7h00 – 11h00, chiều 13h00- 17h00 từ thứ 2 đến thứ 6; \n- Thứ 7: Sáng 7h00 - 11h00. ","Thực hiện các kỹ thuật thông thường về hình ảnh y học"]
[8,"Nguyễn Thị Diễm Trúc","002772/CT-CCHN","Thực hiện các kỹ thuật thông thường về hình ảnh y học","Toàn thời gian;\n- Sáng 7h00 – 11h00, chiều 13h00- 17h00 từ thứ 2 đến thứ 6; \n- Thứ 7: Sáng 7h00 - 11h00. ","Thực hiện các kỹ thuật thông thường về hình ảnh y học"]
[9,"Trần Thị Mỹ Xuyên","002773/CT-CCHN","Thực hiện các kỹ thuật thông thường về hình ảnh y học","Toàn thời gian;\n- Sáng 7h00 – 11h00, chiều 13h00- 17h00 từ thứ 2 đến thứ 6; \n- Thứ 7: Sáng 7h00 - 11h00. ","Thực hiện các kỹ thuật thông thường về hình ảnh y học"]
[10,"Ngô Trung Khéo","002731/CT-CCHN","Thực hiện các kỹ thuật thông thường về hình ảnh y học","Toàn thời gian;\n- Sáng 7h00 – 11h00, chiều 13h00- 17h00 từ thứ 2 đến thứ 6; \n- Thứ 7: Sáng 7h00 - 11h00. ","Thực hiện các kỹ thuật thông thường về hình ảnh y học"]
[11,"Lê Thanh Điền","004735/CT-CCHN","Kỹ thuật viên hình ảnh y học","Toàn thời gian;\n- Sáng 7h00 – 11h00, chiều 13h00- 17h00 từ thứ 2 đến thứ 6; \n- Thứ 7: Sáng 7h00 - 11h00. ","Kỹ thuật viên hình ảnh y học"]
[12,"Dương Ngọc Bảo Duy","006559/CT-CCHN","Kỹ thuật viên hình ảnh y học","Toàn thời gian;\n- Sáng 7h00 – 11h00, chiều 13h00- 17h00 từ thứ 2 đến thứ 6; \n- Thứ 7: Sáng 7h00 - 11h00. ","Kỹ thuật viên hình ảnh y học"]
[13,"Lê Kỳ Kiều Diễm","002815/CT-CCHN","Thực hiện các kỹ thuật điều dưỡng cơ bản  ","Toàn thời gian;\n- Sáng 7h00 – 11h00, chiều 13h00- 17h00 từ thứ 2 đến thứ 6; \n- Thứ 7: Sáng 7h00 - 11h00. ","Thực hiện các kỹ thuật điều dưỡng cơ bản  "]
[14,"Trần Văn Kiên","003785/CT-CCHN","Thực hiện các kỹ thuật điều dưỡng cơ bản  ","Toàn thời gian;\n- Sáng 7h00 – 11h00, chiều 13h00- 17h00 từ thứ 2 đến thứ 6; \n- Thứ 7: Sáng 7h00 - 11h00. ","Thực hiện các kỹ thuật điều dưỡng cơ bản  "]
[15,"Lê Thị Phương Trang","002857/CT-CCHN","Thực hiện các kỹ thuật điều dưỡng cơ bản  ","Toàn thời gian;\n- Sáng 7h00 – 11h00, chiều 13h00- 17h00 từ thứ 2 đến thứ 6; \n- Thứ 7: Sáng 7h00 - 11h00. ","Thực hiện các kỹ thuật điều dưỡng cơ bản  "]
[null,"KHOA KIỂM SOÁT NHIỄM KHUẨN"]
[1,"Nguyễn Thị Ngọc Loan","000307/CT-CCHN","Khám, chữa bệnh chuyên khoa Nhi","Toàn thời gian;\n- Sáng 7h00 – 11h00, chiều 13h00- 17h00 từ thứ 2 đến thứ 6; \n- Thứ 7: Sáng 7h00 - 11h00. ","Khám, chữa bệnh chuyên khoa Nhi"]
[2,"Nguyễn Tuyết Mai","002889/CT-CCHN","Khám bệnh, chữa bệnh chuyên khoa Nhi","Toàn thời gian;\n- Sáng 7h00 – 11h00, chiều 13h00- 17h00 từ thứ 2 đến thứ 6; \n- Thứ 7: Sáng 7h00 - 11h00. ","Khám bệnh, chữa bệnh chuyên khoa Nhi"]
[3,"Trần Thị Út Bé","002823/CT-CCHN","Thực hiện các kỹ thuật điều dưỡng cơ bản  ","Toàn thời gian;\n- Sáng 7h00 – 11h00, chiều 13h00- 17h00 từ thứ 2 đến thứ 6; \n- Thứ 7: Sáng 7h00 - 11h00. ","Thực hiện các kỹ thuật điều dưỡng cơ bản  "]
[4,"Phan Thanh Toàn","002825/CT-CCHN","Thực hiện các kỹ thuật điều dưỡng cơ bản  ","Toàn thời gian;\n- Sáng 7h00 – 11h00, chiều 13h00- 17h00 từ thứ 2 đến thứ 6; \n- Thứ 7: Sáng 7h00 - 11h00. ","Thực hiện các kỹ thuật điều dưỡng cơ bản  "]
[5,"Hoàng Thiện Thùy Trang","002838/CT-CCHN","Thực hiện các kỹ thuật điều dưỡng cơ bản  ","Toàn thời gian;\n- Sáng 7h00 – 11h00, chiều 13h00- 17h00 từ thứ 2 đến thứ 6; \n- Thứ 7: Sáng 7h00 - 11h00. ","Thực hiện các kỹ thuật điều dưỡng cơ bản  "]
[6,"Lê Thành Tốt","002811/CT-CCHN","Trực tiếp hoặc phụ giúp thực hiện một số kỹ thuật điều dưỡng cơ bản  ","Toàn thời gian;\n- Sáng 7h00 – 11h00, chiều 13h00- 17h00 từ thứ 2 đến thứ 6; \n- Thứ 7: Sáng 7h00 - 11h00. ","Trực tiếp hoặc phụ giúp thực hiện một số kỹ thuật điều dưỡng cơ bản  "]
[null,"KHOA DƯỢC"]
[1,"Tạ Ngọc Điệp","324/CCHN-D-SYT-CT","Bán lẻ thuốc","Toàn thời gian;\n- Sáng 7h00 – 11h00, chiều 13h00- 17h00 từ thứ 2 đến thứ 6; \n- Thứ 7: Sáng 7h00 - 11h00. ","Khoa Dược"]
[2,"Nguyễn Thị Thu Vân","328/CCHN-D-SYT-CT","Bảo quản; Bán buôn thuốc, nguyên liệu làm thuốc; Bán lẻ thuốc; Dược lâm sàng","Toàn thời gian;\n- Sáng 7h00 – 11h00, chiều 13h00- 17h00 từ thứ 2 đến thứ 6; \n- Thứ 7: Sáng 7h00 - 11h00. ","Khoa Dược"]
[3,"Võ Thị Mộng Yến","1272/CCHN-D-SYT-CT","Bán lẻ thuốc","Toàn thời gian;\n- Sáng 7h00 – 11h00, chiều 13h00- 17h00 từ thứ 2 đến thứ 6; \n- Thứ 7: Sáng 7h00 - 11h00. ","Khoa Dược"]
[4,"Lê Trần Thanh Vy","163/CCHN-D-SYT-CT","Bán lẻ thuốc","Toàn thời gian;\n- Sáng 7h00 – 11h00, chiều 13h00- 17h00 từ thứ 2 đến thứ 6; \n- Thứ 7: Sáng 7h00 - 11h00. ","Khoa Dược"]
[5,"Nguyễn Thanh Huy","1089/CCHN-D-SYT-CT","Bán lẻ thuốc","Toàn thời gian;\n- Sáng 7h00 – 11h00, chiều 13h00- 17h00 từ thứ 2 đến thứ 6; \n- Thứ 7: Sáng 7h00 - 11h00. ","Khoa Dược"]
[6,"Huỳnh Bảo Trân","869/CCHN-D-SYT-CT","Bán lẻ thuốc","Toàn thời gian;\n- Sáng 7h00 – 11h00, chiều 13h00- 17h00 từ thứ 2 đến thứ 6; \n- Thứ 7: Sáng 7h00 - 11h00. ","Khoa Dược"]
[7,"Nguyễn Thanh Phúc","1633/CCHN-D-SYT-CT","Bán lẻ thuốc","Toàn thời gian;\n- Sáng 7h00 – 11h00, chiều 13h00- 17h00 từ thứ 2 đến thứ 6; \n- Thứ 7: Sáng 7h00 - 11h00. ","Khoa Dược"]
[8,"Nghiêm Thị Thanh Nhã","459/CCHN-D-SYT-CT","Bán lẻ thuốc","Toàn thời gian;\n- Sáng 7h00 – 11h00, chiều 13h00- 17h00 từ thứ 2 đến thứ 6; \n- Thứ 7: Sáng 7h00 - 11h00. ","Khoa Dược"]
[9,"Trần Ngọc Hiếu","1131/CCHN-D-SYT-CT","Bán lẻ thuốc","Toàn thời gian;\n- Sáng 7h00 – 11h00, chiều 13h00- 17h00 từ thứ 2 đến thứ 6; \n- Thứ 7: Sáng 7h00 - 11h00. ","Khoa Dược"]
[10,"Nguyễn Huỳnh Phước Duy","1949/CCHN-D-SYT-CT","Bán lẻ thuốc","Toàn thời gian;\n- Sáng 7h00 – 11h00, chiều 13h00- 17h00 từ thứ 2 đến thứ 6; \n- Thứ 7: Sáng 7h00 - 11h00. ","Khoa Dược"]
[11,"Trần Thanh Tùng ","2453/CCHN-D-SYT-CT","Bán lẻ thuốc","Toàn thời gian;\n- Sáng 7h00 – 11h00, chiều 13h00- 17h00 từ thứ 2 đến thứ 6; \n- Thứ 7: Sáng 7h00 - 11h00. ","Khoa Dược"]
[12,"Nguyễn Thị Kim Phượng","2577/CCHN-D-SYT-CT","Bán lẻ thuốc","Toàn thời gian;\n- Sáng 7h00 – 11h00, chiều 13h00- 17h00 từ thứ 2 đến thứ 6; \n- Thứ 7: Sáng 7h00 - 11h00. ","Khoa Dược"]
[13,"Nguyễn Thị Mộng Trúc","2650/CCHN-D-SYT-CT","Bán lẻ thuốc","Toàn thời gian;\n- Sáng 7h00 – 11h00, chiều 13h00- 17h00 từ thứ 2 đến thứ 6; \n- Thứ 7: Sáng 7h00 - 11h00. ","Khoa Dược"]
[14,"Võ Trần Thủy Ngân","2600/CCHN-D-SYT-CT","Bán lẻ thuốc","Toàn thời gian;\n- Sáng 7h00 – 11h00, chiều 13h00- 17h00 từ thứ 2 đến thứ 6; \n- Thứ 7: Sáng 7h00 - 11h00. ","Khoa Dược"]
[15,"Trần Thanh Thảo","2054/CCHN-D-SYT-CT","Bán lẻ thuốc","Toàn thời gian;\n- Sáng 7h00 – 11h00, chiều 13h00- 17h00 từ thứ 2 đến thứ 6; \n- Thứ 7: Sáng 7h00 - 11h00. ","Khoa Dược"]
[16,"Huỳnh Đan Thanh","2840/CCHN-D-SYT-CT","Bán lẻ thuốc","Toàn thời gian;\n- Sáng 7h00 – 11h00, chiều 13h00- 17h00 từ thứ 2 đến thứ 6; \n- Thứ 7: Sáng 7h00 - 11h00. ","Khoa Dược"]
[17,"Đinh Nguyễn Tường","2379/CCHN-D-SYT-CT","Bán lẻ thuốc","Toàn thời gian;\n- Sáng 7h00 – 11h00, chiều 13h00- 17h00 từ thứ 2 đến thứ 6; \n- Thứ 7: Sáng 7h00 - 11h00. ","Khoa Dược"]
[18,"Tạ Thị Thảo","1743/CCHN-D-SYT-CT","Bán lẻ thuốc","Toàn thời gian;\n- Sáng 7h00 – 11h00, chiều 13h00- 17h00 từ thứ 2 đến thứ 6; \n- Thứ 7: Sáng 7h00 - 11h00. ","Khoa Dược"]
[19,"Phan Thùy Lỷ","2459/CCHN-D-SYT-CT","Bán lẻ thuốc","Toàn thời gian;\n- Sáng 7h00 – 11h00, chiều 13h00- 17h00 từ thứ 2 đến thứ 6; \n- Thứ 7: Sáng 7h00 - 11h00. ","Khoa Dược"]
[20,"Phan Diễm Trinh","1831/CCHN-D-SYT-CT","Bán lẻ thuốc","Toàn thời gian;\n- Sáng 7h00 – 11h00, chiều 13h00- 17h00 từ thứ 2 đến thứ 6; \n- Thứ 7: Sáng 7h00 - 11h00. ","Khoa Dược"]
[21,"Nguyễn Bích Phượng","3092/CCHN-D-SYT-CT","Bán lẻ thuốc","Toàn thời gian;\n- Sáng 7h00 – 11h00, chiều 13h00- 17h00 từ thứ 2 đến thứ 6; \n- Thứ 7: Sáng 7h00 - 11h00. ","Khoa Dược"]
[22,"Võ Thị Ngọc Diễm","3107/CCHN-D-SYT-CT","Bán lẻ thuốc","Toàn thời gian;\n- Sáng 7h00 – 11h00, chiều 13h00- 17h00 từ thứ 2 đến thứ 6; \n- Thứ 7: Sáng 7h00 - 11h00. ","Khoa Dược"]
[23,"Trương Thị Mộng Thắm","3020/CCHN-D-SYT-CT","Bán lẻ thuốc","Toàn thời gian;\n- Sáng 7h00 – 11h00, chiều 13h00- 17h00 từ thứ 2 đến thứ 6; \n- Thứ 7: Sáng 7h00 - 11h00. ","Khoa Dược"]
[24,"Trần Thị Hồng Lan","3009/CCHN-D-SYT-CT","Bán lẻ thuốc","Toàn thời gian;\n- Sáng 7h00 – 11h00, chiều 13h00- 17h00 từ thứ 2 đến thứ 6; \n- Thứ 7: Sáng 7h00 - 11h00. ","Khoa Dược"]
[25,"Nguyễn Hoàng Tuấn","3022/CCHN-D-SYT-CT","Bán lẻ thuốc","Toàn thời gian;\n- Sáng 7h00 – 11h00, chiều 13h00- 17h00 từ thứ 2 đến thứ 6; \n- Thứ 7: Sáng 7h00 - 11h00. ","Khoa Dược"]
[26,"Vũ Thị Hương Lan","3029/CCHN-D-SYT-CT","Bán lẻ thuốc","Toàn thời gian;\n- Sáng 7h00 – 11h00, chiều 13h00- 17h00 từ thứ 2 đến thứ 6; \n- Thứ 7: Sáng 7h00 - 11h00. ","Khoa Dược"]
[27,"Nguyễn Thị Đức Hoàng","3030/CCHN-D-SYT-CT","Bán lẻ thuốc","Toàn thời gian;\n- Sáng 7h00 – 11h00, chiều 13h00- 17h00 từ thứ 2 đến thứ 6; \n- Thứ 7: Sáng 7h00 - 11h00. ","Khoa Dược"]
[null,"NHÀ THUỐC"]
[1,"Trương Thị Bé Ba","866/CCHN-D-SYT-CT","Bán lẻ thuốc","Toàn thời gian;\n- Sáng 7h00 – 11h00, chiều 13h00- 17h00 từ thứ 2 đến thứ 6; \n- Thứ 7: Sáng 7h00 - 11h00. ","Nhà thuốc"]
[2,"La Kim Ngọc","1148/CCHN-D-SYT-CT","Bán buôn thuốc, nguyên liệu làm thuốc, bán lẻ thuốc","Toàn thời gian;\n- Sáng 7h00 – 11h00, chiều 13h00- 17h00 từ thứ 2 đến thứ 6; \n- Thứ 7: Sáng 7h00 - 11h00. ","Nhà thuốc"]
[3,"Nguyễn Thảo Vân","2452/CCHN-D-SYT-CT","Bán lẻ thuốc","Toàn thời gian;\n- Sáng 7h00 – 11h00, chiều 13h00- 17h00 từ thứ 2 đến thứ 6; \n- Thứ 7: Sáng 7h00 - 11h00. ","Nhà thuốc"]
[4,"Lâm Thị Thanh Trúc","2619/CCHN-D-SYT-CT","Bán lẻ thuốc","Toàn thời gian;\n- Sáng 7h00 – 11h00, chiều 13h00- 17h00 từ thứ 2 đến thứ 6; \n- Thứ 7: Sáng 7h00 - 11h00. ","Nhà thuốc"]
[5,"Nguyễn Thị Thúy Hằng","3106/CCHN-D-SYT-CT","Bán lẻ thuốc","Toàn thời gian;\n- Sáng 7h00 – 11h00, chiều 13h00- 17h00 từ thứ 2 đến thứ 6; \n- Thứ 7: Sáng 7h00 - 11h00. ","Nhà thuốc"]
[6,"Trần Thị Kim Phú","2376/CCHN-D-SYT-CT","Bán lẻ thuốc","Toàn thời gian;\n- Sáng 7h00 – 11h00, chiều 13h00- 17h00 từ thứ 2 đến thứ 6; \n- Thứ 7: Sáng 7h00 - 11h00. ","Nhà thuốc"]
[7,"Nguyễn Thị Huỳnh Như","2486/CCHN-D-SYT-CT","Bán lẻ thuốc","Toàn thời gian;\n- Sáng 7h00 – 11h00, chiều 13h00- 17h00 từ thứ 2 đến thứ 6; \n- Thứ 7: Sáng 7h00 - 11h00. ","Nhà thuốc"]
[8,"Mai Thị Hồng Diễm","1621/CCHN-D-SYT-CT","Bán lẻ thuốc","Toàn thời gian;\n- Sáng 7h00 – 11h00, chiều 13h00- 17h00 từ thứ 2 đến thứ 6; \n- Thứ 7: Sáng 7h00 - 11h00. ","Nhà thuốc"]
[9,"Huỳnh Thanh Kiều","3086/CCHN-D-SYT-CT","Bán lẻ thuốc","Toàn thời gian;\n- Sáng 7h00 – 11h00, chiều 13h00- 17h00 từ thứ 2 đến thứ 6; \n- Thứ 7: Sáng 7h00 - 11h00. ","Nhà thuốc"]
[10,"Nguyễn Thị Mộng Tuyền","3186/CCHN-D-SYT-CT","Bán lẻ thuốc","Toàn thời gian;\n- Sáng 7h00 – 11h00, chiều 13h00- 17h00 từ thứ 2 đến thứ 6; \n- Thứ 7: Sáng 7h00 - 11h00. ","Nhà thuốc"]
[11,"Nguyễn Hữu Tình","3162/CCHN-D-SYT-CT","Bán lẻ thuốc","Toàn thời gian;\n- Sáng 7h00 – 11h00, chiều 13h00- 17h00 từ thứ 2 đến thứ 6; \n- Thứ 7: Sáng 7h00 - 11h00. ","Nhà thuốc"]
[12,"Hồ Ngọc Mến","3195/CCHN-D-SYT-CT","Bán lẻ thuốc","Toàn thời gian;\n- Sáng 7h00 – 11h00, chiều 13h00- 17h00 từ thứ 2 đến thứ 6; \n- Thứ 7: Sáng 7h00 - 11h00. ","Nhà thuốc"]
[13,"Phạm Thị Bích Lụa","3191/CCHN-D-SYT-CT","Bán lẻ thuốc","Toàn thời gian;\n- Sáng 7h00 – 11h00, chiều 13h00- 17h00 từ thứ 2 đến thứ 6; \n- Thứ 7: Sáng 7h00 - 11h00. ","Nhà thuốc"]
[14,"Huỳnh Trí Thức","3157/CCHN-D-SYT-CT","Bán lẻ thuốc","Toàn thời gian;\n- Sáng 7h00 – 11h00, chiều 13h00- 17h00 từ thứ 2 đến thứ 6; \n- Thứ 7: Sáng 7h00 - 11h00. ","Nhà thuốc"]
[null,{"$f":"\"DANH SÁCH NÀY CÓ: \" & COUNTA(C14:C506) & \" NGƯỜI\"","v":"DANH SÁCH NÀY CÓ: 463 NGƯỜI"}]
[]
["NGƯỜI LẬP BẢNG",null,null,null,"GIÁM ĐỐC"]
[]
[]
[]
[]
[]
[]
["Nguyễn Huỳnh Minh Thư"]

{"sheet":"Chưa CCHN","index":1,"n_rows":52,"n_cols":11,"rows_kept":52,"cut":false,"hidden":false,"merged":[[3,6,3,8],[3,9,4,9],[3,0,4,0],[3,1,4,1],[3,2,4,2],[3,3,4,3],[3,4,4,4],[3,5,4,5]]}
[]
[null,"6. Danh sách người thực hành khám bệnh, chữa bệnh và lĩnh vực Dược"]
[]
["STT","Họ và tên","Văn bằng chuyên môn","Số hợp đồng","Dự kiến phạm vi cấp CCHN","Người hướng dẫn thực hành","Thời gian thực hành",null,null,"Khoa, phòng"]
[{"$nulls":6},"Số tháng","Từ ngày","đến ngày"]
[1,"Nguyễn Lương Phương Vũ Ngọc","Bác sĩ đa khoa","101/2021/HĐLĐ-BVNĐ","Khám bệnh, chữa bệnh Nhi khoa","BSCKII. Huỳnh Hùng Dũng",18,"2021-12-06",{"$f":"EDATE(H6,G6)","v":"2023-06-06"},"Cấp cứu"]
[2,"Nguyễn Quốc An","Bác sĩ đa khoa","102/2021/HĐLĐ-BVNĐ","Khám bệnh, chữa bệnh Nhi khoa","BSCKII. Huỳnh Hùng Dũng",18,"2021-12-08","2023-06-08","KHTH"]
[3,"Nguyễn Thị Nhật Đan","Cao đẳng điều dưỡng","08/2021/HĐLĐ-BVNĐ","Thực hiện theo chức năng nhiệm vụ của điều dưỡng quy định theo Thông tư liên tịch số 26/2015/TTLT-BYT ngày 07/10/2016","CNĐD. Nguyễn Văn Do",9,"2021-02-01","2021-11-01","CĐT"]
[4,"Nguyễn Mỹ Phúc","Cao đẳng dược","51/HĐLV","Bán lẻ thuốc","DS. Võ Thị Mộng Yến",18,"2021-06-01","2022-12-01","QLCL"]
[5,"Hoàng Thị Thanh Trang","Cao đẳng dược","53/HĐLV","Bán lẻ thuốc","DS. Võ Thị Mộng Yến",18,"2021-06-01","2022-12-01","CTXH"]
[6,"Lê Kim Yến","Cao đẳng điều dưỡng","519/2016/HĐLĐ-BVNĐ","Thực hiện theo chức năng nhiệm vụ của điều dưỡng quy định theo Thông tư liên tịch số 26/2015/TTLT-BYT ngày 07/10/2015","CNĐD. Trần Thị Kim Cúc",9,"2016-10-17",{"$f":"EDATE(H11,G11)","v":"2017-07-17"},"TN"]
[7,"Nguyễn Thị Bảo Trân","Cao đẳng điều dưỡng","478/HĐLĐ-BVNĐ","Thực hiện theo chức năng nhiệm vụ của điều dưỡng quy định theo Thông tư liên tịch số 26/2015/TTLT-BYT ngày 07/10/2015","CNĐD. Phan Trang Nhã",9,"2016-08-25","2017-05-25","NTM"]
[8,"Nguyễn Kiều Trinh","Điều dưỡng trung cấp","629/2019/HĐLĐ-BVNĐ","Thực hiện theo chức năng nhiệm vụ của điều dưỡng quy định theo Thông tư liên tịch số 26/2015/TTLT-BYT ngày 07/10/2015","CNĐD. Nguyễn Văn Do",9,"2019-11-01","2020-08-01","KB"]
[9,"Nguyễn Thanh Hoàng","Bác sĩ đa khoa","12/2021/HĐLĐ-BVNĐ","Khám bệnh, chữa bệnh Nhi khoa","BSCKII. Huỳnh Hùng Dũng",18,"2021-02-17","2022-08-17","Nhiễm"]
[10,"Võ Trần Triết","Bác sĩ đa khoa","76/2021/HĐLĐ-BVNĐ","Khám bệnh, chữa bệnh Ngoại Nhi","BSCKII. Tạ Vũ Quỳnh",9,"2021-07-01","2022-04-01","NgTH"]
[11,"Trần Tố Huỳnh","Bác sĩ đa khoa","46/HĐLV","Khám bệnh, chữa bệnh Nhi khoa","ThSBS. Diệp Loan",18,"2021-06-01",{"$f":"EDATE(H16,G16)","v":"2022-12-01"},"GMHS"]
[12,"Nguyễn Văn Huynh","Điều dưỡng trung cấp","HĐLĐCTH","Thực hiện theo chức năng nhiệm vụ của điều dưỡng quy định theo Thông tư liên tịch số 26/2015/TTLT-BYT ngày 07/10/2015",null,9,"1988-03-01","1988-12-01","GMHS"]
[13,"Phan Thúy Mai","Bác sĩ đa khoa","02/2022/HĐLĐ-BVNĐ","Khám bệnh, chữa bệnh Ngoại Nhi",null,18,"2022-01-10",{"$f":"EDATE(H18,G18)","v":"2023-07-10"},"CTCH"]
[14,"Đỗ Thanh Trúc","Bác sĩ đa khoa","13/2021/HĐLĐ-BVNĐ","Khám bệnh, chữa bệnh Nhi khoa","BSCKI. Võ Thị Thùy Linh",18,"2021-02-18","2022-08-18","3CK"]
[15,"Nguyễn Thị Xinh","Bác sĩ đa khoa","Thí công ngày 22/11/2021",{"$nulls":5},"3CK"]
[16,"Dương Xên Hon","Bác sĩ đa khoa","43/HĐLĐ-BVNĐ","Khám bệnh, chữa bệnh Nhi khoa","BSCKI. Võ Thị Thùy Linh",18,"2022-10-01","2024-04-01","3CK"]
[17,"Hồng Kim Tuyến","Bác sĩ y học cổ truyền","74/HĐLĐ-BVNĐ","Khám bệnh, chữa bệnh vật lý trị liệu, phục hồi chức năng",null,6,"2020-08-03",{"$f":"EDATE(H22,G22)","v":"2021-02-03"},"VLTL"]
[18,"Nguyễn Thị Thúy Mai","Cử nhân Sinh học","67/HĐLV","Thực hiện các kỹ thuật thông thường về xét nghiệm","DSCKI. Đặng Thụy Thúy Hồng",9,"2021-06-01","2022-03-01","XN"]
[19,"Lê Thị Tuyết Ngọc","Bác sĩ đa khoa","44/HĐLĐ-BVNĐ","Khám bệnh, chữa bệnh Nhi khoa",null,18,"2022-10-01","2024-04-01","XN"]
[20,"Lưu Trung Tín","Bác sĩ đa khoa","75/HĐLĐ-BVNĐ","Khám bệnh, chữa bệnh Nhi khoa","BSCKI. Huỳnh Vũ Hải",18,"2020-09-16","2022-03-16","CĐHA"]
[21,"Trần Hồng Thiệp","Cao đẳng điều dưỡng","277/HĐ-BVNĐ","Thực hiện theo chức năng nhiệm vụ của điều dưỡng quy định theo Thông tư liên tịch số 26/2015/TTLT-BYT ngày 07/10/2015","CĐĐD. Sơn Thị Thanh Hòa",9,"2019-12-01","2020-09-01","KSNK"]
[22,"Đỗ Văn Phụng","Điều dưỡng sơ cấp","HĐLĐCTH","Thực hiện theo chức năng nhiệm vụ của điều dưỡng quy định theo Thông tư liên tịch số 26/2015/TTLT-BYT ngày 07/10/2015",null,null,"1987-12-01",null,"KSNK"]
[23,"Nguyễn Thị Phượng Châu","Dược sĩ ĐH","37/HĐLV-BVNĐ","Bán lẻ thuốc",null,null,"2018-04-12",null,"Dược"]
[24,"Nguyễn Dziệu Như Quỳnh","DS ĐH","100/2021/HĐLĐ-BVNĐ","Bán lẻ thuốc",{"$nulls":4},"Dược"]
[25,"Trần Thị Phương Vân","Cao đẳng dược","22/2021/HĐLĐ-BVNĐ","Bán lẻ thuốc",null,null,"2021-04-01",null,"Dược"]
[26,"Nguyễn Hoàng Tân","Dược sĩ ĐH","97/2020/HĐLĐ-BVNĐ","Bán lẻ thuốc",null,null,"2020-11-16",null,"Dược"]
[27,"Lê Ngọc Hân","Dược sĩ ĐH","81/2020/HĐLĐ-BVNĐ","Bán lẻ thuốc",null,null,"2020-10-01",null,"Dược"]
[28,"Kiều Trương Nhật Thông","Dược sĩ ĐH","94/2020/HĐLĐ-BVNĐ","Bán lẻ thuốc",null,null,"2020-11-01",null,"Dược"]
[29,"Lê Hải Yến","Dược sĩ trung cấp","479/HĐLĐ-BVNĐ","Bán lẻ thuốc",null,null,"2021-04-01",null,"Dược"]
[30,"Lê Thị Thương Vi","Cao đẳng dược","54/HĐLV","Bán lẻ thuốc",null,null,"2021-06-01",null,"Dược"]
[31,"Võ Thị Lan Kha","Cao đẳng dược","55/HĐLV","Bán lẻ thuốc",null,null,"2021-06-01",null,"Dược"]
[32,"Huỳnh Phạm Anh Thư","Cao đẳng dược",97,"Bán lẻ thuốc",null,null,"2007-09-01",null,"Dược"]
[33,"Dương Thị Ý Thơ","Dược sĩ trung cấp","358/HĐ-ĐVTTL-BVNĐ","Bán lẻ thuốc",null,null,"2014-06-01",null,"Nhà thuốc"]
[34,"Nguyễn Thu Quỳnh","Dược sĩ trung cấp","478/HĐLĐ-BVNĐ","Bán lẻ thuốc",null,null,"2016-06-13",null,"Nhà thuốc"]
[35,"Nguyễn Phương Tiên","Dược sĩ trung cấp","379/HĐ-ĐVTTL-BVNĐ","Bán lẻ thuốc",null,null,"2014-07-01",null,"Nhà thuốc"]
[36,"Trần Thị Hải","Dược sĩ trung cấp","477/HĐLĐ-BVNĐ","Bán lẻ thuốc",null,null,"2016-06-13",null,"Nhà thuốc"]
[37,"Hồng Như Ý","Dược sĩ ĐH","95/2020/HĐLĐ-BVNĐ","Bán lẻ thuốc",null,null,"2020-11-01",null,"Nhà thuốc","Đã nộp HS"]
[38,"Trần Thị Thanh Hồng","Dược sĩ trung cấp","378/HĐ-ĐVTTL-BVNĐ","Bán lẻ thuốc",null,null,"2014-06-01",null,"Nhà thuốc"]
[39,"Trần Ngọc Bảo Trân","Dược sĩ ĐH","45/HĐLĐ-BVNĐ","Bán lẻ thuốc",null,null,"2022-10-01",null,"Nhà thuốc"]
[40,"Lê Thị Diệu Ái","Dược sĩ ĐH","46/HĐLĐ-BVNĐ","Bán lẻ thuốc",null,null,"2022-10-01",null,"Nhà thuốc"]
[41,"Nguyễn Nam Anh","Dược sĩ ĐH","47/HĐLĐ-BVNĐ","Bán lẻ thuốc",null,null,"2022-10-01",null,"Nhà thuốc"]
[42,"Nguyễn Minh Thư","Dược sĩ ĐH","49/HĐLĐ-BVNĐ","Bán lẻ thuốc",null,null,"2022-10-01",null,"Nhà thuốc"]
[43,"Đào Phong Phú","Cao đẳng điều dưỡng","32/2022/HĐLĐ-BVNĐ","Thực hiện theo chức năng nhiệm vụ của điều dưỡng quy định theo Thông tư liên tịch số 26/2015/TTLT-BYT ngày 07/10/2015","CNĐD. Phạm Thị Bích Thảo",9,"2022-08-01","2023-04-30","NTMạch"]
[44,"Trần Khả Vy","Dược sĩ ĐH","31/2022/HĐLĐ-BVNĐ","Bán lẻ thuốc","DS.CKI. Tạ Ngọc Điệp",24,"2022-08-01",{"$f":"EDATE(H49,G49)","v":"2024-08-01"},"Dược"]
[45,"Thạch Chí Hào","Cao đẳng điều dưỡng","33/2022/HĐLĐ-BVNĐ","Thực hiện theo chức năng nhiệm vụ của điều dưỡng quy định theo Thông tư liên tịch số 26/2015/TTLT-BYT ngày 07/10/2015","CNĐD. Nguyễn Văn Do",9,"2022-08-01","2023-04-30","Cấp cứu"]
[46,"Hồ Thị Minh Châu","Thạc sỹ y học Nhi khoa","01/HĐTH-BVNĐ","Khám bệnh, chữa bệnh Nhi khoa","BS.CKII. Phạm Công Tạo",18,"2022-05-01","2023-11-01","Nội Hô hấp"]
[47,"Hứa Thị Thanh Thùy","Bác sĩ","04/HĐTH-BVNĐ","Khám bệnh, chữa bệnh Nhi khoa","BS.CKII. Phạm Công Tạo",18,"2022-12-01","2024-06-01","Nội Hô hấp"]

{"sheet":"Không CCHN","index":2,"n_rows":87,"n_cols":5,"rows_kept":87,"cut":false,"hidden":false,"merged":[[0,1,0,4]]}
[null,"7. Danh sách đăng ký người làm việc (bao gồm những người làm việc tại cơ sở nhưng không thuộc diện phải cấp chứng chỉ hành nghề khám bệnh, chữa bệnh)"]
["STT","Họ và tên ","Văn bằng chuyên môn","Thời gian đăng ký \nhành nghề tại cơ sở khám bệnh, chữa bệnh (ghi cụ thể thời gian làm việc)","Vị trí làm việc\n(ghi cụ thể chức danh, vị trí làm việc được phân công cụ thể)"]
[1,"Võ Văn Quốc","Cử nhân công nghệ thông tin","Toàn thời gian, sáng 07g-11g; chiều 13g-17g, từ thứ hai đến thứ sáu","Nhân viên phòng Kế hoạch tổng hợp"]
[2,"Võ Quốc Vinh","Cao đẳng tin học","Toàn thời gian, sáng 07g-11g; chiều 13g-17g, từ thứ hai đến thứ sáu","Nhân viên phòng Kế hoạch tổng hợp"]
[3,"Trần Vũ Quang","Cử nhân tin học","Toàn thời gian, sáng 07g-11g; chiều 13g-17g, từ thứ hai đến thứ sáu","Nhân viên phòng Kế hoạch tổng hợp"]
[4,"Ngô Nhật Thiên Tân","Kỹ sư công nghệ thông tin","Toàn thời gian, sáng 07g-11g; chiều 13g-17g, từ thứ hai đến thứ sáu","Nhân viên phòng Kế hoạch tổng hợp"]
[5,"Nguyễn Thị Hồng Hạnh","Kỹ sư hệ thống thông tin","Toàn thời gian, sáng 07g-11g; chiều 13g-17g, từ thứ hai đến thứ sáu","Nhân viên phòng Kế hoạch tổng hợp"]
[6,"Từ Thị Hoàng Yến","Hộ lý","Toàn thời gian, sáng 07g-11g; chiều 13g-17g, từ thứ hai đến thứ sáu","Nhân viên phòng Điều dưỡng"]
[7,"Vũ Thục Uyên","Cử nhân ngôn ngữ anh","Toàn thời gian, sáng 07g-11g; chiều 13g-17g, từ thứ hai đến thứ sáu","Nhân viên - phòng Chỉ đạo tuyến"]
[8,"Nguyễn Thị Phương Linh","Cử nhân ngôn ngữ anh","Toàn thời gian, sáng 07g-11g; chiều 13g-17g, từ thứ hai đến thứ sáu","Nhân viên phòng Quản lý chất lượng"]
[9,"Phạm Hoàng Dũng","Nhân viên kỹ thuật thiết bị y tế","Toàn thời gian, sáng 07g-11g; chiều 13g-17g, từ thứ hai đến thứ sáu","Nhân viên phòng vật tư thiết bị y tế"]
[10,"Giang Phong Tranh","Kỹ sư điện","Toàn thời gian, sáng 07g-11g; chiều 13g-17g, từ thứ hai đến thứ sáu","Nhân viên phòng vật tư thiết bị y tế"]
[11,"Ngô Nguyễn Hữu Thoại","Kỹ sư điện Điện tử","Toàn thời gian, sáng 07g-11g; chiều 13g-17g, từ thứ hai đến thứ sáu","Nhân viên phòng vật tư thiết bị y tế"]
[12,"Nguyễn Trọng Hữu","Kỹ sư Cơ điện tử","Toàn thời gian, sáng 07g-11g; chiều 13g-17g, từ thứ hai đến thứ sáu","Nhân viên phòng vật tư thiết bị y tế"]
[13,"Đặng Hoàng Phố","Cao đẳng Cơ điện tử","Toàn thời gian, sáng 07g-11g; chiều 13g-17g, từ thứ hai đến thứ sáu","Nhân viên phòng vật tư thiết bị y tế"]
[14,"Đặng Quốc Thái","Thạc sĩ Quản lý công","Toàn thời gian, sáng 07g-11g; chiều 13g-17g, từ thứ hai đến thứ sáu","Trưởng phòng - Phòng Hành chính quản trị"]
[15,"Lê Tấn Phúc","Kỹ sư Điện","Toàn thời gian, sáng 07g-11g; chiều 13g-17g, từ thứ hai đến thứ sáu","Phó Trưởng phòng - Phòng Hành chính quản trị"]
[16,"Huỳnh Văn Bê","Kế toán sơ cấp","Toàn thời gian, sáng 07g-11g; chiều 13g-17g, từ thứ hai đến thứ sáu","Nhân viên Phòng Hành chính quản trị"]
[17,"Huỳnh Hữu Lực","Lái xe","Toàn thời gian, sáng 07g-11g; chiều 13g-17g, từ thứ hai đến thứ sáu","Nhân viên Phòng Hành chính quản trị"]
[18,"Dương Hồng Phương","Điện trung cấp","Toàn thời gian, sáng 07g-11g; chiều 13g-17g, từ thứ hai đến thứ sáu","Nhân viên Phòng Hành chính quản trị"]
[19,"Bùi Hồng Quân","Kỹ sư điện công nghiệp","Toàn thời gian, sáng 07g-11g; chiều 13g-17g, từ thứ hai đến thứ sáu","Nhân viên Phòng Hành chính quản trị"]
[20,"Phạm Công Danh","Cử nhân quản trị kinh doanh","Toàn thời gian, sáng 07g-11g; chiều 13g-17g, từ thứ hai đến thứ sáu","Nhân viên Phòng Hành chính quản trị"]
[21,"Võ Bá Ngọc","Cử nhân quản trị kinh doanh","Toàn thời gian, sáng 07g-11g; chiều 13g-17g, từ thứ hai đến thứ sáu","Nhân viên Phòng Hành chính quản trị"]
[22,"Lưu Phước Ngọc","Cao đẳng Kỹ thuật máy lạnh & điều hòa không khí","Toàn thời gian, sáng 07g-11g; chiều 13g-17g, từ thứ hai đến thứ sáu","Nhân viên Phòng Hành chính quản trị"]
[23,"Trần Hoàng Thái","Cử nhân luật","Toàn thời gian, sáng 07g-11g; chiều 13g-17g, từ thứ hai đến thứ sáu","Nhân viên Phòng Hành chính quản trị"]
[24,"Nguyễn Thanh Thanh","Cử nhân luật","Toàn thời gian, sáng 07g-11g; chiều 13g-17g, từ thứ hai đến thứ sáu","Nhân viên Phòng Hành chính quản trị"]
[25,"Lâm Hùng Trung","Nhân viên kỹ thuật","Toàn thời gian, sáng 07g-11g; chiều 13g-17g, từ thứ hai đến thứ sáu","Nhân viên Phòng Hành chính quản trị"]
[26,"Ngô Văn Khuôl","Điện trung cấp","Toàn thời gian, sáng 07g-11g; chiều 13g-17g, từ thứ hai đến thứ sáu","Nhân viên Phòng Hành chính quản trị"]
[27,"Diêm Hoàng Trung","Lái xe","Toàn thời gian, sáng 07g-11g; chiều 13g-17g, từ thứ hai đến thứ sáu","Nhân viên Phòng Hành chính quản trị"]
[28,"Lê Anh Vũ","Lái xe","Toàn thời gian, sáng 07g-11g; chiều 13g-17g, từ thứ hai đến thứ sáu","Nhân viên Phòng Hành chính quản trị"]
[29,"Lê Hoàng Vũ","Lái xe","Toàn thời gian, sáng 07g-11g; chiều 13g-17g, từ thứ hai đến thứ sáu","Nhân viên Phòng Hành chính quản trị"]
[30,"Trần Minh Thông","Trung cấp xây dựng","Toàn thời gian, sáng 07g-11g; chiều 13g-17g, từ thứ hai đến thứ sáu","Nhân viên Phòng Hành chính quản trị"]
[31,"Nguyễn Chí Công","Lái xe","Toàn thời gian, sáng 07g-11g; chiều 13g-17g, từ thứ hai đến thứ sáu","Nhân viên Phòng Hành chính quản trị"]
[32,"Phan Thị Diệu Linh","Cử nhân luật","Toàn thời gian, sáng 07g-11g; chiều 13g-17g, từ thứ hai đến thứ sáu","Nhân viên phòng Tổ chức cán bộ"]
[33,"Nguyễn Thanh Tuyền","Thạc sĩ Kinh tế học","Toàn thời gian, sáng 07g-11g; chiều 13g-17g, từ thứ hai đến thứ sáu","Nhân viên phòng Tổ chức cán bộ"]
[34,"Nguyễn Vĩnh","Cử nhân ngôn ngữ pháp","Toàn thời gian, sáng 07g-11g; chiều 13g-17g, từ thứ hai đến thứ sáu","Nhân viên phòng Tổ chức cán bộ"]
[35,"Huỳnh Nguyễn Minh Thư","Cử nhân tài chính ngân hàng","Toàn thời gian, sáng 07g-11g; chiều 13g-17g, từ thứ hai đến thứ sáu","Nhân viên phòng Tổ chức cán bộ"]
[36,"Nguyễn Văn Bỉnh","Thạc sĩ quản trị kinh doanh","Toàn thời gian, sáng 07g-11g; chiều 13g-17g, từ thứ hai đến thứ sáu","Trưởng phòng - Phòng Tài chính kế toán"]
[37,"Phạm Thị Giao Chi","Cử nhân kế toán","Toàn thời gian, sáng 07g-11g; chiều 13g-17g, từ thứ hai đến thứ sáu","Phó trưởng phòng - phòng Tài chính kế toán"]
[38,"Trần Kiên Giang","Cử nhân kế toán","Toàn thời gian, sáng 07g-11g; chiều 13g-17g, từ thứ hai đến thứ sáu","Nhân viên phòng Tài chính kế toán"]
[39,"Nguyễn Văn Quốc Trần","Cử nhân kinh tế","Toàn thời gian, sáng 07g-11g; chiều 13g-17g, từ thứ hai đến thứ sáu","Nhân viên phòng Tài chính kế toán"]
[40,"Võ Minh Nguyệt","Cử nhân kế toán","Toàn thời gian, sáng 07g-11g; chiều 13g-17g, từ thứ hai đến thứ sáu","Nhân viên phòng Tài chính kế toán"]
[41,"Trình Nguyễn Bích Loan","Cử nhân kế toán","Toàn thời gian, sáng 07g-11g; chiều 13g-17g, từ thứ hai đến thứ sáu","Nhân viên phòng Tài chính kế toán"]
[42,"Trần Thị Thúy Quỳnh","Cử nhân kế toán","Toàn thời gian, sáng 07g-11g; chiều 13g-17g, từ thứ hai đến thứ sáu","Nhân viên phòng Tài chính kế toán"]
[43,"Trần Thị Ngọc Hạnh","Cử nhân kế toán","Toàn thời gian, sáng 07g-11g; chiều 13g-17g, từ thứ hai đến thứ sáu","Nhân viên phòng Tài chính kế toán"]
[44,"Nguyễn Thị Vĩnh","Cử nhân kế toán","Toàn thời gian, sáng 07g-11g; chiều 13g-17g, từ thứ hai đến thứ sáu","Nhân viên phòng Tài chính kế toán"]
[45,"Ông Trương Anh Thư","Cử nhân kế toán","Toàn thời gian, sáng 07g-11g; chiều 13g-17g, từ thứ hai đến thứ sáu","Nhân viên phòng Tài chính kế toán"]
[46,"Lâm Huỳnh Ngọc Thanh","Cử nhân kế toán","Toàn thời gian, sáng 07g-11g; chiều 13g-17g, từ thứ hai đến thứ sáu","Nhân viên phòng Tài chính kế toán"]
[47,"Lê Thị Thanh Giang","Cử nhân kế toán","Toàn thời gian, sáng 07g-11g; chiều 13g-17g, từ thứ hai đến thứ sáu","Nhân viên phòng Tài chính kế toán"]
[48,"Trương Nguyễn Hải Khoa","Cử nhân kế toán","Toàn thời gian, sáng 07g-11g; chiều 13g-17g, từ thứ hai đến thứ sáu","Nhân viên phòng Tài chính kế toán"]
[49,"Phan Huỳnh Chúc Mai","Cử nhân kế toán","Toàn thời gian, sáng 07g-11g; chiều 13g-17g, từ thứ hai đến thứ sáu","Nhân viên phòng Tài chính kế toán"]
[50,"Huỳnh Văn Chơn","Cử nhân kế toán","Toàn thời gian, sáng 07g-11g; chiều 13g-17g, từ thứ hai đến thứ sáu","Nhân viên phòng Tài chính kế toán"]
[51,"Ngô Thị Ngọc Huyền","Cử nhân kế toán","Toàn thời gian, sáng 07g-11g; chiều 13g-17g, từ thứ hai đến thứ sáu","Nhân viên phòng Tài chính kế toán"]
[52,"Nguyễn Phượng Giao","Kế toán trung cấp","Toàn thời gian, sáng 07g-11g; chiều 13g-17g, từ thứ hai đến thứ sáu","Nhân viên phòng Tài chính kế toán"]
[53,"Sơn Thị Kim Pha","Cử nhân kế toán","Toàn thời gian, sáng 07g-11g; chiều 13g-17g, từ thứ hai đến thứ sáu","Nhân viên phòng Tài chính kế toán"]
[54,"Tăng Thị Mộng Tuyền","Kế toán trung cấp","Toàn thời gian, sáng 07g-11g; chiều 13g-17g, từ thứ hai đến thứ sáu","Nhân viên phòng Tài chính kế toán"]
[55,"Lê Thị Hồng Nhi","Kế toán trung cấp","Toàn thời gian, sáng 07g-11g; chiều 13g-17g, từ thứ hai đến thứ sáu","Nhân viên phòng Tài chính kế toán"]
[56,"Nguyễn Hữu Cầu","Kế toán trung cấp","Toàn thời gian, sáng 07g-11g; chiều 13g-17g, từ thứ hai đến thứ sáu","Nhân viên phòng Tài chính kế toán"]
[57,"Châu Khánh Ly","Kế toán trung cấp","Toàn thời gian, sáng 07g-11g; chiều 13g-17g, từ thứ hai đến thứ sáu","Nhân viên phòng Tài chính kế toán"]
[58,"Trình Nguyễn Vĩnh Thắng","Cao đẳng kế toán","Toàn thời gian, sáng 07g-11g; chiều 13g-17g, từ thứ hai đến thứ sáu","Nhân viên phòng Tài chính kế toán"]
[59,"Nguyễn Như Huỳnh","Kế toán trung cấp","Toàn thời gian, sáng 07g-11g; chiều 13g-17g, từ thứ hai đến thứ sáu","Nhân viên phòng Tài chính kế toán"]
[60,"Nguyễn Thị Hồng Trang","Cử nhân kế toán","Toàn thời gian, sáng 07g-11g; chiều 13g-17g, từ thứ hai đến thứ sáu","Nhân viên phòng Tài chính kế toán"]
[61,"Nguyễn Thông Đạt","Cử nhân kế toán","Toàn thời gian, sáng 07g-11g; chiều 13g-17g, từ thứ hai đến thứ sáu","Nhân viên phòng Tài chính kế toán"]
[62,"Lê Thị Bích Ngân","Cử nhân kế toán","Toàn thời gian, sáng 07g-11g; chiều 13g-17g, từ thứ hai đến thứ sáu","Nhân viên phòng Tài chính kế toán"]
[63,"Nguyễn Thị Kiều Ngân","Cử nhân tài chính ngân hàng","Toàn thời gian, sáng 07g-11g; chiều 13g-17g, từ thứ hai đến thứ sáu","Nhân viên phòng Tài chính kế toán"]
[64,"Lê Thị Phương Uyên","Cử nhân kế toán","Toàn thời gian, sáng 07g-11g; chiều 13g-17g, từ thứ hai đến thứ sáu","Nhân viên phòng Tài chính kế toán"]
[65,"Nguyễn Thị Mỹ Ngọc","Cử nhân kế toán","Toàn thời gian, sáng 07g-11g; chiều 13g-17g, từ thứ hai đến thứ sáu","Nhân viên phòng Tài chính kế toán"]
[66,"Đinh Thị Kiều Diễm","Cử nhân kế toán","Toàn thời gian, sáng 07g-11g; chiều 13g-17g, từ thứ hai đến thứ sáu","Nhân viên phòng Tài chính kế toán"]
[67,"Lê Thị Hiếu","Cử nhân kế toán","Toàn thời gian, sáng 07g-11g; chiều 13g-17g, từ thứ hai đến thứ sáu","Nhân viên phòng Tài chính kế toán"]
[68,"Nguyễn Hoàng Đức","Cử nhân kế toán","Toàn thời gian, sáng 07g-11g; chiều 13g-17g, từ thứ hai đến thứ sáu","Nhân viên phòng Tài chính kế toán"]
[69,"Đỗ Thị Huy Minh","Cử nhân hành chính","Toàn thời gian, sáng 07g-11g; chiều 13g-17g, từ thứ hai đến thứ sáu","Phó trưởng phòng - Phòng Công tác xã hội"]
[70,"Trần Thị Lệ Uyên","Cử nhân luật","Toàn thời gian, sáng 07g-11g; chiều 13g-17g, từ thứ hai đến thứ sáu","Nhân viên phòng Công tác xã hội"]
[71,"Nguyễn Thị Tuyết Lương","Kỹ sư công nghệ thực phẩm","Toàn thời gian, sáng 07g-11g; chiều 13g-17g, từ thứ hai đến thứ sáu","Nhân viên khoa Dinh dưỡng"]
[72,"Trần Vũ Lam Sơn Phú Quý","Kỹ sư công nghệ thực phẩm","Toàn thời gian, sáng 07g-11g; chiều 13g-17g, từ thứ hai đến thứ sáu","Nhân viên khoa Dinh dưỡng"]
[73,"Nguyễn Trần Châu Tiên","Kỹ sư công nghệ thực phẩm","Toàn thời gian, sáng 07g-11g; chiều 13g-17g, từ thứ hai đến thứ sáu","Nhân viên khoa Dinh dưỡng"]
[74,"Ngũ Quốc Thảo","Cử nhân quản trị kinh doanh","Toàn thời gian, sáng 07g-11g; chiều 13g-17g, từ thứ hai đến thứ sáu","Phó trưởng khoa - Khoa kiểm soát nhiễm khuẩn"]
[75,"Nguyễn Kim Thanh","Kỹ sư quản lý tài nguyên và môi trường","Toàn thời gian, sáng 07g-11g; chiều 13g-17g, từ thứ hai đến thứ sáu","Nhân viên khoa Kiểm soát nhiễm khuẩn"]
[76,"Nguyễn Phước Thông","Thạc sĩ y tế công cộng","Toàn thời gian, sáng 07g-11g; chiều 13g-17g, từ thứ hai đến thứ sáu","Nhân viên khoa Kiểm soát nhiễm khuẩn"]
[77,"Lê Thành Xưa","Cử nhân y tế công cộng","Toàn thời gian, sáng 07g-11g; chiều 13g-17g, từ thứ hai đến thứ sáu","Nhân viên khoa Kiểm soát nhiễm khuẩn"]
[78,"Lâm Hùng Tráng","Hộ lý","Toàn thời gian, sáng 07g-11g; chiều 13g-17g, từ thứ hai đến thứ sáu","Nhân viên khoa Kiểm soát nhiễm khuẩn"]
[79,"Đặng Thanh Ngàn","Hộ lý","Toàn thời gian, sáng 07g-11g; chiều 13g-17g, từ thứ hai đến thứ sáu","Nhân viên khoa Kiểm soát nhiễm khuẩn"]
[80,"Ngô Thị Diệu Hiền","Hộ lý","Toàn thời gian, sáng 07g-11g; chiều 13g-17g, từ thứ hai đến thứ sáu","Nhân viên khoa Kiểm soát nhiễm khuẩn"]
[81,"Lê Thị Vân","Hộ lý","Toàn thời gian, sáng 07g-11g; chiều 13g-17g, từ thứ hai đến thứ sáu","Nhân viên khoa Kiểm soát nhiễm khuẩn"]
[82,"Dương Thị Lệ Chi","Hộ lý","Toàn thời gian, sáng 07g-11g; chiều 13g-17g, từ thứ hai đến thứ sáu","Nhân viên khoa Kiểm soát nhiễm khuẩn"]
[83,"Lý Thị Hồng","Hộ lý","Toàn thời gian, sáng 07g-11g; chiều 13g-17g, từ thứ hai đến thứ sáu","Nhân viên khoa Kiểm soát nhiễm khuẩn"]
[84,"Lâm Hùng Cường","Dược tá","Toàn thời gian, sáng 07g-11g; chiều 13g-17g, từ thứ hai đến thứ sáu","Nhân viên khoa Kiểm soát nhiễm khuẩn"]
[85,"Lê Thị Tuyết An","Kế toán trung cấp","Toàn thời gian, sáng 07g-11g; chiều 13g-17g, từ thứ hai đến thứ sáu","Nhân viên Nhà thuốc"]

{"sheet":"Hợp tác","index":3,"n_rows":45,"n_cols":7,"rows_kept":45,"cut":false,"hidden":false,"merged":[[38,0,38,1],[44,0,44,1],[37,5,37,6],[38,5,38,6],[44,5,44,6],[38,2,38,4],[44,2,44,4]]}
[null,"8. Danh sách người hành nghề của Đại học Y dược Cần Thơ hợp tác tại Bệnh viện"]
[]
["TT","Họ tên","Số chứng chỉ hành nghề đã được cấp","Phạm vi hoạt động chuyên môn","Thời gian đăng ký hành nghề tại cơ sở khám bệnh chữa bệnh ","Vị trí chuyên môn","Ghi chú"]
[1," Nguyễn Thanh Hải","003500/CCHN-BYT","Khám bệnh, chữa bệnh chuyên khoa Nhi","Bán thời gian ","Khám bệnh, chữa bệnh chuyên khoa Nhi","- Khám, trực theo lịch phân công;\n- Điều động phân công khi có yêu cầu"]
[2,"Bùi Quang Nghĩa","003508/CCHN-BYT","Khám bệnh, chữa bệnh chuyên khoa Nhi","Bán thời gian ","Khám bệnh, chữa bệnh chuyên khoa Nhi","- Khám, trực theo lịch phân công;\n- Điều động phân công khi có yêu cầu"]
[3,"Nguyễn Thị Nguyên Thảo","015085/CCHN-BYT","Khám bệnh, chữa bệnh chuyên khoa Nhi","Bán thời gian ","Khám bệnh, chữa bệnh chuyên khoa Nhi","- Khám, trực theo lịch phân công;\n- Điều động phân công khi có yêu cầu"]
[4,"Nguyễn Phước Sang","015083/CCHN-BYT","Khám bệnh, chữa bệnh chuyên khoa Nhi","Bán thời gian ","Khám bệnh, chữa bệnh chuyên khoa Nhi","- Khám, trực theo lịch phân công;\n- Điều động phân công khi có yêu cầu"]
[5,"Nguyễn Thị Thu Ba","003503/CCHN-BYT","Khám bệnh, chữa bệnh chuyên khoa Nhi","Bán thời gian ","Khám bệnh, chữa bệnh chuyên khoa Nhi","- Khám, trực theo lịch phân công;\n- Điều động phân công khi có yêu cầu"]
[6,"Nguyễn Thị Thu Cúc","003501/CCHN-BYT","Khám bệnh, chữa bệnh chuyên khoa Nhi","Bán thời gian ","Khám bệnh, chữa bệnh chuyên khoa Nhi","- Khám, trực theo lịch phân công;\n- Điều động phân công khi có yêu cầu"]
[7,"Trương Ngọc Phước","003502/CCHN-BYT","Khám bệnh, chữa bệnh chuyên khoa Nhi","Bán thời gian ","Khám bệnh, chữa bệnh chuyên khoa Nhi","- Khám, trực theo lịch phân công;\n- Điều động phân công khi có yêu cầu"]
[8,"Chung Hữu Nghị","003507/CCHN-BYT","Khám bệnh, chữa bệnh chuyên khoa Nhi","Bán thời gian ","Vị trí chuyên môn","- Khám, trực theo lịch phân công;\n- Điều động phân công khi có yêu cầu"]
[9,"Cao Thị Vui","003511/CCHN-BYT","Khám bệnh, chữa bệnh chuyên khoa Nhi","Bán thời gian ","Khám bệnh, chữa bệnh chuyên khoa Nhi","- Khám, trực theo lịch phân công;\n- Điều động phân công khi có yêu cầu"]
[10,"Nguyễn Huỳnh Ái Uyên","038797/CCHN-BYT","Khám bệnh, chữa bệnh chuyên khoa Nhi","Bán thời gian ","Khám bệnh, chữa bệnh chuyên khoa Nhi","- Khám, trực theo lịch phân công;\n- Điều động phân công khi có yêu cầu"]
[11,"Lê Thị Thúy Loan","003506/CCHN-BYT","Khám bệnh, chữa bệnh chuyên khoa Nhi","Bán thời gian ","Khám bệnh, chữa bệnh chuyên khoa Nhi","- Khám, trực theo lịch phân công;\n- Điều động phân công khi có yêu cầu"]
[12,"Trần Quang Khải","026482/CCHN-BYT","Khám bệnh, chữa bệnh chuyên khoa Nhi","Bán thời gian ","Khám bệnh, chữa bệnh chuyên khoa Nhi","- Khám, trực theo lịch phân công;\n- Điều động phân công khi có yêu cầu"]
[13,"Phan Việt Hưng","003504/CCHN-BYT","Khám bệnh, chữa bệnh chuyên khoa Nhi","Bán thời gian ","Khám bệnh, chữa bệnh chuyên khoa Nhi","- Khám, trực theo lịch phân công;\n- Điều động phân công khi có yêu cầu"]
[14,"Lê Văn Khoa","003505/CCHN-BYT","Khám bệnh, chữa bệnh chuyên khoa Nhi","Bán thời gian ","Khám bệnh, chữa bệnh chuyên khoa Nhi","- Khám, trực theo lịch phân công;\n- Điều động phân công khi có yêu cầu"]
[15,"Nguyễn Thị Thanh Nhàn","003510/CCHN-BYT","Khám bệnh, chữa bệnh chuyên khoa Nhi","Bán thời gian ","Khám bệnh, chữa bệnh chuyên khoa Nhi","- Khám, trực theo lịch phân công;\n- Điều động phân công khi có yêu cầu"]
[16,"Trần Việt Hoàng","026566/CCHN-BYT","Khám bệnh, chữa bệnh chuyên khoa Ngoại","Bán thời gian ","Khám bệnh, chữa bệnh chuyên khoa Ngoại","- Khám, trực theo lịch phân công;\n- Điều động phân công khi có yêu cầu"]
[17,"Võ Quang Huy","037176/CCHN-BYT","Khám bệnh, chữa bệnh chuyên khoa Ngoại","Bán thời gian ","Khám bệnh, chữa bệnh chuyên khoa Ngoại","- Khám, trực theo lịch phân công;\n- Điều động phân công khi có yêu cầu"]
[18,"Phạm Thanh Thế","026484/CCHN-BYT","Khám bệnh, chữa bệnh chuyên khoa Tai mũi họng","Bán thời gian ","Khám bệnh, chữa bệnh chuyên khoa Tai mũi họng","- Khám, trực theo lịch phân công;\n- Điều động phân công khi có yêu cầu"]
[19,"Lư Trí Diến","003558/CCHN-BYT","Khám bệnh, chữa bệnh chuyên khoa Nhi","Bán thời gian ","Khám bệnh, chữa bệnh chuyên khoa Nhi","- Khám, trực theo lịch phân công;\n- Điều động phân công khi có yêu cầu"]
[20,"Nguyễn Tuyết Nhung","003508/CCHN-BYT","Khám bệnh, chữa bệnh chuyên khoa Răng hàm mặt","Bán thời gian ","Khám bệnh, chữa bệnh chuyên khoa Răng hàm mặt","- Khám, trực theo lịch phân công;\n- Điều động phân công khi có yêu cầu"]
[21,"Phạm Nguyễn Kim Tuyền","026569/CCHN-BYT","Thực hiện theo Quyết định số 41/2005/QĐ-BNV ngày 22/4/2005","Bán thời gian ","Thực hiện theo Quyết định số 41/2005/QĐ-BNV ngày 22/4/2005","- Khám, trực theo lịch phân công;\n- Điều động phân công khi có yêu cầu"]
[22,"Nguyễn Thị Hồng","003563/CCHN-BYT","Kỹ thuật viên chuyên khoa xét nghiệm","Bán thời gian ","Kỹ thuật viên chuyên khoa xét nghiệm","- Khám, trực theo lịch phân công;\n- Điều động phân công khi có yêu cầu"]
[23,"Nguyễn Văn Thống","003518/CCHN-BYT","Khám bệnh, chữa bệnh chuyên khoa Tâm Thần","Bán thời gian ","Khám bệnh, chữa bệnh chuyên khoa Tâm Thần","- Khám, trực theo lịch phân công;\n- Điều động phân công khi có yêu cầu"]
[24,"Trần Thiện Thắng","006692/CCHN-BYT","Khám bệnh, chữa bệnh chuyên khoa Tâm Thần","Bán thời gian ","Khám bệnh, chữa bệnh chuyên khoa Tâm Thần","- Khám, trực theo lịch phân công;\n- Điều động phân công khi có yêu cầu"]
[25,"Đoàn Hữu Nhân","007019/CCHN-BYT","Khám bệnh, chữa bệnh Tâm Thần","Bán thời gian ","Khám bệnh, chữa bệnh Tâm Thần","- Khám, trực theo lịch phân công;\n- Điều động phân công khi có yêu cầu"]
[26,"Nguyễn Thái Thông","006748/CCHN-BYT","Khám bệnh, chữa bệnh Tâm Thần","Bán thời gian ","Khám bệnh, chữa bệnh Tâm Thần","- Khám, trực theo lịch phân công;\n- Điều động phân công khi có yêu cầu"]
[27,"Võ Văn Thi",null,null,"Bán thời gian ",null,"- Khám, trực theo lịch phân công;\n- Điều động phân công khi có yêu cầu"]
[28,"Trần Thị Huỳnh Như",null,null,"Bán thời gian ",null,"- Khám, trực theo lịch phân công;\n- Điều động phân công khi có yêu cầu"]
[29,"Trần Công Lý",null,null,"Bán thời gian ",null,"- Khám, trực theo lịch phân công;\n- Điều động phân công khi có yêu cầu"]
[30,"Phạm Minh Quân",null,null,"Bán thời gian ",null,"- Khám, trực theo lịch phân công;\n- Điều động phân công khi có yêu cầu"]
[31,"Mai Như Quỳnh","0026561/BYT-CCHN","Khám bệnh, chữa bệnh chuyên khoa Răng Hàm Mặt","Bán thời gian ","Khám bệnh, chữa bệnh chuyên khoa Răng Hàm Mặt","- Khám, trực theo lịch phân công;\n- Điều động phân công khi có yêu cầu"]
[32,"Nguyễn Thị Ngọc Hân",null,null,"Bán thời gian ",null,"- Khám, trực theo lịch phân công;\n- Điều động phân công khi có yêu cầu"]
[33,"Dương Thị Thùy Trang",null,null,"Bán thời gian ",null,"- Khám, trực theo lịch phân công;\n- Điều động phân công khi có yêu cầu"]
[]
[{"$nulls":5},"Cần Thơ, ngày 22 tháng 12 năm 2022"]
["Người lập danh sách",null,"Phòng Tổ chức cán bộ",null,null,"Giám đốc"]
[null,null,null," "]
[]
[]
[]
[]
["Nguyễn Huỳnh Minh Thư",null,"Huỳnh Thị Ngọc Linh",null,null,"Trần Văn Dễ"]

{"sheet":"DS sổ BHXH","index":4,"n_rows":653,"n_cols":4,"rows_kept":653,"cut":false,"hidden":true,"merged":[[0,0,0,1],[0,3,0,4],[1,0,1,1],[1,3,1,4],[2,0,2,1],[3,0,3,4],[632,0,632,3],[5,0,6,0],[5,1,6,1],[5,2,6,2],[5,3,6,3],[5,4,6,4]]}
["SỞ Y TẾ TP CẦN THƠ",null,null,"CỘNG HÒA XÃ HỘI CHỦ NGHĨA VIỆT NAM"]
["BỆNH VIỆN NHI ĐỒNG",null,null,"Độc lập - Tự do - Hạnh phúc"]
[]
["DANH SÁCH CC, VC VÀ NHÂN VIÊN HỢP ĐỒNG"]
[]
["STT","HỌ VÀ TÊN","ATM","Cấp bậc, Chức vụ"]
[]
[null,{"$f":"\"I - PHÒNG KHTH: \"&COUNTA(B9:B26)","v":"I - PHÒNG KHTH: 18"}]
[{"$f":"IF(B9<>\"\",COUNTA($B$9:B9),\"\")","v":1},"Trần Văn Dễ","0111000929831","BS Giám đốc"]
[{"$f":"IF(B10<>\"\",COUNTA($B$9:B10),\"\")","v":2},"Nguyễn Ngọc Việt Nga","0111000928789","BS.Pgiám đốc"]
[{"$f":"IF(B11<>\"\",COUNTA($B$9:B11),\"\")","v":3},"Nguyễn Văn Tư",null,"BS.Pgiám đốc"]
[{"$f":"IF(B12<>\"\",COUNTA($B$9:B12),\"\")","v":4},"Nguyễn Đức Trí","0111000926549","Trưởng phòng"]
[{"$f":"IF(B13<>\"\",COUNTA($B$9:B13),\"\")","v":5},"Hà Thị Hồng Ân",null,"Phó trưởng phòng"]
[{"$f":"IF(B14<>\"\",COUNTA($B$9:B14),\"\")","v":6},"Lê Thị Thùy Trang","0111000926493","Điều dưỡng TC"]
[{"$f":"IF(B15<>\"\",COUNTA($B$9:B15),\"\")","v":7},"Nguyễn Thanh Loan","0111000926411","Điều dưỡng TC"]
[{"$f":"IF(B16<>\"\",COUNTA($B$9:B16),\"\")","v":8},"Lê Thị Thùy Lan","0111000926842","Điều dưỡng SC"]
[{"$f":"IF(B17<>\"\",COUNTA($B$9:B17),\"\")","v":9},"Lương Thị Khánh Ly","0111000930123","Y sĩ"]
[{"$f":"IF(B18<>\"\",COUNTA($B$9:B18),\"\")","v":10},"Võ Văn Quốc","0111000926512","CN. CNTT"]
[{"$f":"IF(B19<>\"\",COUNTA($B$9:B19),\"\")","v":11},"Võ Quốc Vinh","0111000927462","CĐ tin học"]
[{"$f":"IF(B20<>\"\",COUNTA($B$9:B20),\"\")","v":12},"Trần Vũ Quang","0111000180668","CN.Tin Học"]
[{"$f":"IF(B21<>\"\",COUNTA($B$9:B21),\"\")","v":13},"Ngô Nhật Thiên Tân","0111000927866","KS CNTT"]
[{"$f":"IF(B22<>\"\",COUNTA($B$9:B22),\"\")","v":14},"Hồ Như Quỳnh Anh","0111000266926","CĐĐD"]
[{"$f":"IF(B23<>\"\",COUNTA($B$9:B23),\"\")","v":15},"Nguyễn Nhật Lan","0111000212630","CĐĐD"]
[{"$f":"IF(B24<>\"\",COUNTA($B$9:B24),\"\")","v":16},"Huỳnh Xuân Kiểu","0111000226453","CNĐD"]
[{"$f":"IF(B25<>\"\",COUNTA($B$9:B25),\"\")","v":17},"Bùi Thanh Huy",null,"DSTC"]
[{"$f":"IF(B26<>\"\",COUNTA($B$9:B26),\"\")","v":18},"Nguyễn Thị Hồng Hạnh","0111000271316","KS HTTT"]
[null,{"$f":"\"II - PHÒNG ĐIỀU DƯỠNG: \"&COUNTA(B28:B33)","v":"II - PHÒNG ĐIỀU DƯỠNG: 6"}]
[{"$f":"IF(B28<>\"\",COUNTA($B$28:B28),\"\")","v":1},"Trần Thị Thu Hà","0111000824539","CKI.ĐD Tr phòng"]
[{"$f":"IF(B29<>\"\",COUNTA($B$28:B29),\"\")","v":2},"Nguyễn Thị Hồng Ngọc","0111000928990","CNĐD P phòng"]
[{"$f":"IF(B30<>\"\",COUNTA($B$28:B30),\"\")","v":3},"Phan Thị Kiều Hạnh","0111000929079","CNĐD"]
[{"$f":"IF(B31<>\"\",COUNTA($B$28:B31),\"\")","v":4},"Bùi Thị Cẩm Nhung","0111000927095","CNĐD"]
[{"$f":"IF(B32<>\"\",COUNTA($B$28:B32),\"\")","v":5},"Đoàn Thị Mau","0111000226618","CNĐD"]
[{"$f":"IF(B33<>\"\",COUNTA($B$28:B33),\"\")","v":6},"Quách Tú Hòa","0111000987501","Hộ lý"]
[null,{"$f":"\"III - PHÒNG CHỈ ĐẠO TUYẾN: \"&COUNTA(B35:B39)","v":"III - PHÒNG CHỈ ĐẠO TUYẾN: 5"}]
[{"$f":"IF(B35<>\"\",COUNTA($B35:B$35),\"\")","v":1},"Ông Huy Thanh","0111000926402","BS.Pgiám đốc"]
[{"$f":"IF(B36<>\"\",COUNTA($B$35:B36),\"\")","v":2},"Quách Ngọc Ngân","0111001066596","ThS. Phó phòng"]
[{"$f":"IF(B37<>\"\",COUNTA($B$35:B37),\"\")","v":3},"Vũ Thục Uyên","0111000192871","CNNN"]
[{"$f":"IF(B38<>\"\",COUNTA($B$35:B38),\"\")","v":4},"Lê Cẩm Tú","0111001446268","ĐDTC"]
[{"$f":"IF(B39<>\"\",COUNTA($B$35:B39),\"\")","v":5},"Ngô Thị Cẩm Thi","0391000997657","CĐĐD"]
[null,{"$f":"\"IV - PHÒNG QUẢN LÝ CHẤT LƯỢNG: \"&COUNTA(B41:B48)","v":"IV - PHÒNG QUẢN LÝ CHẤT LƯỢNG: 8"}]
[{"$f":"IF(B41<>\"\",COUNTA($B$41:B41),\"\")","v":1},"Nguyễn Thị Kim Phượng","0111000929042","Phó phòng"]
[{"$f":"IF(B42<>\"\",COUNTA($B$41:B42),\"\")","v":2},"Nguyễn Thị Phương Linh","0111000741408","Chuyên viên"]
[{"$f":"IF(B43<>\"\",COUNTA($B$41:B43),\"\")","v":3},"Nguyễn Huỳnh Minh Thư","0111000266921","CN TCNH"]
[{"$f":"IF(B44<>\"\",COUNTA($B$41:B44),\"\")","v":4},"Nguyễn Thanh Thanh","0111000206600","CN Luật"]
[{"$f":"IF(B45<>\"\",COUNTA($B$41:B45),\"\")","v":5},"Nguyễn Mỹ Phúc",null,"CĐ Dược"]
[{"$f":"IF(B46<>\"\",COUNTA($B$41:B46),\"\")","v":6},"Hoàng Thị Thanh Trang",null,"CĐ Dược"]
[{"$f":"IF(B47<>\"\",COUNTA($B$41:B47),\"\")","v":7},"Trần Thị Thảo Trâm",null,"BS YHDP"]
[{"$f":"IF(B48<>\"\",COUNTA($B$41:B48),\"\")","v":8},"Nguyễn Kiều Trang","0111000187945","CN KDQT"]
[null,{"$f":"\"V - PHÒNG VẬT TƯ THIẾT BỊ Y TẾ: \"&COUNTA(B50:B55)","v":"V - PHÒNG VẬT TƯ THIẾT BỊ Y TẾ: 6"}]
[{"$f":"IF(B50<>\"\",COUNTA($B$50:B50),\"\")","v":1},"Lê Tấn Phúc","0111000927040","Phó tr phòng"]
[{"$f":"IF(B51<>\"\",COUNTA($B$50:B51),\"\")","v":2},"Phạm Hoàng Dũng","0111000928284","NVKTTB Y Tế"]
[{"$f":"IF(B52<>\"\",COUNTA($B$50:B52),\"\")","v":3},"Giang Phong Tranh","0111000182145","Kỹ sư điện"]
[{"$f":"IF(B53<>\"\",COUNTA($B$50:B53),\"\")","v":4},"Ngô Nguyễn Hữu Thoại","0111000245742","Kỹ sư điện"]
[{"$f":"IF(B54<>\"\",COUNTA($B$50:B54),\"\")","v":5},"Nguyễn Thị Ngọc Nuôi","0111000927967","Dược sĩ TC"]
[{"$f":"IF(B55<>\"\",COUNTA($B$50:B55),\"\")","v":6},"Nguyễn Trọng Hữu","0111001347274","Kỹ sư"]
[null,{"$f":"\"VI - PHÒNG HCQT: \"&COUNTA(B57:B75)","v":"VI - PHÒNG HCQT: 19"}]
[{"$f":"IF(B57<>\"\",COUNTA($B$57:B57),\"\")","v":1},"Đặng Quốc Thái","0111000217834","Phó tr phòng"]
[{"$f":"IF(B58<>\"\",COUNTA($B$57:B58),\"\")","v":2},"Huỳnh Văn Bê","0111000927408","Thủ kho"]
[{"$f":"IF(B59<>\"\",COUNTA($B$57:B59),\"\")","v":3},"Nguyễn Thành Phát","0111000926970","NVKT"]
[{"$f":"IF(B60<>\"\",COUNTA($B$57:B60),\"\")","v":4},"Huỳnh Hữu Lực","0111000927004","Lái xe"]
[{"$f":"IF(B61<>\"\",COUNTA($B$57:B61),\"\")","v":5},"Dương Hồng Phương","0111000926998","Điện TC"]
[{"$f":"IF(B62<>\"\",COUNTA($B$57:B62),\"\")","v":6},"Bùi Hồng Quân","0391000949961","Kỹ sư điện"]
[{"$f":"IF(B63<>\"\",COUNTA($B$57:B63),\"\")","v":7},"Phạm Công Danh","0111000220854","Chuyên viên QTKD"]
[{"$f":"IF(B64<>\"\",COUNTA($B$57:B64),\"\")","v":8},"Lê Quốc Huy","0111000212961","Kỹ sư xây dựng"]
[{"$f":"IF(B65<>\"\",COUNTA($B$57:B65),\"\")","v":9},"Đỗ Thị Huy Minh","0111000927068","Văn thư"]
[{"$f":"IF(B66<>\"\",COUNTA($B$57:B66),\"\")","v":10},"Võ Bá Ngọc","0111001048741","KTV.TC tin học"]
[{"$f":"IF(B67<>\"\",COUNTA($B$57:B67),\"\")","v":11},"Trần Minh Thông","0111001506755","XDTC"]
[{"$f":"IF(B68<>\"\",COUNTA($B$57:B68),\"\")","v":12},"Nguyễn Quốc Tuấn","0111000237955","TC Điện"]
[{"$f":"IF(B69<>\"\",COUNTA($B$57:B69),\"\")","v":13},"Lê Thị Phương Uyên","0111000234075","CN kế toán"]
[{"$f":"IF(B70<>\"\",COUNTA($B$57:B70),\"\")","v":14},"Nguyễn Chí Công","0111000256807","Lái xe"]
[{"$f":"IF(B71<>\"\",COUNTA($B$57:B71),\"\")","v":15},"Lai Chí Trung","0111000256816","Lái xe"]
[{"$f":"IF(B72<>\"\",COUNTA($B$57:B72),\"\")","v":16},"Lưu Phước Ngọc",null,"Cao đẳng điện"]
[{"$f":"IF(B73<>\"\",COUNTA($B$57:B73),\"\")","v":17},"Ngô Văn Khuôl","0111000260995","Điện TC"]
[{"$f":"IF(B74<>\"\",COUNTA($B$57:B74),\"\")","v":18},"Lê Anh Vũ","0391000983057","Lái xe"]
[{"$f":"IF(B75<>\"\",COUNTA($B$57:B75),\"\")","v":19},"Diêm Hoàng Trung","0111000250293","Lái xe"]
[null,{"$f":"\"VII - PHÒNG TCCB: \"&COUNTA(B77:B84)","v":"VII - PHÒNG TCCB: 8"}]
[{"$f":"IF(B77<>\"\",COUNTA($B$77:B77),\"\")","v":1},"Huỳnh Thị Ngọc Linh","0111000237885","Tr.Phòng"]
[{"$f":"IF(B78<>\"\",COUNTA($B$77:B78),\"\")","v":2},"Huỳnh Thị Kim Thúy","0111000926888","P.Phòng"]
[{"$f":"IF(B79<>\"\",COUNTA($B$77:B79),\"\")","v":3},"Nguyễn Minh Tuyến","0111000166821","CN.QTBV"]
[{"$f":"IF(B80<>\"\",COUNTA($B$77:B80),\"\")","v":4},"Lê Minh Chánh","0111000929675","Điều dưỡng TC"]
[{"$f":"IF(B81<>\"\",COUNTA($B$77:B81),\"\")","v":5},"Nguyễn Thanh Tuyền","0111000927471","Cử nhân TCNH"]
[{"$f":"IF(B82<>\"\",COUNTA($B$77:B82),\"\")","v":6},"Lê Thị Cẩm","0111000266930","Chuyên viên"]
[{"$f":"IF(B83<>\"\",COUNTA($B$77:B83),\"\")","v":7},"Phan Thị Diệu Linh","0111000166490","Chuyên viên luật"]
[{"$f":"IF(B84<>\"\",COUNTA($B$77:B84),\"\")","v":8},"Nguyễn Vĩnh","0111000260173","CN ngoại ngữ"]
[null,{"$f":"\"VIII - PHÒNG TCKT: \"&COUNTA(B86:B121)","v":"VIII - PHÒNG TCKT: 36"}]
[{"$f":"IF(B86<>\"\",COUNTA($B$86:B86),\"\")","v":1},"Nguyễn Văn Bỉnh","0391000840931","Phó phòng"]
[{"$f":"IF(B87<>\"\",COUNTA($B$86:B87),\"\")","v":2},"Trần Hồng Anh","0111000927343","Kế toán TC"]
[{"$f":"IF(B88<>\"\",COUNTA($B$86:B88),\"\")","v":3},"Trịnh Thị Ngọc Dung","0111000927352","Thủ quỷ"]
[{"$f":"IF(B89<>\"\",COUNTA($B$86:B89),\"\")","v":4},"Nguyễn Phượng Giao","0111000927370","Kế toán TC"]
[{"$f":"IF(B90<>\"\",COUNTA($B$86:B90),\"\")","v":5},"Nguyễn Thị Kim Loan","0111000927361","Kế toán SC"]
[{"$f":"IF(B91<>\"\",COUNTA($B$86:B91),\"\")","v":6},"Trần Kiên Giang","0111000927398","Kế toán TC"]
[{"$f":"IF(B92<>\"\",COUNTA($B$86:B92),\"\")","v":7},"Lê Thị Cẩm Tú","0111000927857","Kế toán SC"]
[{"$f":"IF(B93<>\"\",COUNTA($B$86:B93),\"\")","v":8},"Sơn Thị Kim Pha","0111000927389","Kế toán TC"]
[{"$f":"IF(B94<>\"\",COUNTA($B$86:B94),\"\")","v":9},"Nguyễn Văn Quốc Trần","0111000927325","KT viên"]
[{"$f":"IF(B95<>\"\",COUNTA($B$86:B95),\"\")","v":10},"Võ Minh Nguyệt","0111000927417","KT TC"]
[{"$f":"IF(B96<>\"\",COUNTA($B$86:B96),\"\")","v":11},"Trình Nguyễn Bích Loan","0111000927453","KT TC"]
[{"$f":"IF(B97<>\"\",COUNTA($B$86:B97),\"\")","v":12},"Tăng Thị Mộng Tuyền","0111000927444","KT TC"]
[{"$f":"IF(B98<>\"\",COUNTA($B$86:B98),\"\")","v":13},"Lê Thị Hồng Nhi","0111001295448","KT TC"]
[{"$f":"IF(B99<>\"\",COUNTA($B$86:B99),\"\")","v":14},"Trần Thị Thúy Quỳnh","0111001100872","KT viên"]
[{"$f":"IF(B100<>\"\",COUNTA($B$86:B100),\"\")","v":15},"Trần Thị Ngọc Hạnh","0111000156078","KT.TC"]
[{"$f":"IF(B101<>\"\",COUNTA($B$86:B101),\"\")","v":16},"Phạm Thị Giao Chi","0391000927011","KT viên"]
[{"$f":"IF(B102<>\"\",COUNTA($B$86:B102),\"\")","v":17},"Nguyễn Thị Vĩnh","0111000226488","KT viên"]
[{"$f":"IF(B103<>\"\",COUNTA($B$86:B103),\"\")","v":18},"Ông Trương Anh Thư","0111001487217","KT.TC"]
[{"$f":"IF(B104<>\"\",COUNTA($B$86:B104),\"\")","v":19},"Lâm Huỳnh Ngọc Thanh","0111001200798","KT.TC"]
[{"$f":"IF(B105<>\"\",COUNTA($B$86:B105),\"\")","v":20},"Nguyễn Hữu Cầu","0111000198581","KT.TC"]
[{"$f":"IF(B106<>\"\",COUNTA($B$86:B106),\"\")","v":21},"Lê Thị Thanh Giang","0111000927426","KT viên"]
[{"$f":"IF(B107<>\"\",COUNTA($B$86:B107),\"\")","v":22},"Trương Nguyễn Hải Khoa","0111000266953","CN Kế toán"]
[{"$f":"IF(B108<>\"\",COUNTA($B$86:B108),\"\")","v":23},"Trịnh Ngọc Vui","0111001356335","CN Kế toán"]
[{"$f":"IF(B109<>\"\",COUNTA($B$86:B109),\"\")","v":24},"Châu Khánh Ly","0111001292514","KT.TC"]
[{"$f":"IF(B110<>\"\",COUNTA($B$86:B110),\"\")","v":25},"Trần Thị Bảo Trâm","0111001295943","KTV.TC tin học"]
[{"$f":"IF(B111<>\"\",COUNTA($B$86:B111),\"\")","v":26},"Nguyễn Như Huỳnh","0111001360922","KT.TC"]
[{"$f":"IF(B112<>\"\",COUNTA($B$86:B112),\"\")","v":27},"Trình Nguyễn Vĩnh Thắng","0111001505832","Cao đẳng KT"]
[{"$f":"IF(B113<>\"\",COUNTA($B$86:B113),\"\")","v":28},"Nguyễn Thị Hồng Trang","0111000218299","Cao đẳng KT"]
[{"$f":"IF(B114<>\"\",COUNTA($B$86:B114),\"\")","v":29},"Phan Huỳnh Chúc Mai","0111000243167","CN kế toán"]
[{"$f":"IF(B115<>\"\",COUNTA($B$86:B115),\"\")","v":30},"Nguyễn Thông Đạt","0111000216000","Cao đẳng KT"]
[{"$f":"IF(B116<>\"\",COUNTA($B$86:B116),\"\")","v":31},"Phan Thị Trang",null,"Cao đẳng KT"]
[{"$f":"IF(B117<>\"\",COUNTA($B$86:B117),\"\")","v":32},"Huỳnh Văn Chơn",null,"CN Kế toán"]
[{"$f":"IF(B118<>\"\",COUNTA($B$86:B118),\"\")","v":33},"Dương Hồng Hạnh",null,"CN TCNH"]
[{"$f":"IF(B119<>\"\",COUNTA($B$86:B119),\"\")","v":34},"Ngô Thị Ngọc Huyền",null,"CN Kế toán"]
[{"$f":"IF(B120<>\"\",COUNTA($B$86:B120),\"\")","v":35},"Nguyễn Thị Kiều Ngân",null,"CN TCNH"]
[{"$f":"IF(B121<>\"\",COUNTA($B$86:B121),\"\")","v":36},"Lê Thị Bích Ngân","0111000266956","Kế toán TC"]
[null,{"$f":"\"IX - KHOA NỘI TỔNG HỢP: \"&COUNTA(B123:B147)","v":"IX - KHOA NỘI TỔNG HỢP: 25"}]
[{"$f":"IF(B123<>\"\",COUNTA($B$123:B123),\"\")","v":1},"Nguyễn Thanh Nam","0111000929859","Bác sĩ P khoa"]
[{"$f":"IF(B124<>\"\",COUNTA($B$123:B124),\"\")","v":2},"Nguyễn Thị Nhân Mỹ","0111000080502","ThS Bác sĩ"]
[{"$f":"IF(B125<>\"\",COUNTA($B$123:B125),\"\")","v":3},"Danh Chanh Ry Gia","0111001511917","BS CKI"]
[{"$f":"IF(B126<>\"\",COUNTA($B$123:B126),\"\")","v":4},"Trần Hương Giang","0111000191012","Bác sĩ"]
[{"$f":"IF(B127<>\"\",COUNTA($B$123:B127),\"\")","v":5},"Nguyễn Thị Thu Tâm","0111000927811","Phụ Trách ĐD Tr khoa"]
[{"$f":"IF(B128<>\"\",COUNTA($B$123:B128),\"\")","v":6},"Lê Thị Hoàng Dung","0111000173171","ĐDTC"]
[{"$f":"IF(B129<>\"\",COUNTA($B$123:B129),\"\")","v":7},"Lê Thị Hồng Tuyến","0111000987464","ĐDTC"]
[{"$f":"IF(B130<>\"\",COUNTA($B$123:B130),\"\")","v":8},"Hồ Thị Thu Hồng","0111000927903","ĐDTC"]
[{"$f":"IF(B131<>\"\",COUNTA($B$123:B131),\"\")","v":9},"Phạm Thị Đồng","0111001226349","ĐDTC"]
[{"$f":"IF(B132<>\"\",COUNTA($B$123:B132),\"\")","v":10},"Ngô Thị Diệu Hiền","0111000925608","Hộ lý"]
[{"$f":"IF(B133<>\"\",COUNTA($B$123:B133),\"\")","v":11},"Dương Thị Trúc","0111000272707","Bác sĩ"]
[{"$f":"IF(B134<>\"\",COUNTA($B$123:B134),\"\")","v":12},"Phạm Đặng Tuyết Nhung","0111000273100","Bác sĩ"]
[{"$f":"IF(B135<>\"\",COUNTA($B$123:B135),\"\")","v":13},"Trương Thị Xuân Trang","0111000236524","CĐĐD"]
[{"$f":"IF(B136<>\"\",COUNTA($B$123:B136),\"\")","v":14},"Lê Kiều Diễm","0111001112784","ĐDTC"]
[{"$f":"IF(B137<>\"\",COUNTA($B$123:B137),\"\")","v":15},"Nguyễn Thị Ngọc Trang","0111001420332","ĐDTC"]
[{"$f":"IF(B138<>\"\",COUNTA($B$123:B138),\"\")","v":16},"Nguyễn Thị Nghi","0111000226479","CĐĐD"]
[{"$f":"IF(B139<>\"\",COUNTA($B$123:B139),\"\")","v":17},"Trần Thị Vuông","0111000167646","CĐĐD"]
[{"$f":"IF(B140<>\"\",COUNTA($B$123:B140),\"\")","v":18},"Lê Thị Bé Vui","0111000212381","ĐD TC"]
[{"$f":"IF(B141<>\"\",COUNTA($B$123:B141),\"\")","v":19},"Ngô Thị Kim Hoa","0111000929015","Điều dưỡng TC"]
[{"$f":"IF(B142<>\"\",COUNTA($B$123:B142),\"\")","v":20},"Danh Hữu Tài",null,"Bác sĩ"]
[{"$f":"IF(B143<>\"\",COUNTA($B$123:B143),\"\")","v":21},"Ngân Thị Hải Yến","0111000277355","CĐ ĐD"]
[{"$f":"IF(B144<>\"\",COUNTA($B$123:B144),\"\")","v":22},"Nguyễn Thị Yến Quyên",null,"CĐ ĐD"]
[{"$f":"IF(B145<>\"\",COUNTA($B$123:B145),\"\")","v":23},"Thạch Quốc Khánh",null,"CĐ ĐD"]
[{"$f":"IF(B146<>\"\",COUNTA($B$123:B146),\"\")","v":24},"Trần Quỳnh Như",null,"CĐ ĐD"]
[{"$f":"IF(B147<>\"\",COUNTA($B$123:B147),\"\")","v":25},"Trần Thị Hằng","0391001002441","TC Điều dưỡng"]
[null,{"$f":"\"X - KHOA NỘI HÔ HẤP: \"&COUNTA(B149:B178)","v":"X - KHOA NỘI HÔ HẤP: 30"}]
[{"$f":"IF(B149<>\"\",COUNTA($B$149:B149),\"\")","v":1},"Phạm Công Tạo","0111000929134","BS Tr khoa"]
[{"$f":"IF(B150<>\"\",COUNTA($B$149:B150),\"\")","v":2},"Nguyễn Huỳnh Nhật Trường","0111000999716","BS phó khoa"]
[{"$f":"IF(B151<>\"\",COUNTA($B$149:B151),\"\")","v":3},"Võ Thị Kim Nguyên","0111000938992","Bác sĩ CKI"]
[{"$f":"IF(B152<>\"\",COUNTA($B$149:B152),\"\")","v":4},"Lê Hoàng Phương Quyên",null,"Bác sĩ"]
[{"$f":"IF(B153<>\"\",COUNTA($B$149:B153),\"\")","v":5},"Đỗ Huy Thanh","0111000163844","Bác sĩ"]
[{"$f":"IF(B154<>\"\",COUNTA($B$149:B154),\"\")","v":6},"Ngô Thị Hồng Cẩm","0111001066550","ĐD trưởng khoa"]
[{"$f":"IF(B155<>\"\",COUNTA($B$149:B155),\"\")","v":7},"Nguyễn Thị Xuân Dung","0111000929143","Điều dưỡng TC"]
[{"$f":"IF(B156<>\"\",COUNTA($B$149:B156),\"\")","v":8},"Trần Xuân Sang","0111001364528","ĐDTC"]
[{"$f":"IF(B157<>\"\",COUNTA($B$149:B157),\"\")","v":9},"Vũ Thị Hải Hà","0111001359214","ĐDTC"]
[{"$f":"IF(B158<>\"\",COUNTA($B$149:B158),\"\")","v":10},"Huỳnh Văn Đàn","0111001255514","ĐDTC"]
[{"$f":"IF(B159<>\"\",COUNTA($B$149:B159),\"\")","v":11},"Thái Thị Thu Hằng","0111000929345","ĐDTC"]
[{"$f":"IF(B160<>\"\",COUNTA($B$149:B160),\"\")","v":12},"Nguyễn Thị Thanh Hoa","0111000154729","ĐDTC"]
[{"$f":"IF(B161<>\"\",COUNTA($B$149:B161),\"\")","v":13},"Lê Thị Mỹ Tú","0111000154728","ĐDTC"]
[{"$f":"IF(B162<>\"\",COUNTA($B$149:B162),\"\")","v":14},"Nguyễn Thị Tuyết Nhung","0111000193758","ĐDTC"]
[{"$f":"IF(B163<>\"\",COUNTA($B$149:B163),\"\")","v":15},"Nguyễn Thị Kiều","0111000233495","TC ĐD"]
[{"$f":"IF(B164<>\"\",COUNTA($B$149:B164),\"\")","v":16},"Huỳnh Thị Thu Trang","0111000223203","ĐDTC"]
[{"$f":"IF(B165<>\"\",COUNTA($B$149:B165),\"\")","v":17},"Trần Văn Nam","0111000204433","ĐDTC"]
[{"$f":"IF(B166<>\"\",COUNTA($B$149:B166),\"\")","v":18},"Nguyễn Thị Ngọc Thùy","0111000926291","Điều dưỡng SC"]
[{"$f":"IF(B167<>\"\",COUNTA($B$149:B167),\"\")","v":19},"Trần Văn Kiên","0111000192832","ĐDTC"]
[{"$f":"IF(B168<>\"\",COUNTA($B$149:B168),\"\")","v":20},"Võ Thị Thùy Linh","0111000207537","Cử nhân ĐD"]
[{"$f":"IF(B169<>\"\",COUNTA($B$149:B169),\"\")","v":21},"Thạch Thanh Huyền","0111000194725","Bác sĩ"]
[{"$f":"IF(B170<>\"\",COUNTA($B$149:B170),\"\")","v":22},"Nguyễn Thị Diễm My","0111000272978","Bác sĩ"]
[{"$f":"IF(B171<>\"\",COUNTA($B$149:B171),\"\")","v":23},"Chanh Rết Cha Na","0111000272800","Bác sĩ"]
[{"$f":"IF(B172<>\"\",COUNTA($B$149:B172),\"\")","v":24},"Đỗ Thị Hằng","0391001011288","CĐĐD"]
[{"$f":"IF(B173<>\"\",COUNTA($B$149:B173),\"\")","v":25},"Trần Thị Lan",null,"CĐĐD"]
[{"$f":"IF(B174<>\"\",COUNTA($B$149:B174),\"\")","v":26},"Tạ Thị Thảo","0111001420602","DSTC"]
[{"$f":"IF(B175<>\"\",COUNTA($B$149:B175),\"\")","v":27},"Nguyễn Thị Thanh Xuyến","0111000252229","CNĐD"]
[{"$f":"IF(B176<>\"\",COUNTA($B$149:B176),\"\")","v":28},"Lê Thị Mỹ Linh","0111001015941","Hộ lý"]
[{"$f":"IF(B177<>\"\",COUNTA($B$149:B177),\"\")","v":29},"Phạm Kim Ngọc",null,"CĐ ĐD"]
[{"$f":"IF(B178<>\"\",COUNTA($B$149:B178),\"\")","v":30},"Trương Thị Kim Lan",null,"CĐ ĐD"]
[null,{"$f":"\"XI - KHOA NỘI TIÊU HÓA: \"&COUNTA(B180:B208)","v":"XI - KHOA NỘI TIÊU HÓA: 29"}]
[{"$f":"IF(B180<>\"\",COUNTA($B$180:B180),\"\")","v":1},"Thái Thanh Lâm","0111000926943","Trưởng khoa"]
[{"$f":"IF(B181<>\"\",COUNTA($B$180:B181),\"\")","v":2},"Lê Văn Viên","0111000929941","BS Phó trưởng khoa"]
[{"$f":"IF(B182<>\"\",COUNTA($B$180:B182),\"\")","v":3},"Nguyễn Thị Bạch Liên","0111000929776","CĐ ĐD"]
[{"$f":"IF(B183<>\"\",COUNTA($B$180:B183),\"\")","v":4},"Lê Ngọc Điệp","0111000927114","PT ĐD Tr khoa"]
[{"$f":"IF(B184<>\"\",COUNTA($B$180:B184),\"\")","v":5},"Lý Thị Liên","0111000926255","Hộ lý"]
[{"$f":"IF(B185<>\"\",COUNTA($B$180:B185),\"\")","v":6},"Nguyễn Thị Phe","0111001000194","ĐDTC"]
[{"$f":"IF(B186<>\"\",COUNTA($B$180:B186),\"\")","v":7},"Nguyễn Thị Ngọc Cẩm","0111001503243","ĐDTC"]
[{"$f":"IF(B187<>\"\",COUNTA($B$180:B187),\"\")","v":8},"Neáng Chanh Pô Pha","0111000174928","ĐDTC"]
[{"$f":"IF(B188<>\"\",COUNTA($B$180:B188),\"\")","v":9},"Hoàng Thị Huyền Trang","0111000169632","CĐĐD"]
[{"$f":"IF(B189<>\"\",COUNTA($B$180:B189),\"\")","v":10},"Mã Huệ Thùy Trinh","0111000188187","CĐĐD"]
[{"$f":"IF(B190<>\"\",COUNTA($B$180:B190),\"\")","v":11},"Trần Lê Thảo Nguyên","0111000225844","Bác sĩ"]
[{"$f":"IF(B191<>\"\",COUNTA($B$180:B191),\"\")","v":12},"Dương Thị Thủy","0111000267039","CĐ ĐD"]
[{"$f":"IF(B192<>\"\",COUNTA($B$180:B192),\"\")","v":13},"Bùi Thị Vỵ","0351000764542","CĐ ĐD"]
[{"$f":"IF(B193<>\"\",COUNTA($B$180:B193),\"\")","v":14},"Vòong Thị Bích Tuyền","0111001360157","CĐ ĐD"]
[{"$f":"IF(B194<>\"\",COUNTA($B$180:B194),\"\")","v":15},"Đặng Như Ý","0111000243466","Bác sĩ"]
[{"$f":"IF(B195<>\"\",COUNTA($B$180:B195),\"\")","v":16},"Lê Trần Thiên Thư","0111000272983","Bác sĩ"]
[{"$f":"IF(B196<>\"\",COUNTA($B$180:B196),\"\")","v":17},"Đinh Thị Tố Như","0111000929804","CĐ ĐD"]
[{"$f":"IF(B197<>\"\",COUNTA($B$180:B197),\"\")","v":18},"Lê Dư Ngọc","0111000267031","ĐD TC"]
[{"$f":"IF(B198<>\"\",COUNTA($B$180:B198),\"\")","v":19},"Nguyễn Thị Như Huỳnh",null,"Bác sĩ"]
[{"$f":"IF(B199<>\"\",COUNTA($B$180:B199),\"\")","v":20},"Văn Thanh Cường",null,"Bác sĩ"]
[{"$f":"IF(B200<>\"\",COUNTA($B$180:B200),\"\")","v":21},"Trần Thị Cẩm Tú","0111000198551","ĐDTC"]
[{"$f":"IF(B201<>\"\",COUNTA($B$180:B201),\"\")","v":22},"Nguyễn Tú Giảng",null,"Bác sĩ"]
[{"$f":"IF(B202<>\"\",COUNTA($B$180:B202),\"\")","v":23},"Trương Hoàng Dũ","0111000266851","ĐD TC"]
[{"$f":"IF(B203<>\"\",COUNTA($B$180:B203),\"\")","v":24},"Huỳnh Thế Bảo",null,"Cử nhân ĐD"]
[{"$f":"IF(B204<>\"\",COUNTA($B$180:B204),\"\")","v":25},"Trần Văn Kha",null,"CĐ ĐD"]
[{"$f":"IF(B205<>\"\",COUNTA($B$180:B205),\"\")","v":26},"Nguyễn Thị Cần",null,"ĐD TC"]
[{"$f":"IF(B206<>\"\",COUNTA($B$180:B206),\"\")","v":27},"Huỳnh Như","0111000271214","ĐD TC"]
[{"$f":"IF(B207<>\"\",COUNTA($B$180:B207),\"\")","v":28},"Phan Lê Bích Hường","0111000184256","Hộ lý"]
[{"$f":"IF(B208<>\"\",COUNTA($B$180:B208),\"\")","v":29},"Lê Thị Thương Vi",null,"DSTC"]
[null,{"$f":"\"XII - KHOA TRUYỀN NHIỄM: \"&COUNTA(B210:B237)","v":"XII - KHOA TRUYỀN NHIỄM: 28"}]
[{"$f":"IF(B210<>\"\",COUNTA($B$210:B210),\"\")","v":1},"Huỳnh Hùng Dũng","0111000939017","BS Phó khoa"]
[{"$f":"IF(B211<>\"\",COUNTA($B$210:B211),\"\")","v":2},"Trần Thị Kim Cúc","0111000926273","ĐD.Tr khoa"]
[{"$f":"IF(B212<>\"\",COUNTA($B$210:B212),\"\")","v":3},"Nguyễn Thị Thanh Tuyền","0111000929538","Điều dưỡng TC"]
[{"$f":"IF(B213<>\"\",COUNTA($B$210:B213),\"\")","v":4},"Trương Thị Trọng Bình","0111000929639","Điều dưỡng TC"]
[{"$f":"IF(B214<>\"\",COUNTA($B$210:B214),\"\")","v":5},"Trần Thị Bích Loan","0111000929501","Điều dưỡng TC"]
[{"$f":"IF(B215<>\"\",COUNTA($B$210:B215),\"\")","v":6},"Hoàng Thị Dinh","0111000987446","ĐDTC"]
[{"$f":"IF(B216<>\"\",COUNTA($B$210:B216),\"\")","v":7},"Nguyễn  Thị Tuyết Mai","0111000174286","CĐĐD"]
[{"$f":"IF(B217<>\"\",COUNTA($B$210:B217),\"\")","v":8},"Nguyễn Phước Trung","0111001090752","Bác sĩ"]
[{"$f":"IF(B218<>\"\",COUNTA($B$210:B218),\"\")","v":9},"Thạch Huyền Quý","0111000226727","Bác sĩ"]
[{"$f":"IF(B219<>\"\",COUNTA($B$210:B219),\"\")","v":10},"Ngô Dương Tuấn Vũ","0111000164330","Bác sĩ"]
[{"$f":"IF(B220<>\"\",COUNTA($B$210:B220),\"\")","v":11},"Nguyễn Phát Nguyên","0111001488121","Bác sĩ"]
[{"$f":"IF(B221<>\"\",COUNTA($B$210:B221),\"\")","v":12},"Trần Vũ Phương","0111000927132","Điều dưỡng TC"]
[{"$f":"IF(B222<>\"\",COUNTA($B$210:B222),\"\")","v":13},"Phạm Khánh Thoa","0111000193601","CNĐD"]
[{"$f":"IF(B223<>\"\",COUNTA($B$210:B223),\"\")","v":14},"Trần Thị Thu Nguyên","0111000226571","ĐDTC"]
[{"$f":"IF(B224<>\"\",COUNTA($B$210:B224),\"\")","v":15},"Nguyễn Thị Nhật Linh","0111000155984","ĐDTC"]
[{"$f":"IF(B225<>\"\",COUNTA($B$210:B225),\"\")","v":16},"Phạm Thùy Dung","0111000928514","Điều dưỡng TC"]
[{"$f":"IF(B226<>\"\",COUNTA($B$210:B226),\"\")","v":17},"Hồ Thanh Thuận","0111000926329","ĐDTC"]
[{"$f":"IF(B227<>\"\",COUNTA($B$210:B227),\"\")","v":18},"Phan Thị Lệ Quân","0111000266795","CĐ ĐD"]
[{"$f":"IF(B228<>\"\",COUNTA($B$210:B228),\"\")","v":19},"Lê Hoàng Sơn",null,"Bác sĩ"]
[{"$f":"IF(B229<>\"\",COUNTA($B$210:B229),\"\")","v":20},"Lê Tuấn Anh","0111001321779","Bác sĩ"]
[{"$f":"IF(B230<>\"\",COUNTA($B$210:B230),\"\")","v":21},"Lê Kim Yến","0791000041586","CĐ ĐD"]
[{"$f":"IF(B231<>\"\",COUNTA($B$210:B231),\"\")","v":22},"Lê Thị Huỳnh Như","0111000268847","ĐD TC"]
[{"$f":"IF(B232<>\"\",COUNTA($B$210:B232),\"\")","v":23},"Tăng Thị Ngọc Huyền","0111000211579","CĐ ĐD"]
[{"$f":"IF(B233<>\"\",COUNTA($B$210:B233),\"\")","v":24},"Nguyễn Dương Thủy Tiên","0111000216917","CĐ ĐD"]
[{"$f":"IF(B234<>\"\",COUNTA($B$210:B234),\"\")","v":25},"Lê Thị Thanh Nhàn","0111000167640","CĐ ĐD"]
[{"$f":"IF(B235<>\"\",COUNTA($B$210:B235),\"\")","v":26},"Nguyễn Thị Mộng Trúc",null,"DS TC"]
[{"$f":"IF(B236<>\"\",COUNTA($B$210:B236),\"\")","v":27},"Lê Đổ Phương Nhung",null,"Bác sĩ"]
[{"$f":"IF(B237<>\"\",COUNTA($B$210:B237),\"\")","v":28},"Huỳnh Thị Thanh Trúc","0111000158793","Hộ lý"]
[null,{"$f":"\"XIII- KHOA SỐT XUẤT HUYẾT: \"&COUNTA(B239:B259)","v":"XIII- KHOA SỐT XUẤT HUYẾT: 21"}]
[{"$f":"IF(B239<>\"\",COUNTA($B$239:B239),\"\")","v":1},"Bùi Hùng Việt","0111000926521","BS Tr khoa"]
[{"$f":"IF(B240<>\"\",COUNTA($B$239:B240),\"\")","v":2},"Thạch Minh Đức","0111000929446","BS. Phó khoa"]
[{"$f":"IF(B241<>\"\",COUNTA($B$239:B241),\"\")","v":3},"Dương Văn Hiếu","0111000926365","BS CKI"]
[{"$f":"IF(B242<>\"\",COUNTA($B$239:B242),\"\")","v":4},"Phạm Thị Bích Thảo","0111001223921","PT ĐD TK"]
[{"$f":"IF(B243<>\"\",COUNTA($B$239:B243),\"\")","v":5},"Nguyễn Tuyết Mai","0111001066477","Bác sĩ"]
[{"$f":"IF(B244<>\"\",COUNTA($B$239:B244),\"\")","v":6},"Nguyễn Ngọc Trâm","0111000926824","Cử nhân ĐD"]
[{"$f":"IF(B245<>\"\",COUNTA($B$239:B245),\"\")","v":7},"Trần Bích Phương","0111000928394","Cử nhân ĐD"]
[{"$f":"IF(B246<>\"\",COUNTA($B$239:B246),\"\")","v":8},"Vũ Thị Manh","0111000929657","ĐDTC"]
[{"$f":"IF(B247<>\"\",COUNTA($B$239:B247),\"\")","v":9},"Hoàng Thị Mỹ Hạnh","0111001223406","CĐ ĐD"]
[{"$f":"IF(B248<>\"\",COUNTA($B$239:B248),\"\")","v":10},"Hoàng Thị Hằng","0111000212609","ĐDTC"]
[{"$f":"IF(B249<>\"\",COUNTA($B$239:B249),\"\")","v":11},"Lê Thị Hồng Lụa","0181003398682","CĐ ĐD"]
[{"$f":"IF(B250<>\"\",COUNTA($B$239:B250),\"\")","v":12},"Trần Hồng Nhã","0111000238346","Bác sĩ"]
[{"$f":"IF(B251<>\"\",COUNTA($B$239:B251),\"\")","v":13},"Nguyễn Bá Đạt","0111000164612","Bác sĩ"]
[{"$f":"IF(B252<>\"\",COUNTA($B$239:B252),\"\")","v":14},"Trần Thị Hoàng Oanh","0111000275888","CĐ ĐD"]
[{"$f":"IF(B253<>\"\",COUNTA($B$239:B253),\"\")","v":15},"Thái Thị Mai Khanh",null,"CĐ ĐD"]
[{"$f":"IF(B254<>\"\",COUNTA($B$239:B254),\"\")","v":16},"Trần Vủ Phương",null,"CĐ ĐD"]
[{"$f":"IF(B255<>\"\",COUNTA($B$239:B255),\"\")","v":17},"Châu Diễm Tuyết","0111000266640","CĐ ĐD"]
[{"$f":"IF(B256<>\"\",COUNTA($B$239:B256),\"\")","v":18},"Trần Thị Minh Tuyến",null,"Bác sĩ"]
[{"$f":"IF(B257<>\"\",COUNTA($B$239:B257),\"\")","v":19},"Nguyễn Thị Thanh Phượng","0111000926879","Hộ lý"]
[{"$f":"IF(B258<>\"\",COUNTA($B$239:B258),\"\")","v":20},"Trần Thị Thúy Thanh","0391001011065","ĐD TC"]
[{"$f":"IF(B259<>\"\",COUNTA($B$239:B259),\"\")","v":21},"Huỳnh Phạm Anh Thư","0111000928275","Cao đẳng Dược "]
[null,{"$f":"\"XIV - KHOA NỘI TIM MẠCH: \"&COUNTA(B261:B282)","v":"XIV - KHOA NỘI TIM MẠCH: 22"}]
[{"$f":"IF(B261<>\"\",COUNTA($B$261:B261),\"\")","v":1},"Nguyễn Thị Bảo Ngọc","0111000927169","Trưởng khoa"]
[{"$f":"IF(B262<>\"\",COUNTA($B$261:B262),\"\")","v":2},"Đào Danh Thanh Thúy Diễm","0111000169823","BS CKI"]
[{"$f":"IF(B263<>\"\",COUNTA($B$261:B263),\"\")","v":3},"Trương Cẩm Quyên","0111000170809","BS CKI"]
[{"$f":"IF(B264<>\"\",COUNTA($B$261:B264),\"\")","v":4},"Nguyễn Anh Tuấn","0111001352487","Bác sĩ"]
[{"$f":"IF(B265<>\"\",COUNTA($B$261:B265),\"\")","v":5},"Phan Trang Nhã","0111000929473","ĐDTK"]
[{"$f":"IF(B266<>\"\",COUNTA($B$261:B266),\"\")","v":6},"Lưu Thị Bích Nhung","0111000929226","Điều dưỡng TC"]
[{"$f":"IF(B267<>\"\",COUNTA($B$261:B267),\"\")","v":7},"Nguyễn Phương Trang","0111000188709","Bác sĩ"]
[{"$f":"IF(B268<>\"\",COUNTA($B$261:B268),\"\")","v":8},"Nguyễn Thanh Hoàng","0111000255254","Bác sĩ"]
[{"$f":"IF(B269<>\"\",COUNTA($B$261:B269),\"\")","v":9},"Nguyễn Thị Kim Phụng","0111000171720","ĐDTC"]
[{"$f":"IF(B270<>\"\",COUNTA($B$261:B270),\"\")","v":10},"Võ Thị Dương","0111000167722","ĐDTC"]
[{"$f":"IF(B271<>\"\",COUNTA($B$261:B271),\"\")","v":11},"Cao Thị Kim Nhanh","0111000174284","ĐDTC"]
[{"$f":"IF(B272<>\"\",COUNTA($B$261:B272),\"\")","v":12},"Nguyễn Thị Duyên","0111000207608","CĐĐD"]
[{"$f":"IF(B273<>\"\",COUNTA($B$261:B273),\"\")","v":13},"Nguyễn Thị Mai","0111000266864","TC ĐD"]
[{"$f":"IF(B274<>\"\",COUNTA($B$261:B274),\"\")","v":14},"Nguyễn Thị Thanh Trúc","0111000266460","CĐ ĐD"]
[{"$f":"IF(B275<>\"\",COUNTA($B$261:B275),\"\")","v":15},"Tô Thị Mỹ An","0111000273829","CĐ ĐD"]
[{"$f":"IF(B276<>\"\",COUNTA($B$261:B276),\"\")","v":16},"Nguyễn Thị Bảo Trân","0111000271219","CĐ ĐD"]
[{"$f":"IF(B277<>\"\",COUNTA($B$261:B277),\"\")","v":17},"Nguyễn Kim Phụng","0111000926154","ĐDTC"]
[{"$f":"IF(B278<>\"\",COUNTA($B$261:B278),\"\")","v":18},"Trương Xuân Nhung","0111000926741","ĐDTC"]
[{"$f":"IF(B279<>\"\",COUNTA($B$261:B279),\"\")","v":19},"Nguyễn Thị Nguyệt","0111000226567","CĐĐD"]
[{"$f":"IF(B280<>\"\",COUNTA($B$261:B280),\"\")","v":20},"Trần Công Đoàn",null,"Bác sĩ"]
[{"$f":"IF(B281<>\"\",COUNTA($B$261:B281),\"\")","v":21},"Quách Kim Thoa","0111001419619","Hộ lý"]
[{"$f":"IF(B282<>\"\",COUNTA($B$261:B282),\"\")","v":22},"Mã Phương Thùy Linh","0111000178890","DSTC"]
[null,{"$f":"\"XV - KHOA CẤP CỨU: \"&COUNTA(B284:B310)","v":"XV - KHOA CẤP CỨU: 27"}]
[{"$f":"IF(B284<>\"\",COUNTA($B$284:B284),\"\")","v":1},"Trần Cao Thái","0111000928936","BS phó khoa"]
[{"$f":"IF(B285<>\"\",COUNTA($B$284:B285),\"\")","v":2},"Lê Thị Đăng Khoa","0111000188181","Bác sĩ"]
[{"$f":"IF(B286<>\"\",COUNTA($B$284:B286),\"\")","v":3},"Nguyễn Văn Do","0111000926190","ĐD trưởng"]
[{"$f":"IF(B287<>\"\",COUNTA($B$284:B287),\"\")","v":4},"Võ Thị Xậm","0111000927013","ĐDTC"]
[{"$f":"IF(B288<>\"\",COUNTA($B$284:B288),\"\")","v":5},"Ngô Thị Ngọc Huệ","0111000925727","CĐ ĐD"]
[{"$f":"IF(B289<>\"\",COUNTA($B$284:B289),\"\")","v":6},"Tăng Quốc Đạt","0111000188758","Bác sĩ"]
[{"$f":"IF(B290<>\"\",COUNTA($B$284:B290),\"\")","v":7},"Nguyễn Thị Bích Thùy","0111001438185","CN ĐD"]
[{"$f":"IF(B291<>\"\",COUNTA($B$284:B291),\"\")","v":8},"Nguyễn Thị Hồng Vân","0111000153630","ĐDTC"]
[{"$f":"IF(B292<>\"\",COUNTA($B$284:B292),\"\")","v":9},"Nguyễn Bích Ngọc","0111001441772","ĐDTC"]
[{"$f":"IF(B293<>\"\",COUNTA($B$284:B293),\"\")","v":10},"Tống Văn Khá Em","0111000174083","ĐDTC"]
[{"$f":"IF(B294<>\"\",COUNTA($B$284:B294),\"\")","v":11},"Hoàng Ngọc Sương","0111000225839","Bác sĩ"]
[{"$f":"IF(B295<>\"\",COUNTA($B$284:B295),\"\")","v":12},"Hà Trúc Ly","0111000207627","ĐDTC"]
[{"$f":"IF(B296<>\"\",COUNTA($B$284:B296),\"\")","v":13},"Phạm Thị Kiều Oanh","0111000207698","CĐ ĐD"]
[{"$f":"IF(B297<>\"\",COUNTA($B$284:B297),\"\")","v":14},"Phan Thanh Toàn","0111000929529","ĐDTC"]
[{"$f":"IF(B298<>\"\",COUNTA($B$284:B298),\"\")","v":15},"Dương Lê Thị Ái Nhân","0111000236014","CĐ ĐD"]
[{"$f":"IF(B299<>\"\",COUNTA($B$284:B299),\"\")","v":16},"Phan Thị Thảo Phương","0111000266905","CN ĐD"]
[{"$f":"IF(B300<>\"\",COUNTA($B$284:B300),\"\")","v":17},"Hoàng Thiện Thùy Trang","0111000927187","ĐDTC"]
[{"$f":"IF(B301<>\"\",COUNTA($B$284:B301),\"\")","v":18},"Nguyễn Thị Trà My","0111000266849","CĐ ĐD"]
[{"$f":"IF(B302<>\"\",COUNTA($B$284:B302),\"\")","v":19},"Lê Kỳ Kiều Diễm","0111000926833","CĐ ĐD"]
[{"$f":"IF(B303<>\"\",COUNTA($B$284:B303),\"\")","v":20},"Liêu Thiên Nghệ",null,"Bác sĩ"]
[{"$f":"IF(B304<>\"\",COUNTA($B$284:B304),\"\")","v":21},"Nguyễn Thị Diễm Chi","0111000192878","ĐDTC"]
[{"$f":"IF(B305<>\"\",COUNTA($B$284:B305),\"\")","v":22},"Trần Thị Hoài Phương","0111000926109","Hộ lý"]
[{"$f":"IF(B306<>\"\",COUNTA($B$284:B306),\"\")","v":23},"Phạm Thị Hoàng Yến",null,"CĐ ĐD"]
[{"$f":"IF(B307<>\"\",COUNTA($B$284:B307),\"\")","v":24},"Lý Ngọc Thạnh","0111000198549","ĐDTC"]
[{"$f":"IF(B308<>\"\",COUNTA($B$284:B308),\"\")","v":25},"Dương Thị Huyền Trang",null,"Bác sĩ"]
[{"$f":"IF(B309<>\"\",COUNTA($B$284:B309),\"\")","v":26},"Nguyễn Thị Thanh Kiều","0111000164559","Bác sĩ"]
[{"$f":"IF(B310<>\"\",COUNTA($B$284:B310),\"\")","v":27},"Nguyễn Kim Trí","0111001503225","Hộ lý"]
[null,{"$f":"\"XVI - KHOA HSTC - CĐ: \"&COUNTA(B312:B342)","v":"XVI - KHOA HSTC - CĐ: 31"}]
[{"$f":"IF(B312<>\"\",COUNTA($B$312:B312),\"\")","v":1},"Trần Huỳnh Việt Trang","0111000926961","Phó khoa"]
[{"$f":"IF(B313<>\"\",COUNTA($B$312:B313),\"\")","v":2},"Nguyễn Thái Phương Anh","0111000926989","ĐD trưởng"]
[{"$f":"IF(B314<>\"\",COUNTA($B$312:B314),\"\")","v":3},"Sơn Thị Thanh Hòa","0111000927105","Điều dưỡng TC"]
[{"$f":"IF(B315<>\"\",COUNTA($B$312:B315),\"\")","v":4},"Nguyễn Thị Lụa","0111000927196","Điều dưỡng TC"]
[{"$f":"IF(B316<>\"\",COUNTA($B$312:B316),\"\")","v":5},"Lê Phương Trung","0111001006053","ĐDTC"]
[{"$f":"IF(B317<>\"\",COUNTA($B$312:B317),\"\")","v":6},"Cao Thị Hương Huệ","0111000927206","ĐDTC"]
[{"$f":"IF(B318<>\"\",COUNTA($B$312:B318),\"\")","v":7},"Huỳnh Thị Mười Ba","0111001086398","ĐDTC"]
[{"$f":"IF(B319<>\"\",COUNTA($B$312:B319),\"\")","v":8},"Quan Kim Quý","0111000159810","ĐDTC"]
[{"$f":"IF(B320<>\"\",COUNTA($B$312:B320),\"\")","v":9},"Thạch Thị Loan","0111001113386","ĐDTC"]
[{"$f":"IF(B321<>\"\",COUNTA($B$312:B321),\"\")","v":10},"Trần Minh Thành","0111000236337","Bác sĩ"]
[{"$f":"IF(B322<>\"\",COUNTA($B$312:B322),\"\")","v":11},"Nguyễn Lợi Toàn","0111000242702","Bác sĩ"]
[{"$f":"IF(B323<>\"\",COUNTA($B$312:B323),\"\")","v":12},"Nguyễn Thị Hồng Đào","0111000169751","ĐDTC"]
[{"$f":"IF(B324<>\"\",COUNTA($B$312:B324),\"\")","v":13},"Phạm Thị Nhàn","0111000173564","ĐDTC"]
[{"$f":"IF(B325<>\"\",COUNTA($B$312:B325),\"\")","v":14},"Nguyễn Trọng Nghĩa","0111000166517","Bác sĩ"]
[{"$f":"IF(B326<>\"\",COUNTA($B$312:B326),\"\")","v":15},"Tạ Văn Thum","0111001288848","CĐĐD"]
[{"$f":"IF(B327<>\"\",COUNTA($B$312:B327),\"\")","v":16},"Hồ Tấn Bảo Đông","0111000193732","CNĐD"]
[{"$f":"IF(B328<>\"\",COUNTA($B$312:B328),\"\")","v":17},"Thạch Thị Bích Nhiên","0111000225936","Bác sĩ"]
[{"$f":"IF(B329<>\"\",COUNTA($B$312:B329),\"\")","v":18},"Nguyễn Ngọc Bảo Trân","0111001066703","CN ĐD"]
[{"$f":"IF(B330<>\"\",COUNTA($B$312:B330),\"\")","v":19},"Bùi Duy Anh","0111000243142","Bác sĩ"]
[{"$f":"IF(B331<>\"\",COUNTA($B$312:B331),\"\")","v":20},"Mai Thanh Giang","0111000987491","CN ĐD"]
[{"$f":"IF(B332<>\"\",COUNTA($B$312:B332),\"\")","v":21},"Nguyễn Thị Kim Oanh","0821000084894","CĐ ĐD"]
[{"$f":"IF(B333<>\"\",COUNTA($B$312:B333),\"\")","v":22},"Nguyễn Thanh Hồng","0111000226494","CĐĐD"]
[{"$f":"IF(B334<>\"\",COUNTA($B$312:B334),\"\")","v":23},"Trần Thị Thảo Nguyên","0111000260585","CĐ ĐD"]
[{"$f":"IF(B335<>\"\",COUNTA($B$312:B335),\"\")","v":24},"Tăng Thị Yến Trinh","0111000260588","CĐ ĐD"]
[{"$f":"IF(B336<>\"\",COUNTA($B$312:B336),\"\")","v":25},"Hồ Cẩm Quyền","0111000186616","CĐĐD"]
[{"$f":"IF(B337<>\"\",COUNTA($B$312:B337),\"\")","v":26},"Đào Yến Vi","0111001382713","ĐDTC"]
[{"$f":"IF(B338<>\"\",COUNTA($B$312:B338),\"\")","v":27},"Đào Thị Mai",null,"CĐ ĐD"]
[{"$f":"IF(B339<>\"\",COUNTA($B$312:B339),\"\")","v":28},"Trần Thị Chi","0111000992787","Hộ lý"]
[{"$f":"IF(B340<>\"\",COUNTA($B$312:B340),\"\")","v":29},"Nguyễn Văn Tình","0111000232244","ĐDTC"]
[{"$f":"IF(B341<>\"\",COUNTA($B$312:B341),\"\")","v":30},"Sơn Thị Nam Liên","0111000987529","Hộ lý"]
[{"$f":"IF(B342<>\"\",COUNTA($B$312:B342),\"\")","v":31},"Lê Đệ",null,"Bác sĩ"]
[null,{"$f":"\"XVII - KHOA SƠ SINH: \"&COUNTA(B344:B387)","v":"XVII - KHOA SƠ SINH: 44"}]
[{"$f":"IF(B344<>\"\",COUNTA($B$344:B344),\"\")","v":1},"Diệp Loan","0111000928880","BS Trưởng khoa"]
[{"$f":"IF(B345<>\"\",COUNTA($B$344:B345),\"\")","v":2},"Nguyễn Thị Dũ","0111000928651","Điều dưỡng TC"]
[{"$f":"IF(B346<>\"\",COUNTA($B$344:B346),\"\")","v":3},"Nguyễn Thị Thảo","0111000928413","Điều dưỡng TC"]
[{"$f":"IF(B347<>\"\",COUNTA($B$344:B347),\"\")","v":4},"Trần Thị Kim Tuyến","0111000928486","PT ĐDTK"]
[{"$f":"IF(B348<>\"\",COUNTA($B$344:B348),\"\")","v":5},"Lê Thị Kim Tiên","0111000929033","Điều dưỡng TC"]
[{"$f":"IF(B349<>\"\",COUNTA($B$344:B349),\"\")","v":6},"Nguyễn Thị Sen Em","0111001000217","ĐDTC"]
[{"$f":"IF(B350<>\"\",COUNTA($B$344:B350),\"\")","v":7},"Phan Thị Mỹ Hạnh","0111000928899","ĐDTC"]
[{"$f":"IF(B351<>\"\",COUNTA($B$344:B351),\"\")","v":8},"Lê Thị Thúy Hằng","0111000928963","ĐDTC"]
[{"$f":"IF(B352<>\"\",COUNTA($B$344:B352),\"\")","v":9},"Lâm Mỹ Linh","0111000928844","ĐDTC"]
[{"$f":"IF(B353<>\"\",COUNTA($B$344:B353),\"\")","v":10},"Nguyễn Huỳnh Như","0111000928826","ĐDTC"]
[{"$f":"IF(B354<>\"\",COUNTA($B$344:B354),\"\")","v":11},"Lê Thị Sang","0111000928909","ĐDTC"]
[{"$f":"IF(B355<>\"\",COUNTA($B$344:B355),\"\")","v":12},"Nguyễn Văn Thừa","0111000928707","ĐDTC"]
[{"$f":"IF(B356<>\"\",COUNTA($B$344:B356),\"\")","v":13},"Bùi Nhựt Kim Anh","0111000173149","ĐDTC"]
[{"$f":"IF(B357<>\"\",COUNTA($B$344:B357),\"\")","v":14},"Nguyễn Hoàng Minh","0111000188814","ĐDTC"]
[{"$f":"IF(B358<>\"\",COUNTA($B$344:B358),\"\")","v":15},"Bùi Thị Phương Anh","0111000161454","Bác sĩ"]
[{"$f":"IF(B359<>\"\",COUNTA($B$344:B359),\"\")","v":16},"Huỳnh Thị Loan Anh","0111000188204","Bác sĩ"]
[{"$f":"IF(B360<>\"\",COUNTA($B$344:B360),\"\")","v":17},"Lê Thị Cẩm Vân","0111000272699","Bác sĩ"]
[{"$f":"IF(B361<>\"\",COUNTA($B$344:B361),\"\")","v":18},"Nguyễn Thị Lan Thương","0111000207468","ĐDTC"]
[{"$f":"IF(B362<>\"\",COUNTA($B$344:B362),\"\")","v":19},"Huỳnh Thị Ngọc Liễu","0111001155395","ĐDTC"]
[{"$f":"IF(B363<>\"\",COUNTA($B$344:B363),\"\")","v":20},"Nguyễn Văn Lành","0111000192329","ĐDTC"]
[{"$f":"IF(B364<>\"\",COUNTA($B$344:B364),\"\")","v":21},"Huỳnh Thị Huyền Trang","0111000194963","CNĐD"]
[{"$f":"IF(B365<>\"\",COUNTA($B$344:B365),\"\")","v":22},"Võ Thị Việt Anh","0111000164627","Bác sĩ"]
[{"$f":"IF(B366<>\"\",COUNTA($B$344:B366),\"\")","v":23},"Lâm Ngọc Nữ","0111000226497","Bác sĩ"]
[{"$f":"IF(B367<>\"\",COUNTA($B$344:B367),\"\")","v":24},"Phạm Thị Thúy Kiều","0111000226526","CĐĐD"]
[{"$f":"IF(B368<>\"\",COUNTA($B$344:B368),\"\")","v":25},"Phan Thị Kim Loan","0111000226273","ĐDTC"]
[{"$f":"IF(B369<>\"\",COUNTA($B$344:B369),\"\")","v":26},"Phan Lý Hiếu Nghĩa","0111000242467","Bác sĩ"]
[{"$f":"IF(B370<>\"\",COUNTA($B$344:B370),\"\")","v":27},"Lê Hoàng Thiện","0111000272811","Bác sĩ"]
[{"$f":"IF(B371<>\"\",COUNTA($B$344:B371),\"\")","v":28},"Trần Thị Thiên Hương","0111000244341","CĐ ĐD"]
[{"$f":"IF(B372<>\"\",COUNTA($B$344:B372),\"\")","v":29},"Lương Thị Thoa","0111000260318","CĐ ĐD"]
[{"$f":"IF(B373<>\"\",COUNTA($B$344:B373),\"\")","v":30},"Trần Thị Huyền","0111000266943","CĐ ĐD"]
[{"$f":"IF(B374<>\"\",COUNTA($B$344:B374),\"\")","v":31},"Trần Kim Anh","0111000153768","TC ĐD"]
[{"$f":"IF(B375<>\"\",COUNTA($B$344:B375),\"\")","v":32},"Nguyễn Thị Ngọc Thy","0111000244846","TC ĐD"]
[{"$f":"IF(B376<>\"\",COUNTA($B$344:B376),\"\")","v":33},"Lê Nguyễn Quế Tiên","0501000084160","TC ĐD"]
[{"$f":"IF(B377<>\"\",COUNTA($B$344:B377),\"\")","v":34},"Huỳnh Thị Ngọc Hân","0111000266858","TC ĐD"]
[{"$f":"IF(B378<>\"\",COUNTA($B$344:B378),\"\")","v":35},"Lê Thị Vân","0111000928477","Hộ lý"]
[{"$f":"IF(B379<>\"\",COUNTA($B$344:B379),\"\")","v":36},"Nguyễn Thị Huyền Trang","0111000226513","ĐDTC"]
[{"$f":"IF(B380<>\"\",COUNTA($B$344:B380),\"\")","v":37},"Nguyễn Thị Kim Thoa","0111000272941","Bác sĩ"]
[{"$f":"IF(B381<>\"\",COUNTA($B$344:B381),\"\")","v":38},"Lê Hạng Em","0111000928853","Hộ lý"]
[{"$f":"IF(B382<>\"\",COUNTA($B$344:B382),\"\")","v":39},"Thái Thị Phước","0111000178231","Hộ lý"]
[{"$f":"IF(B383<>\"\",COUNTA($B$344:B383),\"\")","v":40},"Nguyễn Thị Bích Nga","0111000186532","Hộ lý"]
[{"$f":"IF(B384<>\"\",COUNTA($B$344:B384),\"\")","v":41},"Nguyễn Thị Ngọc Yến","0111000244824","CĐ ĐD"]
[{"$f":"IF(B385<>\"\",COUNTA($B$344:B385),\"\")","v":42},"Nguyễn Thị Xuân Thu","0111000245568","CĐ ĐD"]
[{"$f":"IF(B386<>\"\",COUNTA($B$344:B386),\"\")","v":43},"Phan Diễm Trinh",null,"DSTC"]
[{"$f":"IF(B387<>\"\",COUNTA($B$344:B387),\"\")","v":44},"Dương Thị Bảo Trân",null,"Bác sĩ"]
[null,{"$f":"\"XVIII - KHOA KHÁM BỆNH: \"&COUNTA(B389:B405)","v":"XVIII - KHOA KHÁM BỆNH: 17"}]
[{"$f":"IF(B389<>\"\",COUNTA($B$389:B389),\"\")","v":1},"Trương Cẩm Trinh","0111000928817","BS Tr khoa"]
[{"$f":"IF(B390<>\"\",COUNTA($B$389:B390),\"\")","v":2},"Kiều Việt Tiến Hưng","0111000154781","Bác sĩ"]
[{"$f":"IF(B391<>\"\",COUNTA($B$389:B391),\"\")","v":3},"Nguyễn Đăng Khoa","0111000207477","Bác sĩ"]
[{"$f":"IF(B392<>\"\",COUNTA($B$389:B392),\"\")","v":4},"Ngô Quý Phong","0111000207451","Bác sĩ"]
[{"$f":"IF(B393<>\"\",COUNTA($B$389:B393),\"\")","v":5},"Nguyễn Thị Như Mai","0111000929556","ĐD trưởng"]
[{"$f":"IF(B394<>\"\",COUNTA($B$389:B394),\"\")","v":6},"Đổ Thùy Linh","0111000938965","Điều dưỡng TC"]
[{"$f":"IF(B395<>\"\",COUNTA($B$389:B395),\"\")","v":7},"Hà Thị Hồng Liệt","0111000926246","Điều dưỡng TC"]
[{"$f":"IF(B396<>\"\",COUNTA($B$389:B396),\"\")","v":8},"Trần Thị Thu Hồng","0111000929299","Điều dưỡng SC"]
[{"$f":"IF(B397<>\"\",COUNTA($B$389:B397),\"\")","v":9},"Dương Thị Lệ Chi","0111000939035","Hộ lý"]
[{"$f":"IF(B398<>\"\",COUNTA($B$389:B398),\"\")","v":10},"Nguyễn Thị Thanh Hải","0111000926080","ĐDTC"]
[{"$f":"IF(B399<>\"\",COUNTA($B$389:B399),\"\")","v":11},"Tạ Thị Thu Hà","0111000188244","CNĐD"]
[{"$f":"IF(B400<>\"\",COUNTA($B$389:B400),\"\")","v":12},"Đàm Thị Chúc Phương","0111000174877","CĐĐD"]
[{"$f":"IF(B401<>\"\",COUNTA($B$389:B401),\"\")","v":13},"Nguyễn Thị Ngọc Đẹp","0111000926136","ĐDTC"]
[{"$f":"IF(B402<>\"\",COUNTA($B$389:B402),\"\")","v":14},"Lê Thị Phương Trang","0111000164373","ĐDTC"]
[{"$f":"IF(B403<>\"\",COUNTA($B$389:B403),\"\")","v":15},"Kim Thị Mỹ Nhân","0111000212912","ĐD TC"]
[{"$f":"IF(B404<>\"\",COUNTA($B$389:B404),\"\")","v":16},"Phạm Thị Kim Ngân","0111000191016","ĐDTC"]
[{"$f":"IF(B405<>\"\",COUNTA($B$389:B405),\"\")","v":17},"Trương Thị Kim Loan","0111000200788","Hộ lý"]
[null,{"$f":"\"XIX - KHOA KCB THEO YÊU CẦU: \"&COUNTA(B407:B427)","v":"XIX - KHOA KCB THEO YÊU CẦU: 21"}]
[{"$f":"IF(B407<>\"\",COUNTA($B$407:B407),\"\")","v":1},"Nguyễn Thị Bích Anh","0111000939053","BS Tr khoa"]
[{"$f":"IF(B408<>\"\",COUNTA($B$407:B408),\"\")","v":2},"Đinh Tiến Dũng","0111000925901","BS Tr khoa"]
[{"$f":"IF(B409<>\"\",COUNTA($B$407:B409),\"\")","v":3},"Khương Văn Thái","0111000377642","Bác sĩ"]
[{"$f":"IF(B410<>\"\",COUNTA($B$407:B410),\"\")","v":4},"Nguyễn Văn Tuân","0111000242471","Bác sĩ"]
[{"$f":"IF(B411<>\"\",COUNTA($B$407:B411),\"\")","v":5},"Từ Thị Hoàng Yến","0111000926934","Hộ lý"]
[{"$f":"IF(B412<>\"\",COUNTA($B$407:B412),\"\")","v":6},"Nguyễn Thị Kim Thơi","0111000926640","PT.ĐDTK"]
[{"$f":"IF(B413<>\"\",COUNTA($B$407:B413),\"\")","v":7},"Nguyễn Thị Thương","0111001407734","ĐDTC"]
[{"$f":"IF(B414<>\"\",COUNTA($B$407:B414),\"\")","v":8},"Lê Nguyễn Ngọc Mỹ","0111000928679","ĐDTC"]
[{"$f":"IF(B415<>\"\",COUNTA($B$407:B415),\"\")","v":9},"Nguyễn Thị Hồng Trang","0111000926897","ĐDTC"]
[{"$f":"IF(B416<>\"\",COUNTA($B$407:B416),\"\")","v":10},"Kim Thị Kiều","0111000160884","ĐDTC"]
[{"$f":"IF(B417<>\"\",COUNTA($B$407:B417),\"\")","v":11},"Trần Thị Dung","0111000256779","ĐD TC"]
[{"$f":"IF(B418<>\"\",COUNTA($B$407:B418),\"\")","v":12},"Nguyễn Thúy Trang","0111000197746","TC ĐD"]
[{"$f":"IF(B419<>\"\",COUNTA($B$407:B419),\"\")","v":13},"Diệp Diệu Hậu","0111000194790","CĐĐD"]
[{"$f":"IF(B420<>\"\",COUNTA($B$407:B420),\"\")","v":14},"Trần Thị Út Bé","0111000928624","Điều dưỡng TC"]
[{"$f":"IF(B421<>\"\",COUNTA($B$407:B421),\"\")","v":15},"Phạm Thị Mừng","0111000169647","ĐDTC"]
[{"$f":"IF(B422<>\"\",COUNTA($B$407:B422),\"\")","v":16},"Nguyễn Thị Thu Liên","0111000929006","Điều dưỡng TC"]
[{"$f":"IF(B423<>\"\",COUNTA($B$407:B423),\"\")","v":17},"Phan Thị Mỹ Ngân",null,"CĐĐD"]
[{"$f":"IF(B424<>\"\",COUNTA($B$407:B424),\"\")","v":18},"Huỳnh Thị Liễu",null,"CĐ ĐD"]
[{"$f":"IF(B425<>\"\",COUNTA($B$407:B425),\"\")","v":19},"Huỳnh Thị Thu Cúc",null,"CĐĐD"]
[{"$f":"IF(B426<>\"\",COUNTA($B$407:B426),\"\")","v":20},"Đỗ Thị Thúy Ngọc",null,"CĐĐD"]
[{"$f":"IF(B427<>\"\",COUNTA($B$407:B427),\"\")","v":21},"Nguyễn Thị Thanh Nhàn","0111000271192","CĐ ĐD"]
[null,{"$f":"\"XX - KHOA NGOẠI: \"&COUNTA(B429:B460)","v":"XX - KHOA NGOẠI: 32"}]
[{"$f":"IF(B429<>\"\",COUNTA($B$429:B429),\"\")","v":1},"Nguyễn Quang Tiến","0111000925699","BS Tr khoa"]
[{"$f":"IF(B430<>\"\",COUNTA($B$429:B430),\"\")","v":2},"Tạ Vũ Quỳnh","0111000930077","Phó khoa"]
[{"$f":"IF(B431<>\"\",COUNTA($B$429:B431),\"\")","v":3},"Nguyễn Quốc Huy","0111000246012","BS Phó trưởng khoa"]
[{"$f":"IF(B432<>\"\",COUNTA($B$429:B432),\"\")","v":4},"Trần Kim Thành","0111000927747","Bác sĩ"]
[{"$f":"IF(B433<>\"\",COUNTA($B$429:B433),\"\")","v":5},"Phan Phú Lâm","0111000927820","ThS. Bác sĩ"]
[{"$f":"IF(B434<>\"\",COUNTA($B$429:B434),\"\")","v":6},"Phạm Minh Công","0111000927563","Y sĩ"]
[{"$f":"IF(B435<>\"\",COUNTA($B$429:B435),\"\")","v":7},"Đỗ Thị Tuyết Mai","0111000925910","Y tá TH"]
[{"$f":"IF(B436<>\"\",COUNTA($B$429:B436),\"\")","v":8},"Trần Thị Hai","0111000925891","Y tá TH"]
[{"$f":"IF(B437<>\"\",COUNTA($B$429:B437),\"\")","v":9},"Nguyễn Toàn Thiện","0111000925855","CĐĐD"]
[{"$f":"IF(B438<>\"\",COUNTA($B$429:B438),\"\")","v":10},"Phạm Thị Mỹ Linh","0111000925662","CĐĐD"]
[{"$f":"IF(B439<>\"\",COUNTA($B$429:B439),\"\")","v":11},"Phan Thị Gấm","0111000925828","Y tá "]
[{"$f":"IF(B440<>\"\",COUNTA($B$429:B440),\"\")","v":12},"Lương Gia Giác","0111000929905","PT Tr khoa"]
[{"$f":"IF(B441<>\"\",COUNTA($B$429:B441),\"\")","v":13},"Phạm Thị Ngọc Điệp","0111000927077","Điều dưỡng TC"]
[{"$f":"IF(B442<>\"\",COUNTA($B$429:B442),\"\")","v":14},"Nguyễn Xuân Dũ","0111000188813","ThS BS"]
[{"$f":"IF(B443<>\"\",COUNTA($B$429:B443),\"\")","v":15},"Võ Hoàng Danh","0111000188176","Bác sĩ CKI"]
[{"$f":"IF(B444<>\"\",COUNTA($B$429:B444),\"\")","v":16},"Nguyễn Thị Lệ Thủy","0111000191014","CĐĐD"]
[{"$f":"IF(B445<>\"\",COUNTA($B$429:B445),\"\")","v":17},"Nguyễn Võ Thành Luân","0111001381496","Bác sĩ"]
[{"$f":"IF(B446<>\"\",COUNTA($B$429:B446),\"\")","v":18},"Nguyễn Thị Hòa","0111000200336","CĐĐD"]
[{"$f":"IF(B447<>\"\",COUNTA($B$429:B447),\"\")","v":19},"Nguyễn Trương Toàn","0111000164052","Bác sĩ"]
[{"$f":"IF(B448<>\"\",COUNTA($B$429:B448),\"\")","v":20},"Châu Thị Ngọc","0111000226516","Bác sĩ"]
[{"$f":"IF(B449<>\"\",COUNTA($B$429:B449),\"\")","v":21},"Dương Thị Mỹ Châu","0111001101007","Bác sĩ"]
[{"$f":"IF(B450<>\"\",COUNTA($B$429:B450),\"\")","v":22},"Võ Ngọc Lân","0111000161587","ThS BS"]
[{"$f":"IF(B451<>\"\",COUNTA($B$429:B451),\"\")","v":23},"Phạm Tấn Đạt","0111000216537","CNĐD"]
[{"$f":"IF(B452<>\"\",COUNTA($B$429:B452),\"\")","v":24},"Trần Tuấn Lợi","0111000226459","CĐĐD"]
[{"$f":"IF(B453<>\"\",COUNTA($B$429:B453),\"\")","v":25},"Bùi Minh Đức","0111001497154","Bác sĩ"]
[{"$f":"IF(B454<>\"\",COUNTA($B$429:B454),\"\")","v":26},"Nguyễn Phước Tài","0111000272944","Bác sĩ"]
[{"$f":"IF(B455<>\"\",COUNTA($B$429:B455),\"\")","v":27},"Tăng Phú Tỷ","0111000202137","Bác sĩ"]
[{"$f":"IF(B456<>\"\",COUNTA($B$429:B456),\"\")","v":28},"Trần Đăng Tùng","0421000492908","Bác sĩ"]
[{"$f":"IF(B457<>\"\",COUNTA($B$429:B457),\"\")","v":29},"Huỳnh Thủy Tiên","0511000443203","Bác sĩ"]
[{"$f":"IF(B458<>\"\",COUNTA($B$429:B458),\"\")","v":30},"Nguyễn Thị Huyền Trang","0111000266786","CĐ ĐD"]
[{"$f":"IF(B459<>\"\",COUNTA($B$429:B459),\"\")","v":31},"Trần Ngọc Diệp","0111000266890","CĐ ĐD"]
[{"$f":"IF(B460<>\"\",COUNTA($B$429:B460),\"\")","v":32},"Trịnh Thị Út","0111000161911","Hộ lý"]
[null,{"$f":"\"XXI - KHOA GMHS: \"&COUNTA(B462:B490)","v":"XXI - KHOA GMHS: 29"}]
[{"$f":"IF(B462<>\"\",COUNTA($B$462:B462),\"\")","v":1},"Trần Văn Tuấn","0111000927682","Trưởng khoa"]
[{"$f":"IF(B463<>\"\",COUNTA($B$462:B463),\"\")","v":2},"Nguyễn Thị Thu Năm","0111000925846","ĐD trưởng"]
[{"$f":"IF(B464<>\"\",COUNTA($B$462:B464),\"\")","v":3},"Hồ Văn Thới","0111000927628","Điều dưỡng TC"]
[{"$f":"IF(B465<>\"\",COUNTA($B$462:B465),\"\")","v":4},"Nguyễn Thanh Nhã","0111000927536","CN. GMHS"]
[{"$f":"IF(B466<>\"\",COUNTA($B$462:B466),\"\")","v":5},"Đặng Hoàng Em","0111000930068","Y tá TH"]
[{"$f":"IF(B467<>\"\",COUNTA($B$462:B467),\"\")","v":6},"Phạm Thành Tuấn","0111000925800","Y tá TH"]
[{"$f":"IF(B468<>\"\",COUNTA($B$462:B468),\"\")","v":7},"Nguyễn Văn Quỳ","0111000925754","CĐĐD"]
[{"$f":"IF(B469<>\"\",COUNTA($B$462:B469),\"\")","v":8},"Lâm Thị Thu Thủy","0111000925626","Y tá TH"]
[{"$f":"IF(B470<>\"\",COUNTA($B$462:B470),\"\")","v":9},"Nguyễn Thị Yến","0111000927031","Điều dưỡng TC"]
[{"$f":"IF(B471<>\"\",COUNTA($B$462:B471),\"\")","v":10},"Nguyễn Thanh Thư","0111000927123","Điều dưỡng TC"]
[{"$f":"IF(B472<>\"\",COUNTA($B$462:B472),\"\")","v":11},"Nguyễn Văn Huynh","0111000925781","Y tá "]
[{"$f":"IF(B473<>\"\",COUNTA($B$462:B473),\"\")","v":12},"Nguyễn Thị Ngọc Phú","0111000925598","Hộ lý"]
[{"$f":"IF(B474<>\"\",COUNTA($B$462:B474),\"\")","v":13},"Trà Mỹ Tú","0111001154179","ĐDTC"]
[{"$f":"IF(B475<>\"\",COUNTA($B$462:B475),\"\")","v":14},"Nguyễn Thanh Hùng","0111000172955","ĐDTC"]
[{"$f":"IF(B476<>\"\",COUNTA($B$462:B476),\"\")","v":15},"Nguyễn Kim Loan","0111000180704","BS Phó trưởng khoa"]
[{"$f":"IF(B477<>\"\",COUNTA($B$462:B477),\"\")","v":16},"Vũ Kiều Diễm","0111000829391","ĐDTC"]
[{"$f":"IF(B478<>\"\",COUNTA($B$462:B478),\"\")","v":17},"Đặng Thị Ngọc Mai","0111000225709","Bác sĩ"]
[{"$f":"IF(B479<>\"\",COUNTA($B$462:B479),\"\")","v":18},"Nguyễn Văn Hai","0111000195062","ĐDTC"]
[{"$f":"IF(B480<>\"\",COUNTA($B$462:B480),\"\")","v":19},"Võ Trang Kim Yến","0111000197780","CĐĐD"]
[{"$f":"IF(B481<>\"\",COUNTA($B$462:B481),\"\")","v":20},"Trần Thị Bích Loan","0111000226514","CN ĐD"]
[{"$f":"IF(B482<>\"\",COUNTA($B$462:B482),\"\")","v":21},"Nguyễn Hải Đăng","0111000204230","CĐ ĐD"]
[{"$f":"IF(B483<>\"\",COUNTA($B$462:B483),\"\")","v":22},"Trần Thái Thiện Thanh","0111000173164","ĐDTC"]
[{"$f":"IF(B484<>\"\",COUNTA($B$462:B484),\"\")","v":23},"Trang Mỹ Dung","0111000267221","Bác sĩ"]
[{"$f":"IF(B485<>\"\",COUNTA($B$462:B485),\"\")","v":24},"Lê Văn Nam","0111000268027","CĐĐD"]
[{"$f":"IF(B486<>\"\",COUNTA($B$462:B486),\"\")","v":25},"Nguyễn Tấn Toàn","0111000193142","KTVGM"]
[{"$f":"IF(B487<>\"\",COUNTA($B$462:B487),\"\")","v":26},"Nguyễn Thị Thanh Trúc",null,"Bác sĩ"]
[{"$f":"IF(B488<>\"\",COUNTA($B$462:B488),\"\")","v":27},"Nguyễn Thị Đức Trí","0111001091592","Hộ lý"]
[{"$f":"IF(B489<>\"\",COUNTA($B$462:B489),\"\")","v":28},"Phạm Cẩm Như",null,"CĐĐD"]
[{"$f":"IF(B490<>\"\",COUNTA($B$462:B490),\"\")","v":29},"Nguyễn Thúy Kiều","0111000191322","CN GMHS"]
[null,{"$f":"\"XXII - KHOA 3 CHUYÊN KHOA: \"&COUNTA(B492:B518)","v":"XXII - KHOA 3 CHUYÊN KHOA: 27"}]
[{"$f":"IF(B492<>\"\",COUNTA($B$492:B492),\"\")","v":1},"Võ Thị Thùy Linh","0111000925790","BS trưởng khoa"]
[{"$f":"IF(B493<>\"\",COUNTA($B$492:B493),\"\")","v":2},"Nguyễn Kỳ Duy Tâm","0111000018685","Bác sĩ"]
[{"$f":"IF(B494<>\"\",COUNTA($B$492:B494),\"\")","v":3},"Lưu Mỹ Lệ","0111000925680","Điều dưỡng TC"]
[{"$f":"IF(B495<>\"\",COUNTA($B$492:B495),\"\")","v":4},"Nguyễn Ngọc Thúy","0111000925763","PT ĐD tr khoa"]
[{"$f":"IF(B496<>\"\",COUNTA($B$492:B496),\"\")","v":5},"Phan Thanh Phong","0111000927664","Y sĩ"]
[{"$f":"IF(B497<>\"\",COUNTA($B$492:B497),\"\")","v":6},"Nguyễn Thành Tâm","0111000182444","Bác sĩ"]
[{"$f":"IF(B498<>\"\",COUNTA($B$492:B498),\"\")","v":7},"Lê Minh Huy","0111000227488","Bác sĩ"]
[{"$f":"IF(B499<>\"\",COUNTA($B$492:B499),\"\")","v":8},"Nguyễn Chí Hiển","0111001441754","ĐDTC"]
[{"$f":"IF(B500<>\"\",COUNTA($B$492:B500),\"\")","v":9},"Trần Bình Nguyên","0111000178966","ĐDTC"]
[{"$f":"IF(B501<>\"\",COUNTA($B$492:B501),\"\")","v":10},"Quách Nguyễn Ái Phương","0111001254655","Bác sĩ"]
[{"$f":"IF(B502<>\"\",COUNTA($B$492:B502),\"\")","v":11},"Lưu Minh Phong","0111000165135","Bác sĩ"]
[{"$f":"IF(B503<>\"\",COUNTA($B$492:B503),\"\")","v":12},"Ngũ Thị Hồng Nhung","0111000226574","CĐĐD"]
[{"$f":"IF(B504<>\"\",COUNTA($B$492:B504),\"\")","v":13},"Phùng Bé Bi","0111000235025","BS TMH"]
[{"$f":"IF(B505<>\"\",COUNTA($B$492:B505),\"\")","v":14},"Lê Hoàng Nghĩa","0111000257680","BS TMH"]
[{"$f":"IF(B506<>\"\",COUNTA($B$492:B506),\"\")","v":15},"Trần Thiên Trí",null,"Bác sĩ"]
[{"$f":"IF(B507<>\"\",COUNTA($B$492:B507),\"\")","v":16},"Nguyễn Thị Kiều Lan","0111000267010","CĐ ĐD"]
[{"$f":"IF(B508<>\"\",COUNTA($B$492:B508),\"\")","v":17},"Nguyễn Ngọc Thùy Trang","0111000167373","CĐ ĐD"]
[{"$f":"IF(B509<>\"\",COUNTA($B$492:B509),\"\")","v":18},"Đào Thái Quỳnh Hương",null,"CĐĐD"]
[{"$f":"IF(B510<>\"\",COUNTA($B$492:B510),\"\")","v":19},"Thạch Chan Thi Vong",null,"CN ĐD"]
[{"$f":"IF(B511<>\"\",COUNTA($B$492:B511),\"\")","v":20},"Lê Thị Mộng Kiều","0111000269443","Bác sĩ"]
[{"$f":"IF(B512<>\"\",COUNTA($B$492:B512),\"\")","v":21},"Huỳnh Diễm Hài","0111000207578","Bác sĩ"]
[{"$f":"IF(B513<>\"\",COUNTA($B$492:B513),\"\")","v":22},"Trần Thị Yến Thanh",null,"CĐĐD"]
[{"$f":"IF(B514<>\"\",COUNTA($B$492:B514),\"\")","v":23},"Trần Diệu Nam","0111000925570","CĐĐD"]
[{"$f":"IF(B515<>\"\",COUNTA($B$492:B515),\"\")","v":24},"Nguyễn Thị Thanh Thủy","0111001027860","Hộ lý"]
[{"$f":"IF(B516<>\"\",COUNTA($B$492:B516),\"\")","v":25},"Lê Thị Huỳnh Trang",null,"CĐĐD"]
[{"$f":"IF(B517<>\"\",COUNTA($B$492:B517),\"\")","v":26},"Bùi Thị Thanh Thảo",null,"CĐĐD"]
[{"$f":"IF(B518<>\"\",COUNTA($B$492:B518),\"\")","v":27},"Mai Thị Ngọc Hiền",null,"DSTC"]
[null,{"$f":"\"XXIII - KHOA VẬT LÝ TRỊ LIỆU: \"&COUNTA(B520:B527)","v":"XXIII - KHOA VẬT LÝ TRỊ LIỆU: 8"}]
[{"$f":"IF(B520<>\"\",COUNTA($B$520:B520),\"\")","v":1},"Phạm Văn Đông","0111000232550","BS phó tr khoa"]
[{"$f":"IF(B521<>\"\",COUNTA($B$520:B521),\"\")","v":2},"Bùi Tú Thành",null,"Bác sĩ YHCT"]
[{"$f":"IF(B522<>\"\",COUNTA($B$520:B522),\"\")","v":3},"Trần Anh Đào","0111001049325","P Trách tr khoa"]
[{"$f":"IF(B523<>\"\",COUNTA($B$520:B523),\"\")","v":4},"Nguyễn Thị Loan Anh","0111001112243","KTV.VLTL"]
[{"$f":"IF(B524<>\"\",COUNTA($B$520:B524),\"\")","v":5},"Lê Thành Phương","0111001086187","KTV.VLTL"]
[{"$f":"IF(B525<>\"\",COUNTA($B$520:B525),\"\")","v":6},"Lê Thị Kim Yến","0111000178082","KTV.VLTL"]
[{"$f":"IF(B526<>\"\",COUNTA($B$520:B526),\"\")","v":7},"Trần Kim Yến",null,"KTV TC VLTL"]
[{"$f":"IF(B527<>\"\",COUNTA($B$520:B527),\"\")","v":8},"Huỳnh Mạnh Cường","0111000251058","KTV TC VLTL"]
[null,{"$f":"\"XXIV - KHOA DINH DƯỠNG: \"&COUNTA(B529:B534)","v":"XXIV - KHOA DINH DƯỠNG: 6"}]
[{"$f":"IF(B529<>\"\",COUNTA($B529:B$529),\"\")","v":1},"Võ Minh Tân","0111000928073","BS phó khoa"]
[{"$f":"IF(B530<>\"\",COUNTA($B$529:B530),\"\")","v":2},"Trần Kim Ngộ","0111000926594","ĐD trưởng"]
[{"$f":"IF(B531<>\"\",COUNTA($B$529:B531),\"\")","v":3},"Trần Ngọc Mai","0111000208432","CN CNTP"]
[{"$f":"IF(B532<>\"\",COUNTA($B$529:B532),\"\")","v":4},"Danh Thị Mỹ Phương","0321000826282","Bác sĩ"]
[{"$f":"IF(B533<>\"\",COUNTA($B$529:B533),\"\")","v":5},"Lê Thị Mỹ Thuộc","0111000930105","Điều dưỡng TC"]
[{"$f":"IF(B534<>\"\",COUNTA($B$529:B534),\"\")","v":6},"Trần Ngọc Diễm Trang","0111000155448","ĐDTC"]
[null,{"$f":"\"XXV - KHOA XÉT NGHIỆM: \"&COUNTA(B536:B563)","v":"XXV - KHOA XÉT NGHIỆM: 28"}]
[{"$f":"IF(B536<>\"\",COUNTA($B$536:B536),\"\")","v":1},"Đặng Thụy Thúy Hồng","0111000929923","Phó khoa"]
[{"$f":"IF(B537<>\"\",COUNTA($B$536:B537),\"\")","v":2},"Huỳnh Đan Thanh",null,"Dược sĩ"]
[{"$f":"IF(B538<>\"\",COUNTA($B$536:B538),\"\")","v":3},"Hồ Thị Nguyệt Nga","0111000928138","KTV. XN"]
[{"$f":"IF(B539<>\"\",COUNTA($B$536:B539),\"\")","v":4},"La Thu Nga","0111000928220","KTV. Tr Khoa"]
[{"$f":"IF(B540<>\"\",COUNTA($B$536:B540),\"\")","v":5},"Nguyễn Thị Thu Sương","0111000928174","CN XN"]
[{"$f":"IF(B541<>\"\",COUNTA($B$536:B541),\"\")","v":6},"Lương Thị Kim Hương","0111000928312","KTV. XN"]
[{"$f":"IF(B542<>\"\",COUNTA($B$536:B542),\"\")","v":7},"Đỗ Thị Chi","0111000928385","KTV chính Y"]
[{"$f":"IF(B543<>\"\",COUNTA($B$536:B543),\"\")","v":8},"Nguyễn Thị Liễu","0111000928422","KTV chính Y"]
[{"$f":"IF(B544<>\"\",COUNTA($B$536:B544),\"\")","v":9},"Đặng Thị Bé Hiền","0111000987363","CN XN"]
[{"$f":"IF(B545<>\"\",COUNTA($B$536:B545),\"\")","v":10},"Hà Phi Loan",null,"CN XN"]
[{"$f":"IF(B546<>\"\",COUNTA($B$536:B546),\"\")","v":11},"Hồ Thu Oanh","0111001146014","KTV.XN"]
[{"$f":"IF(B547<>\"\",COUNTA($B$536:B547),\"\")","v":12},"Nguyễn Thị Ngọc Chàng","0111001073590","KTV.XN"]
[{"$f":"IF(B548<>\"\",COUNTA($B$536:B548),\"\")","v":13},"Trịnh Hoài Minh","0111000367604","KTV.XN"]
[{"$f":"IF(B549<>\"\",COUNTA($B$536:B549),\"\")","v":14},"Tiêu Hồng Thủy","0111001271743","KTV.XN"]
[{"$f":"IF(B550<>\"\",COUNTA($B$536:B550),\"\")","v":15},"Nguyễn Ngọc Thu","0111001359562","KTV.XN"]
[{"$f":"IF(B551<>\"\",COUNTA($B$536:B551),\"\")","v":16},"Phạm Thị Thanh Loan","0111000190953","KTV. XN"]
[{"$f":"IF(B552<>\"\",COUNTA($B$536:B552),\"\")","v":17},"Nguyễn Ngọc Trung","0111000226569","KTVXN"]
[{"$f":"IF(B553<>\"\",COUNTA($B$536:B553),\"\")","v":18},"Trần Ngọc Đông Anh","0111000226506","KTVXN"]
[{"$f":"IF(B554<>\"\",COUNTA($B$536:B554),\"\")","v":19},"Kiên Thị Thu Vân","0111000226794","KTVXN"]
[{"$f":"IF(B555<>\"\",COUNTA($B$536:B555),\"\")","v":20},"Nguyễn Thị Trúc Đào","0111000266816","KTV TCXN"]
[{"$f":"IF(B556<>\"\",COUNTA($B$536:B556),\"\")","v":21},"Nguyễn Thị Cẩm Giang","0111000234398","KTV TCXN"]
[{"$f":"IF(B557<>\"\",COUNTA($B$536:B557),\"\")","v":22},"Lý Thị Hồng","0111000266478","Hộ lý"]
[{"$f":"IF(B558<>\"\",COUNTA($B$536:B558),\"\")","v":23},"Giang Mộng Kha","0111000225583","KTVXN"]
[{"$f":"IF(B559<>\"\",COUNTA($B$536:B559),\"\")","v":24},"Trần Thị Như","0111000245340","KTVTC XN"]
[{"$f":"IF(B560<>\"\",COUNTA($B$536:B560),\"\")","v":25},"Nguyễn Thị Cẩm Giang","0111000266840","KTVTC XN"]
[{"$f":"IF(B561<>\"\",COUNTA($B$536:B561),\"\")","v":26},"Nguyễn Hoàng Thái",null,"KTVTC XN"]
[{"$f":"IF(B562<>\"\",COUNTA($B$536:B562),\"\")","v":27},"Lê Huỳnh Nhân Ân",null,"CN XN"]
[{"$f":"IF(B563<>\"\",COUNTA($B$536:B563),\"\")","v":28},"Tạ Thành Lợi","0111000271172","CN XN"]
[null,{"$f":"\"XXVI - KHOA CHẨN ĐOÁN HÌNH ẢNH: \"&COUNTA(B565:B581)","v":"XXVI - KHOA CHẨN ĐOÁN HÌNH ẢNH: 17"}]
[{"$f":"IF(B565<>\"\",COUNTA($B$565:B565),\"\")","v":1},"Huỳnh Vũ Hải","0111000926732","BS Tr khoa"]
[{"$f":"IF(B566<>\"\",COUNTA($B$565:B566),\"\")","v":2},"Phan Nhật Khương","0111000142060","Bác sĩ"]
[{"$f":"IF(B567<>\"\",COUNTA($B$565:B567),\"\")","v":3},"Lương Văn Xinh","0111000925983","KTV Tr khoa"]
[{"$f":"IF(B568<>\"\",COUNTA($B$565:B568),\"\")","v":4},"Cao Hoàng Anh","0111000928440","Điều dưỡng TC"]
[{"$f":"IF(B569<>\"\",COUNTA($B$565:B569),\"\")","v":5},"Hồ Văn Giàu","0111000987482","KTV.CĐHA"]
[{"$f":"IF(B570<>\"\",COUNTA($B$565:B570),\"\")","v":6},"Huỳnh Trần Tiến","0111001146638","KTV.HAYH"]
[{"$f":"IF(B571<>\"\",COUNTA($B$565:B571),\"\")","v":7},"Nguyễn Thị Mười Hai","0111000925653","Điều dưỡng SC"]
[{"$f":"IF(B572<>\"\",COUNTA($B$565:B572),\"\")","v":8},"Nguyễn Thị Diễm Trúc","0111001146601","KTV.HAYH"]
[{"$f":"IF(B573<>\"\",COUNTA($B$565:B573),\"\")","v":9},"Trần Thị Mỹ Xuyên","0111000158703","KTV.HAYH"]
[{"$f":"IF(B574<>\"\",COUNTA($B$565:B574),\"\")","v":10},"Ngô Trung Khéo","0111000158704","KTV.HAYH"]
[{"$f":"IF(B575<>\"\",COUNTA($B$565:B575),\"\")","v":11},"Trần Ngọc Thùy","0111000242465","Bác sĩ"]
[{"$f":"IF(B576<>\"\",COUNTA($B$565:B576),\"\")","v":12},"Nguyễn Duy Toàn","0111000217350","Bác sĩ"]
[{"$f":"IF(B577<>\"\",COUNTA($B$565:B577),\"\")","v":13},"Ngô Hoàng Minh Phương",null,"Bác sĩ"]
[{"$f":"IF(B578<>\"\",COUNTA($B$565:B578),\"\")","v":14},"Trần Nam Anh",null,"Bác sĩ"]
[{"$f":"IF(B579<>\"\",COUNTA($B$565:B579),\"\")","v":15},"Lê Thanh Điền","0111000252704","KTVTC HAYH"]
[{"$f":"IF(B580<>\"\",COUNTA($B$565:B580),\"\")","v":16},"Dương Ngọc Bảo Duy",null,"KTVTC HAYH"]
[{"$f":"IF(B581<>\"\",COUNTA($B$565:B581),\"\")","v":17},"Lưu Trọng Tuấn","0111000256981","KTV HAYH"]
[null,{"$f":"\"XXVII - KHOA KIỂM SOÁT NHIỄM KHUẨN: \"&COUNTA(B583:B601)","v":"XXVII - KHOA KIỂM SOÁT NHIỄM KHUẨN: 19"}]
[{"$f":"IF(B583<>\"\",COUNTA($B$583:B583),\"\")","v":1},"Nguyễn Thị Ngọc Loan","0111001315432","BS Tr khoa"]
[{"$f":"IF(B584<>\"\",COUNTA($B$583:B584),\"\")","v":2},"Ngũ Quốc Thảo","0111000926925","Phó phòng"]
[{"$f":"IF(B585<>\"\",COUNTA($B$583:B585),\"\")","v":3},"Lê Ngọc Hằng","0111000927756","Điều dưỡng TC"]
[{"$f":"IF(B586<>\"\",COUNTA($B$583:B586),\"\")","v":4},"Lâm Hùng Tráng","0111000927279","Bảo vệ"]
[{"$f":"IF(B587<>\"\",COUNTA($B$583:B587),\"\")","v":5},"Liêu Thị Mỹ Hiền","0111000927141","ĐDTC"]
[{"$f":"IF(B588<>\"\",COUNTA($B$583:B588),\"\")","v":6},"Đặng Thanh Ngàn","0111000927884","Hộ lý"]
[{"$f":"IF(B589<>\"\",COUNTA($B$583:B589),\"\")","v":7},"Đỗ Văn Phụng","0111000927251","Điều dưỡng SC"]
[{"$f":"IF(B590<>\"\",COUNTA($B$583:B590),\"\")","v":8},"Nguyễn Thị Bạch Yến","0111000928743","Hộ lý"]
[{"$f":"IF(B591<>\"\",COUNTA($B$583:B591),\"\")","v":9},"Bùi Chí Tấn","0111000166130","CNĐD"]
[{"$f":"IF(B592<>\"\",COUNTA($B$583:B592),\"\")","v":10},"Nguyễn Kim Thanh","0391000917761","Kỹ sư QLTN&MT"]
[{"$f":"IF(B593<>\"\",COUNTA($B$583:B593),\"\")","v":11},"Lê Thành Tốt","0111000925992","Điều dưỡng SC"]
[{"$f":"IF(B594<>\"\",COUNTA($B$583:B594),\"\")","v":12},"Lâm Hùng Trung","0111000929877","NVKT"]
[{"$f":"IF(B595<>\"\",COUNTA($B$583:B595),\"\")","v":13},"Lâm Hùng Cường","0111000927288","Dược tá"]
[{"$f":"IF(B596<>\"\",COUNTA($B$583:B596),\"\")","v":14},"Lâm Tấn Đạt","0111000158332","Hộ lý"]
[{"$f":"IF(B597<>\"\",COUNTA($B$583:B597),\"\")","v":15},"Trần Hồng Thiệp","0111000198547","Hộ lý"]
[{"$f":"IF(B598<>\"\",COUNTA($B$583:B598),\"\")","v":16},"Nguyễn Thị Mỹ Tiên","0111000200428","Hộ lý"]
[{"$f":"IF(B599<>\"\",COUNTA($B$583:B599),\"\")","v":17},"Hồ Ngọc Loan","0111000236891","Hộ lý"]
[{"$f":"IF(B600<>\"\",COUNTA($B$583:B600),\"\")","v":18},"Trần Thị Thảo","0111001049471","Hộ lý"]
[{"$f":"IF(B601<>\"\",COUNTA($B$583:B601),\"\")","v":19},"Nguyễn Phước Thông","0111000266827","CN YTCC"]
[null,{"$f":"\"XXIII - KHOA DƯỢC: \"&COUNTA(B603:B631)","v":"XXIII - KHOA DƯỢC: 29"}]
[{"$f":"IF(B603<>\"\",COUNTA($B$603:B603),\"\")","v":1},"Tạ Ngọc Điệp","0111000951150","Trưởng khoa"]
[{"$f":"IF(B604<>\"\",COUNTA($B$603:B604),\"\")","v":2},"Nguyễn Thị Thu Vân","0111000927985","Phó khoa"]
[{"$f":"IF(B605<>\"\",COUNTA($B$603:B605),\"\")","v":3},"La Kim Dung","0111000926172","Dược sĩ TH"]
[{"$f":"IF(B606<>\"\",COUNTA($B$603:B606),\"\")","v":4},"Nguyễn Thị Xuân Hằng","0111000927930","Dược sĩ TH"]
[{"$f":"IF(B607<>\"\",COUNTA($B$603:B607),\"\")","v":5},"Vũ Thị Hương Lan","0111000927994","Dược sĩ TH"]
[{"$f":"IF(B608<>\"\",COUNTA($B$603:B608),\"\")","v":6},"Nguyễn Thị Mỹ Phượng","0111000928028","Dược Tá"]
[{"$f":"IF(B609<>\"\",COUNTA($B$603:B609),\"\")","v":7},"Nguyễn Thị Thu Hằng","0111000930013","Dược sĩ TC"]
[{"$f":"IF(B610<>\"\",COUNTA($B$603:B610),\"\")","v":8},"Võ Thị Ngọc Diễm","0111001041693","Dược sĩ TC"]
[{"$f":"IF(B611<>\"\",COUNTA($B$603:B611),\"\")","v":9},"Võ Thị Mộng Yến","0111000928037","Dược sĩ TC"]
[{"$f":"IF(B612<>\"\",COUNTA($B$603:B612),\"\")","v":10},"Phan Thùy Lỷ","0111000927958","Dược sĩ TC"]
[{"$f":"IF(B613<>\"\",COUNTA($B$603:B613),\"\")","v":11},"Nguyễn Hoàng Tuấn","0111000987473","Dược sĩ TC"]
[{"$f":"IF(B614<>\"\",COUNTA($B$603:B614),\"\")","v":12},"Trương Thị Thùy Linh","0111001419729","Dược sĩ TC"]
[{"$f":"IF(B615<>\"\",COUNTA($B$603:B615),\"\")","v":13},"Nguyễn Thị Hoàng Yến","0111001183546","Dược sĩ TC"]
[{"$f":"IF(B616<>\"\",COUNTA($B$603:B616),\"\")","v":14},"Huỳnh Thanh Tịnh","0111000162017","Dược sĩ"]
[{"$f":"IF(B617<>\"\",COUNTA($B$603:B617),\"\")","v":15},"Trương Thị Mộng Thắm","0391000928190","DSTC"]
[{"$f":"IF(B618<>\"\",COUNTA($B$603:B618),\"\")","v":16},"Trần Thanh Tùng","0111000226487","DSTC"]
[{"$f":"IF(B619<>\"\",COUNTA($B$603:B619),\"\")","v":17},"Lê Trần Thanh Vy","0111000203529","Dược sĩ"]
[{"$f":"IF(B620<>\"\",COUNTA($B$603:B620),\"\")","v":18},"Nguyễn Thanh Huy","0111000928266","Dược sĩ"]
[{"$f":"IF(B621<>\"\",COUNTA($B$603:B621),\"\")","v":19},"Trần Ngọc Hiếu",null,"Dược sĩ"]
[{"$f":"IF(B622<>\"\",COUNTA($B$603:B622),\"\")","v":20},"Nguyễn Thị Phượng Châu",null,"Dược sĩ"]
[{"$f":"IF(B623<>\"\",COUNTA($B$603:B623),\"\")","v":21},"Nguyễn Bích Phượng","0111000229068","DS TC"]
[{"$f":"IF(B624<>\"\",COUNTA($B$603:B624),\"\")","v":22},"Trần Thanh Thảo","0111000987455","DS TC"]
[{"$f":"IF(B625<>\"\",COUNTA($B$603:B625),\"\")","v":23},"Trần Thị Hồng Lan","0111000219756","DSTC"]
[{"$f":"IF(B626<>\"\",COUNTA($B$603:B626),\"\")","v":24},"Nguyễn Huỳnh Phước Duy","0151000412353","CĐ Dược"]
[{"$f":"IF(B627<>\"\",COUNTA($B$603:B627),\"\")","v":25},"Võ Trần Thủy Ngân","0111000192853","DSTC"]
[{"$f":"IF(B628<>\"\",COUNTA($B$603:B628),\"\")","v":26},"Đinh Nguyễn Tường","0111000246246","Cao đẳng dược"]
[{"$f":"IF(B629<>\"\",COUNTA($B$603:B629),\"\")","v":27},"Nguyễn Thị Kim Phượng","0111000194034","DSTC"]
[{"$f":"IF(B630<>\"\",COUNTA($B$603:B630),\"\")","v":28},"Nguyễn Thị Đức Hoàng","0111000926099","DSTC"]
[{"$f":"IF(B631<>\"\",COUNTA($B$603:B631),\"\")","v":29},"Huỳnh Bảo Trân","0391000998244","Dược sĩ"]
[null,{"$f":"\"Tổng số CBVC: \"&RIGHT(B8,2)+RIGHT(B27,2)+RIGHT(B34,2)+RIGHT(B40,2)+RIGHT(B49,2)+RIGHT(B56,2)+RIGHT(B76,2)+RIGHT(B85,2)+RIGHT(B122,2)+RIGHT(B148,2)+RIGHT(B179,2)+RIGHT(B209,2)+RIGHT(B238,2)+RIGHT(B260,2)+RIGHT(B283,2)+RIGHT(B311,2)+RIGHT(B343,2)+RIGHT(B388,2)+RIGHT(B406,2)+RIGHT(B428,2)+RIGHT(B461,2)+RIGHT(B491,2)+RIGHT(B519,2)+RIGHT(B528,2)+RIGHT(B535,2)+RIGHT(B564,2)+RIGHT(B582,2)+RIGHT(B602,2)","v":"Tổng số CBVC: 596"}]
["NHÀ THUỐC"]
["1. ","Huỳnh Thanh Kiều",9210016701,"Nhà thuốc"]
["2. ","Dương Thị Ý Thơ",7908310267,"Nhà thuốc"]
["3. ","Trần Thị Kim Phú",9211002704,"Nhà thuốc"]
["4. ","Trương Thúy Phượng",9215001991,"Nhà thuốc"]
["5. ","Trần Thị Hải",9216011385,"Nhà thuốc"]
["6. ","Nguyễn Thu Quỳnh",9216011384,"Nhà thuốc"]
["7. ","Lê Hải Yến",9216011383,"Nhà thuốc"]
["8. ","Nguyễn Thị Mộng Tuyền",9216011381,"Nhà thuốc"]
["9. ","Nguyễn Thảo Vân",9214005188,"Nhà thuốc"]
["10. ","Hồ Ngọc Mến",9214005189,"Nhà thuốc"]
["11. ","Trần Thị Thi",9214005190,"Nhà thuốc"]
["12. ","Mai Thị Hồng Diễm",9214005191,"Nhà thuốc"]
["13. ","Nguyễn Thị Thúy Hằng",9214005192,"Nhà thuốc"]
["14. ","Lê Thị Tuyết An",9214005186,"Nhà thuốc"]
["15. ","Huỳnh Trí Thức",9216024245,"Nhà thuốc"]
["16. ","Lê Thị Nhật Trang",9216016590,"Nhà thuốc"]
["17. ","Hứa Thị Anh Thư",9214005185,"Nhà thuốc"]
["18. ","Nguyễn Văn Thuận",9215009505,"Nhà thuốc"]
["19. ","Phạm Thị Bích Lụa",9211006158,"Nhà thuốc"]
["20. ","Nguyễn Hữu Tình",9216001998,"Nhà thuốc"]